{"text_format":"1","workbook":"xlsx","n_sheets":6,"sheets":["GestionLISTE","LV5","Synthèse réservation","Menu","TO par mois","Couleurs"],"not_rendered":{"charts":0,"images":5,"macros":1,"external_links":4,"defined_names":246,"comments":2,"pivot_tables":2},"unopened":[],"bounds":{"document_bytes":16777216,"sheet_cells":100000,"rows_first":2000,"rows_last":500,"rows_between":2000,"halvings":0,"cell_chars":16384,"cell_head_chars":4096},"cells_cut":0,"cells_raw":0,"read":"whole","date_system":"1900"}

{"sheet":"GestionLISTE","index":0,"n_rows":33530,"n_cols":19,"rows_kept":4500,"cut":true,"hidden":true,"merged":[[1,0,1,3]],"bounds":{"rows_first":2000,"rows_last":500,"rows_between":2000,"halvings":0}}
[]
["Paramètre GMAO",null,null,null,"Liste Nom Locataire","Liste ville",null,"Liste de Fonction",null,"Liste Lieu de Vie",null,"Heure de Départ ou de Retour",null,"Liste feuille de reservation",null,{"$f":"YEAR(TODAY())","v":2018},null,null,"Chemin pour sauvegarde auto"]
["Couleur de fond des userform Valeurs RGB",96,138,195,null,"AAST",null,"AMP",null,"LV 1",null,"00:15:00.288",null,null,null,{"$f":"DATE(P2,1,1)","v":"2018-01-01"},"1er  Janvier"]
[null,null,null,null,"anne","ABAINVILLE",null,"AS",null,"LV 2",null,"00:29:59.712",null,null,null,{"$f":"ROUND(DATE(P2,4,MOD(234-11*MOD(P2,19),30))/7,)*7-6","v":"2018-04-01"},"Pâques"]
["Sauvegarde pour multi utilisateur 1=Yes 2=No",1,null,null,null,"ABANCOURT",null,"COORDINATRICE ",null,"LV 3",null,"00:45:00",null,null,null,{"$f":"SUM(P4+1)","v":"2018-04-02"},"Lundi de Pâques"]
[null,null,null,null,null,"ABAUCOURT",null,"COORDINATRICE SOINS",null,"LV 4",null,"01:00:00.288",null,null,null,{"$f":"DATE(P2,5,1)","v":"2018-05-01"},"1er  Mai"]
["Liste intervenant",2,null,null,null,"ABAUCOURT HAUTECOURT",null,"IDE",null,"LV 5",null,"01:14:59.712",null,null,null,{"$f":"DATE(P2,5,8)","v":"2018-05-08"}," 8 Mai Victoire 1945"]
[null,null,null,null,null,"ABBANS DESSOUS",null,"REMPLACANTE",null,null,null,"01:30:00",null,null,null,{"$f":"P4+39","v":"2018-05-10"},"Jeudi de l'Ascension"]
["blocage des touches 1= ok , autres = noOk","No",null,null,null,"ABBANS DESSUS",null,"AGENT D'ENTRETIEN",null,null,null,"01:45:00.288",null,null,null,{"$f":"P4+49","v":"2018-05-20"},"Pentecôte"]
["date de la dernière purge du fichier synthèse","2018-01-12",null,null,null,"ABBARETZ",null,"COMPTABLE",null,null,null,"01:59:59.712",null,null,null,{"$f":"SUM(P9+1)","v":"2018-05-21"},"Lundi de Pentecôte"]
["Dernière mise à jour date","2018-03-01",null,null,null,"ABBECOURT",null,"CHEF DE SERVICE",null,null,null,"02:15:00",null,null,null,{"$f":"DATE(P2,7,14)","v":"2018-07-14"},"Fête Nationale France"]
["Durée Maxi du prêt",360,null,null,null,"ABBENANS",null,"DIRECTEUR",null,null,null,"02:30:00.288",null,null,null,{"$f":"DATE(P2,8,15)","v":"2018-08-15"},"Assomption"]
["Préfix Facture",null,null,null,null,"ABBEVILLE",null,"SECRETARIAT",null,null,null,"02:44:59.712",null,null,null,{"$f":"DATE(P2,11,1)","v":"2018-11-01"},"Toussaint"]
[null,null,null,null,null,"ABBEVILLE LA RIVIERE",null,null,null,null,null,"03:00:00",null,null,null,{"$f":"DATE(P2,11,11)","v":"2018-11-11"},"Armistice 1918"]
["Sufixe monnaie",null,null,null,null,"ABBEVILLE LES CONFLANS",null,null,null,null,null,"03:15:00.288",null,null,null,{"$f":"DATE(P2,12,25)","v":"2018-12-25"},"Noël"]
[" €",null,null,null,null,"ABBEVILLE ST LUCIEN",null,null,null,null,null,"03:29:59.712"]
["N° Réservation",null,null,null,null,"ABBEVILLERS",null,null,null,null,null,"03:45:00"]
[{"$f":"MAX(BD[N° ID])","v":4},null,null,null,null,"ABEILHAN",null,null,null,null,null,"04:00:00.288"]
[null,null,null,null,null,"ABELCOURT",null,null,null,null,null,"04:15:00"]
[null,null,null,null,null,"ABERE",null,null,null,null,null,"04:30:00"]
[null,null,null,null,null,"ABERGEMENT LA RONCE",null,null,null,null,null,"04:45:00.288"]
[null,null,null,null,null,"ABERGEMENT LE GRAND",null,null,null,null,null,"04:59:59.712"]
[null,null,null,null,null,"ABERGEMENT LE PETIT",null,null,null,null,null,"05:15:00"]
[null,null,null,null,null,"ABERGEMENT LES THESY",null,null,null,null,null,"05:30:00.288"]
[null,null,null,null,null,"ABIDOS",null,null,null,null,null,"05:44:59.712"]
[null,null,null,null,null,"ABILLY",null,null,null,null,null,"06:00:00"]
[null,null,null,null,null,"ABITAIN",null,null,null,null,null,"06:15:00.288"]
[null,null,null,null,null,"ABJAT SUR BANDIAT",null,null,null,null,null,"06:29:59.712"]
[null,null,null,null,null,"ABLAIN ST NAZAIRE",null,null,null,null,null,"06:45:00"]
[null,null,null,null,null,"ABLAINCOURT PRESSOIR",null,null,null,null,null,"07:00:00.288"]
[null,null,null,null,null,"ABLAINZEVELLE",null,null,null,null,null,"07:14:59.712"]
[null,null,null,null,null,"ABLANCOURT",null,null,null,null,null,"07:30:00"]
[null,null,null,null,null,"ABLEIGES",null,null,null,null,null,"07:45:00.288"]
[null,null,null,null,null,"ABLIS",null,null,null,null,null,"07:59:59.712"]
[null,null,null,null,null,"ABLON",null,null,null,null,null,"08:15:00"]
[null,null,null,null,null,"ABLON SUR SEINE",null,null,null,null,null,"08:30:00.288"]
[null,null,null,null,null,"ABOEN",null,null,null,null,null,"08:44:59.712"]
[null,null,null,null,null,"ABONCOURT",null,null,null,null,null,"09:00:00"]
[null,null,null,null,null,"ABONCOURT GESINCOURT",null,null,null,null,null,"09:15:00.288"]
[null,null,null,null,null,"ABONCOURT SUR SEILLE",null,null,null,null,null,"09:29:59.712"]
[null,null,null,null,null,"ABONDANCE",null,null,null,null,null,"09:45:00"]
[null,null,null,null,null,"ABONDANT",null,null,null,null,null,"10:00:00.288"]
[null,null,null,null,null,"ABOS",null,null,null,null,null,"10:14:59.712"]
[null,null,null,null,null,"ABRESCHVILLER",null,null,null,null,null,"10:30:00"]
[null,null,null,null,null,"ABREST",null,null,null,null,null,"10:45:00.288"]
[null,null,null,null,null,"ABRIES",null,null,null,null,null,"10:59:59.712"]
[null,null,null,null,null,"ABSCON",null,null,null,null,null,"11:15:00"]
[null,null,null,null,null,"ABZAC",null,null,null,null,null,"11:30:00.288"]
[null,null,null,null,null,"ACCOLANS",null,null,null,null,null,"11:44:59.712"]
[null,null,null,null,null,"ACCOLAY",null,null,null,null,null,"12:00:00"]
[null,null,null,null,null,"ACCONS",null,null,null,null,null,"12:15:00.288"]
[null,null,null,null,null,"ACCOUS",null,null,null,null,null,"12:29:59.712"]
[null,null,null,null,null,"ACHAIN",null,null,null,null,null,"12:45:00"]
[null,null,null,null,null,"ACHEN",null,null,null,null,null,"13:00:00.288"]
[null,null,null,null,null,"ACHENHEIM",null,null,null,null,null,"13:14:59.712"]
[null,null,null,null,null,"ACHERES",null,null,null,null,null,"13:30:00"]
[null,null,null,null,null,"ACHERES LA FORET",null,null,null,null,null,"13:45:00.288"]
[null,null,null,null,null,"ACHERY",null,null,null,null,null,"13:59:59.712"]
[null,null,null,null,null,"ACHEUX EN AMIENOIS",null,null,null,null,null,"14:15:00"]
[null,null,null,null,null,"ACHEUX EN VIMEU",null,null,null,null,null,"14:30:00.288"]
[null,null,null,null,null,"ACHEVILLE",null,null,null,null,null,"14:45:00"]
[null,null,null,null,null,"ACHEY",null,null,null,null,null,"15:00:00"]
[null,null,null,null,null,"ACHICOURT",null,null,null,null,null,"15:15:00"]
[null,null,null,null,null,"ACHIET LE GRAND",null,null,null,null,null,"15:29:59.712"]
[null,null,null,null,null,"ACHIET LE PETIT",null,null,null,null,null,"15:45:00"]
[null,null,null,null,null,"ACHUN",null,null,null,null,null,"16:00:00.288"]
[null,null,null,null,null,"ACHY",null,null,null,null,null,"16:14:59.712"]
[null,null,null,null,null,"ACIGNE",null,null,null,null,null,"16:30:00"]
[null,null,null,null,null,"ACLOU",null,null,null,null,null,"16:45:00"]
[null,null,null,null,null,"ACON",null,null,null,null,null,"16:59:59.712"]
[null,null,null,null,null,"ACOUA",null,null,null,null,null,"17:15:00"]
[null,null,null,null,null,"ACQ",null,null,null,null,null,"17:30:00.288"]
[null,null,null,null,null,"ACQUEVILLE",null,null,null,null,null,"17:44:59.712"]
[null,null,null,null,null,"ACQUIGNY",null,null,null,null,null,"18:00:00"]
[null,null,null,null,null,"ACQUIN WESTBECOURT",null,null,null,null,null,"18:15:00.288"]
[null,null,null,null,null,"ACY",null,null,null,null,null,"18:29:59.712"]
[null,null,null,null,null,"ACY EN MULTIEN",null,null,null,null,null,"18:45:00"]
[null,null,null,null,null,"ACY ROMANCE",null,null,null,null,null,"19:00:00.288"]
[null,null,null,null,null,"ADAINCOURT",null,null,null,null,null,"19:14:59.712"]
[null,null,null,null,null,"ADAINVILLE",null,null,null,null,null,"19:30:00"]
[null,null,null,null,null,"ADAM LES PASSAVANT",null,null,null,null,null,"19:45:00.288"]
[null,null,null,null,null,"ADAM LES VERCEL",null,null,null,null,null,"19:59:59.712"]
[null,null,null,null,null,"ADAMSWILLER",null,null,null,null,null,"20:15:00"]
[null,null,null,null,null,"ADAST",null,null,null,null,null,"20:30:00.288"]
[null,null,null,null,null,"ADE",null,null,null,null,null,"20:44:59.712"]
[null,null,null,null,null,"ADELANGE",null,null,null,null,null,"21:00:00"]
[null,null,null,null,null,"ADELANS ET LE VAL DE BITHAINE",null,null,null,null,null,"21:15:00.288"]
[null,null,null,null,null,"ADERVIELLE POUCHERGUES",null,null,null,null,null,"21:29:59.712"]
[null,null,null,null,null,"ADILLY",null,null,null,null,null,"21:45:00"]
[null,null,null,null,null,"ADINFER",null,null,null,null,null,"22:00:00.288"]
[null,null,null,null,null,"ADISSAN",null,null,null,null,null,"22:14:59.712"]
[null,null,null,null,null,"ADON",null,null,null,null,null,"22:30:00"]
[null,null,null,null,null,"ADRIERS",null,null,null,null,null,"22:45:00.288"]
[null,null,null,null,null,"AFA",null,null,null,null,null,"22:59:59.712"]
[null,null,null,null,null,"AFFIEUX",null,null,null,null,null,"23:15:00"]
[null,null,null,null,null,"AFFLEVILLE",null,null,null,null,null,"23:30:00.288"]
[null,null,null,null,null,"AFFOUX",null,null,null,null,null,"23:45:00"]
[null,null,null,null,null,"AFFRACOURT",null,null,null,null,null,1]
[null,null,null,null,null,"AFFRINGUES",null,null,null,null,null,"     "]
[null,null,null,null,null,"AGASSAC"]
[null,null,null,null,null,"AGDE"]
[null,null,null,null,null,"AGEL"]
[null,null,null,null,null,"AGEN"]
[null,null,null,null,null,"AGEN D AVEYRON"]
[null,null,null,null,null,"AGENCOURT"]
[null,null,null,null,null,"AGENVILLE"]
[null,null,null,null,null,"AGENVILLERS"]
[null,null,null,null,null,"AGEVILLE"]
[null,null,null,null,null,"AGEY"]
[null,null,null,null,null,"AGHIONE"]
[null,null,null,null,null,"AGINCOURT"]
[null,null,null,null,null,"AGME"]
[null,null,null,null,null,"AGNAC"]
[null,null,null,null,null,"AGNAT"]
[null,null,null,null,null,"AGNEAUX"]
[null,null,null,null,null,"AGNETZ"]
[null,null,null,null,null,"AGNEZ LES DUISANS"]
[null,null,null,null,null,"AGNICOURT ET SECHELLES"]
[null,null,null,null,null,"AGNIERES"]
[null,null,null,null,null,"AGNIN"]
[null,null,null,null,null,"AGNOS"]
[null,null,null,null,null,"AGNY"]
[null,null,null,null,null,"AGON COUTAINVILLE"]
[null,null,null,null,null,"AGONAC"]
[null,null,null,null,null,"AGONES"]
[null,null,null,null,null,"AGONGES"]
[null,null,null,null,null,"AGOS VIDALOS"]
[null,null,null,null,null,"AGRIS"]
[null,null,null,null,null,"AGUDELLE"]
[null,null,null,null,null,"AGUESSAC"]
[null,null,null,null,null,"AGUILCOURT"]
[null,null,null,null,null,"AGUTS"]
[null,null,null,null,null,"AGY"]
[null,null,null,null,null,"AHAXE ALCIETTE BASCASSAN"]
[null,null,null,null,null,"AHETZE"]
[null,null,null,null,null,"AHEVILLE"]
[null,null,null,null,null,"AHUILLE"]
[null,null,null,null,null,"AHUN"]
[null,null,null,null,null,"AHUY"]
[null,null,null,null,null,"AIBES"]
[null,null,null,null,null,"AIBRE"]
[null,null,null,null,null,"AICIRITS CAMOU SUHAST"]
[null,null,null,null,null,"AIFFRES"]
[null,null,null,null,null,"AIGALIERS"]
[null,null,null,null,null,"AIGLEMONT"]
[null,null,null,null,null,"AIGLEPIERRE"]
[null,null,null,null,null,"AIGLEVILLE"]
[null,null,null,null,null,"AIGLUN"]
[null,null,null,null,null,"AIGNAN"]
[null,null,null,null,null,"AIGNAY LE DUC"]
[null,null,null,null,null,"AIGNE"]
[null,null,null,null,null,"AIGNERVILLE"]
[null,null,null,null,null,"AIGNES"]
[null,null,null,null,null,"AIGNES ET PUYPEROUX"]
[null,null,null,null,null,"AIGNEVILLE"]
[null,null,null,null,null,"AIGNY"]
[null,null,null,null,null,"AIGONNAY"]
[null,null,null,null,null,"AIGRE"]
[null,null,null,null,null,"AIGREFEUILLE"]
[null,null,null,null,null,"AIGREFEUILLE D AUNIS"]
[null,null,null,null,null,"AIGREFEUILLE SUR MAINE"]
[null,null,null,null,null,"AIGREMONT"]
[null,null,null,null,null,"AIGUEBELETTE LE LAC"]
[null,null,null,null,null,"AIGUEBELLE"]
[null,null,null,null,null,"AIGUEBLANCHE"]
[null,null,null,null,null,"AIGUEFONDE"]
[null,null,null,null,null,"AIGUEPERSE"]
[null,null,null,null,null,"AIGUES JUNTES"]
[null,null,null,null,null,"AIGUES MORTES"]
[null,null,null,null,null,"AIGUES VIVES"]
[null,null,null,null,null,"AIGUEZE"]
[null,null,null,null,null,"AIGUILHE"]
[null,null,null,null,null,"AIGUILLES"]
[null,null,null,null,null,"AIGUILLON"]
[null,null,null,null,null,"AIGUINES"]
[null,null,null,null,null,"AIGURANDE"]
[null,null,null,null,null,"AILHON"]
[null,null,null,null,null,"AILLANT SUR MILLERON"]
[null,null,null,null,null,"AILLANT SUR THOLON"]
[null,null,null,null,null,"AILLAS"]
[null,null,null,null,null,"AILLEUX"]
[null,null,null,null,null,"AILLEVANS"]
[null,null,null,null,null,"AILLEVILLE"]
[null,null,null,null,null,"AILLEVILLERS ET LYAUMONT"]
[null,null,null,null,null,"AILLIANVILLE"]
[null,null,null,null,null,"AILLIERES BEAUVOIR"]
[null,null,null,null,null,"AILLON LE JEUNE"]
[null,null,null,null,null,"AILLON LE VIEUX"]
[null,null,null,null,null,"AILLONCOURT"]
[null,null,null,null,null,"AILLY"]
[null,null,null,null,null,"AILLY LE HAUT CLOCHER"]
[null,null,null,null,null,"AILLY SUR NOYE"]
[null,null,null,null,null,"AILLY SUR SOMME"]
[null,null,null,null,null,"AIMARGUES"]
[null,null,null,null,null,"AIME LA PLAGNE"]
[null,null,null,null,null,"AINAY LE CHATEAU"]
[null,null,null,null,null,"AINAY LE VIEIL"]
[null,null,null,null,null,"AINCILLE"]
[null,null,null,null,null,"AINCOURT"]
[null,null,null,null,null,"AINCREVILLE"]
[null,null,null,null,null,"AINGERAY"]
[null,null,null,null,null,"AINGEVILLE"]
[null,null,null,null,null,"AINGOULAINCOURT"]
[null,null,null,null,null,"AINHARP"]
[null,null,null,null,null,"AINHICE MONGELOS"]
[null,null,null,null,null,"AINHOA"]
[null,null,null,null,null,"AINVELLE"]
[null,null,null,null,null,"AIRAINES"]
[null,null,null,null,null,"AIRAN"]
[null,null,null,null,null,"AIRE"]
[null,null,null,null,null,"AIRE SUR L ADOUR"]
[null,null,null,null,null,"AIRE SUR LA LYS"]
[null,null,null,null,null,"AIREL"]
[null,null,null,null,null,"AIRION"]
[null,null,null,null,null,"AIRON NOTRE DAME"]
[null,null,null,null,null,"AIRON ST VAAST"]
[null,null,null,null,null,"AIROUX"]
[null,null,null,null,null,"AIRVAULT"]
[null,null,null,null,null,"AISEREY"]
[null,null,null,null,null,"AISEY ET RICHECOURT"]
[null,null,null,null,null,"AISEY SUR SEINE"]
[null,null,null,null,null,"AISONVILLE ET BERNOVILLE"]
[null,null,null,null,null,"AISSEY"]
[null,null,null,null,null,"AISY SOUS THIL"]
[null,null,null,null,null,"AISY SUR ARMANCON"]
[null,null,null,null,null,"AITI"]
[null,null,null,null,null,"AITON"]
[null,null,null,null,null,"AIX"]
[null,null,null,null,null,"AIX EN ERGNY"]
[null,null,null,null,null,"AIX EN ISSART"]
[null,null,null,null,null,"AIX EN PROVENCE"]
[null,null,null,null,null,"AIX LA FAYETTE"]
[null,null,null,null,null,"AIX LES BAINS"]
[null,null,null,null,null,"AIX NOULETTE"]
[null,null,null,null,null,"AIX VILLEMAUR PALIS"]
[null,null,null,null,null,"AIXE SUR VIENNE"]
[null,null,null,null,null,"AIZAC"]
[null,null,null,null,null,"AIZANVILLE"]
[null,null,null,null,null,"AIZE"]
[null,null,null,null,null,"AIZECOURT LE BAS"]
[null,null,null,null,null,"AIZECOURT LE HAUT"]
[null,null,null,null,null,"AIZELLES"]
[null,null,null,null,null,"AIZENAY"]
[null,null,null,null,null,"AIZIER"]
[null,null,null,null,null,"AIZY JOUY"]
[null,null,null,null,null,"AJAC"]
[null,null,null,null,null,"AJACCIO"]
[null,null,null,null,null,"AJAIN"]
[null,null,null,null,null,"AJAT"]
[null,null,null,null,null,"AJONCOURT"]
[null,null,null,null,null,"AJOUX"]
[null,null,null,null,null,"ALAIGNE"]
[null,null,null,null,null,"ALAINCOURT"]
[null,null,null,null,null,"ALAINCOURT LA COTE"]
[null,null,null,null,null,"ALAIRAC"]
[null,null,null,null,null,"ALAN"]
[null,null,null,null,null,"ALANDO"]
[null,null,null,null,null,"ALATA"]
[null,null,null,null,null,"ALBA LA ROMAINE"]
[null,null,null,null,null,"ALBAN"]
[null,null,null,null,null,"ALBARET LE COMTAL"]
[null,null,null,null,null,"ALBARET STE MARIE"]
[null,null,null,null,null,"ALBAS"]
[null,null,null,null,null,"ALBE"]
[null,null,null,null,null,"ALBEFEUILLE LAGARDE"]
[null,null,null,null,null,"ALBEPIERRE BREDONS"]
[null,null,null,null,null,"ALBERT"]
[null,null,null,null,null,"ALBERTACCE"]
[null,null,null,null,null,"ALBERTVILLE"]
[null,null,null,null,null,"ALBESTROFF"]
[null,null,null,null,null,"ALBI"]
[null,null,null,null,null,"ALBIAC"]
[null,null,null,null,null,"ALBIAS"]
[null,null,null,null,null,"ALBIERES"]
[null,null,null,null,null,"ALBIES"]
[null,null,null,null,null,"ALBIEZ LE JEUNE"]
[null,null,null,null,null,"ALBIEZ MONTROND"]
[null,null,null,null,null,"ALBIGNAC"]
[null,null,null,null,null,"ALBIGNY SUR SAONE"]
[null,null,null,null,null,"ALBINE"]
[null,null,null,null,null,"ALBITRECCIA"]
[null,null,null,null,null,"ALBON"]
[null,null,null,null,null,"ALBON D ARDECHE"]
[null,null,null,null,null,"ALBOUSSIERE"]
[null,null,null,null,null,"ALBUSSAC"]
[null,null,null,null,null,"ALBY SUR CHERAN"]
[null,null,null,null,null,"ALCAY ALCABEHETY SUNHARETTE"]
[null,null,null,null,null,"ALDUDES"]
[null,null,null,null,null,"ALEMBON"]
[null,null,null,null,null,"ALENCON"]
[null,null,null,null,null,"ALENYA"]
[null,null,null,null,null,"ALERIA"]
[null,null,null,null,null,"ALES"]
[null,null,null,null,null,"ALET LES BAINS"]
[null,null,null,null,null,"ALETTE"]
[null,null,null,null,null,"ALEU"]
[null,null,null,null,null,"ALEX"]
[null,null,null,null,null,"ALEXAIN"]
[null,null,null,null,null,"ALEYRAC"]
[null,null,null,null,null,"ALFORTVILLE"]
[null,null,null,null,null,"ALGAJOLA"]
[null,null,null,null,null,"ALGANS"]
[null,null,null,null,null,"ALGOLSHEIM"]
[null,null,null,null,null,"ALGRANGE"]
[null,null,null,null,null,"ALIEZE"]
[null,null,null,null,null,"ALIGNAN DU VENT"]
[null,null,null,null,null,"ALINCOURT"]
[null,null,null,null,null,"ALINCTHUN"]
[null,null,null,null,null,"ALISE STE REINE"]
[null,null,null,null,null,"ALISSAS"]
[null,null,null,null,null,"ALIX"]
[null,null,null,null,null,"ALIXAN"]
[null,null,null,null,null,"ALIZAY"]
[null,null,null,null,null,"ALLAIN"]
[null,null,null,null,null,"ALLAINES"]
[null,null,null,null,null,"ALLAINES MERVILLIERS"]
[null,null,null,null,null,"ALLAINVILLE"]
[null,null,null,null,null,"ALLAIRE"]
[null,null,null,null,null,"ALLAMONT"]
[null,null,null,null,null,"ALLAMPS"]
[null,null,null,null,null,"ALLAN"]
[null,null,null,null,null,"ALLANCHE"]
[null,null,null,null,null,"ALLAND HUY ET SAUSSEUIL"]
[null,null,null,null,null,"ALLARMONT"]
[null,null,null,null,null,"ALLAS BOCAGE"]
[null,null,null,null,null,"ALLAS CHAMPAGNE"]
[null,null,null,null,null,"ALLAS LES MINES"]
[null,null,null,null,null,"ALLASSAC"]
[null,null,null,null,null,"ALLAUCH"]
[null,null,null,null,null,"ALLEGRE"]
[null,null,null,null,null,"ALLEGRE LES FUMADES"]
[null,null,null,null,null,"ALLEINS"]
[null,null,null,null,null,"ALLEMAGNE EN PROVENCE"]
[null,null,null,null,null,"ALLEMANCHE LAUNAY ET SOYER"]
[null,null,null,null,null,"ALLEMANS"]
[null,null,null,null,null,"ALLEMANS DU DROPT"]
[null,null,null,null,null,"ALLEMANT"]
[null,null,null,null,null,"ALLEMOND"]
[null,null,null,null,null,"ALLENAY"]
[null,null,null,null,null,"ALLENC"]
[null,null,null,null,null,"ALLENJOIE"]
[null,null,null,null,null,"ALLENNES LES MARAIS"]
[null,null,null,null,null,"ALLEREY"]
[null,null,null,null,null,"ALLEREY SUR SAONE"]
[null,null,null,null,null,"ALLERIOT"]
[null,null,null,null,null,"ALLERY"]
[null,null,null,null,null,"ALLES SUR DORDOGNE"]
[null,null,null,null,null,"ALLEUZE"]
[null,null,null,null,null,"ALLEVARD"]
[null,null,null,null,null,"ALLEVES"]
[null,null,null,null,null,"ALLEX"]
[null,null,null,null,null,"ALLEYRAC"]
[null,null,null,null,null,"ALLEYRAS"]
[null,null,null,null,null,"ALLEYRAT"]
[null,null,null,null,null,"ALLEZ ET CAZENEUVE"]
[null,null,null,null,null,"ALLIANCELLES"]
[null,null,null,null,null,"ALLIAT"]
[null,null,null,null,null,"ALLIBAUDIERES"]
[null,null,null,null,null,"ALLICHAMPS"]
[null,null,null,null,null,"ALLIER"]
[null,null,null,null,null,"ALLIERES"]
[null,null,null,null,null,"ALLIGNY COSNE"]
[null,null,null,null,null,"ALLIGNY EN MORVAN"]
[null,null,null,null,null,"ALLINEUC"]
[null,null,null,null,null,"ALLINGES"]
[null,null,null,null,null,"ALLOGNY"]
[null,null,null,null,null,"ALLONDANS"]
[null,null,null,null,null,"ALLONDAZ"]
[null,null,null,null,null,"ALLONDRELLE LA MALMAISON"]
[null,null,null,null,null,"ALLONNE"]
[null,null,null,null,null,"ALLONNES"]
[null,null,null,null,null,"ALLONS"]
[null,null,null,null,null,"ALLONVILLE"]
[null,null,null,null,null,"ALLONZIER LA CAILLE"]
[null,null,null,null,null,"ALLOS"]
[null,null,null,null,null,"ALLOUAGNE"]
[null,null,null,null,null,"ALLOUE"]
[null,null,null,null,null,"ALLOUIS"]
[null,null,null,null,null,"ALLOUVILLE BELLEFOSSE"]
[null,null,null,null,null,"ALLUY"]
[null,null,null,null,null,"ALLUYES"]
[null,null,null,null,null,"ALLY"]
[null,null,null,null,null,"ALMAYRAC"]
[null,null,null,null,null,"ALMENECHES"]
[null,null,null,null,null,"ALMONT LES JUNIES"]
[null,null,null,null,null,"ALO"]
[null,null,null,null,null,"ALOS"]
[null,null,null,null,null,"ALOS SIBAS ABENSE"]
[null,null,null,null,null,"ALOXE CORTON"]
[null,null,null,null,null,"ALQUINES"]
[null,null,null,null,null,"ALRANCE"]
[null,null,null,null,null,"ALSTING"]
[null,null,null,null,null,"ALTAGENE"]
[null,null,null,null,null,"ALTECKENDORF"]
[null,null,null,null,null,"ALTENACH"]
[null,null,null,null,null,"ALTENHEIM"]
[null,null,null,null,null,"ALTHEN DES PALUDS"]
[null,null,null,null,null,"ALTIANI"]
[null,null,null,null,null,"ALTIER"]
[null,null,null,null,null,"ALTILLAC"]
[null,null,null,null,null,"ALTKIRCH"]
[null,null,null,null,null,"ALTORF"]
[null,null,null,null,null,"ALTRIPPE"]
[null,null,null,null,null,"ALTVILLER"]
[null,null,null,null,null,"ALTWILLER"]
[null,null,null,null,null,"ALUZE"]
[null,null,null,null,null,"ALVIGNAC"]
[null,null,null,null,null,"ALVIMARE"]
[null,null,null,null,null,"ALZEN"]
[null,null,null,null,null,"ALZI"]
[null,null,null,null,null,"ALZING"]
[null,null,null,null,null,"ALZON"]
[null,null,null,null,null,"ALZONNE"]
[null,null,null,null,null,"AMAGE"]
[null,null,null,null,null,"AMAGNE"]
[null,null,null,null,null,"AMAGNEY"]
[null,null,null,null,null,"AMAILLOUX"]
[null,null,null,null,null,"AMANCE"]
[null,null,null,null,null,"AMANCEY"]
[null,null,null,null,null,"AMANCY"]
[null,null,null,null,null,"AMANGE"]
[null,null,null,null,null,"AMANLIS"]
[null,null,null,null,null,"AMANTY"]
[null,null,null,null,null,"AMANVILLERS"]
[null,null,null,null,null,"AMANZE"]
[null,null,null,null,null,"AMARENS"]
[null,null,null,null,null,"AMATHAY VESIGNEUX"]
[null,null,null,null,null,"AMAYE SUR ORNE"]
[null,null,null,null,null,"AMAYE SUR SEULLES"]
[null,null,null,null,null,"AMAZY"]
[null,null,null,null,null,"AMBACOURT"]
[null,null,null,null,null,"AMBARES ET LAGRAVE"]
[null,null,null,null,null,"AMBAX"]
[null,null,null,null,null,"AMBAZAC"]
[null,null,null,null,null,"AMBEL"]
[null,null,null,null,null,"AMBENAY"]
[null,null,null,null,null,"AMBERAC"]
[null,null,null,null,null,"AMBERIEU EN BUGEY"]
[null,null,null,null,null,"AMBERIEUX"]
[null,null,null,null,null,"AMBERIEUX EN DOMBES"]
[null,null,null,null,null,"AMBERNAC"]
[null,null,null,null,null,"AMBERRE"]
[null,null,null,null,null,"AMBERT"]
[null,null,null,null,null,"AMBES"]
[null,null,null,null,null,"AMBEYRAC"]
[null,null,null,null,null,"AMBIALET"]
[null,null,null,null,null,"AMBIEGNA"]
[null,null,null,null,null,"AMBIERLE"]
[null,null,null,null,null,"AMBIEVILLERS"]
[null,null,null,null,null,"AMBILLOU"]
[null,null,null,null,null,"AMBILLY"]
[null,null,null,null,null,"AMBLAINVILLE"]
[null,null,null,null,null,"AMBLANS ET VELOTTE"]
[null,null,null,null,null,"AMBLENY"]
[null,null,null,null,null,"AMBLEON"]
[null,null,null,null,null,"AMBLETEUSE"]
[null,null,null,null,null,"AMBLEVILLE"]
[null,null,null,null,null,"AMBLIE"]
[null,null,null,null,null,"AMBLOY"]
[null,null,null,null,null,"AMBLY FLEURY"]
[null,null,null,null,null,"AMBLY SUR MEUSE"]
[null,null,null,null,null,"AMBOISE"]
[null,null,null,null,null,"AMBON"]
[null,null,null,null,null,"AMBONIL"]
[null,null,null,null,null,"AMBONNAY"]
[null,null,null,null,null,"AMBONVILLE"]
[null,null,null,null,null,"AMBRAULT"]
[null,null,null,null,null,"AMBRES"]
[null,null,null,null,null,"AMBRICOURT"]
[null,null,null,null,null,"AMBRIEF"]
[null,null,null,null,null,"AMBRIERES"]
[null,null,null,null,null,"AMBRIERES LES VALLEES"]
[null,null,null,null,null,"AMBRINES"]
[null,null,null,null,null,"AMBRONAY"]
[null,null,null,null,null,"AMBRUGEAT"]
[null,null,null,null,null,"AMBRUMESNIL"]
[null,null,null,null,null,"AMBRUS"]
[null,null,null,null,null,"AMBUTRIX"]
[null,null,null,null,null,"AMECOURT"]
[null,null,null,null,null,"AMEL SUR L ETANG"]
[null,null,null,null,null,"AMELECOURT"]
[null,null,null,null,null,"AMELIE LES BAINS PALALDA"]
[null,null,null,null,null,"AMENDEUIX ONEIX"]
[null,null,null,null,null,"AMENONCOURT"]
[null,null,null,null,null,"AMENUCOURT"]
[null,null,null,null,null,"AMES"]
[null,null,null,null,null,"AMETTES"]
[null,null,null,null,null,"AMEUGNY"]
[null,null,null,null,null,"AMEUVELLE"]
[null,null,null,null,null,"AMFREVILLE"]
[null,null,null,null,null,"AMFREVILLE LA MI VOIE"]
[null,null,null,null,null,"AMFREVILLE LES CHAMPS"]
[null,null,null,null,null,"AMFREVILLE SOUS LES MONTS"]
[null,null,null,null,null,"AMFREVILLE ST AMAND"]
[null,null,null,null,null,"AMFREVILLE SUR ITON"]
[null,null,null,null,null,"AMFROIPRET"]
[null,null,null,null,null,"AMIENS"]
[null,null,null,null,null,"AMIFONTAINE"]
[null,null,null,null,null,"AMIGNY"]
[null,null,null,null,null,"AMIGNY ROUY"]
[null,null,null,null,null,"AMILLIS"]
[null,null,null,null,null,"AMILLY"]
[null,null,null,null,null,"AMIONS"]
[null,null,null,null,null,"AMIRAT"]
[null,null,null,null,null,"AMMERSCHWIHR"]
[null,null,null,null,null,"AMMERTZWILLER"]
[null,null,null,null,null,"AMNE"]
[null,null,null,null,null,"AMNEVILLE"]
[null,null,null,null,null,"AMONCOURT"]
[null,null,null,null,null,"AMONDANS"]
[null,null,null,null,null,"AMONT ET EFFRENEY"]
[null,null,null,null,null,"AMOROTS SUCCOS"]
[null,null,null,null,null,"AMOU"]
[null,null,null,null,null,"AMPILLY LE SEC"]
[null,null,null,null,null,"AMPILLY LES BORDES"]
[null,null,null,null,null,"AMPLEPUIS"]
[null,null,null,null,null,"AMPLIER"]
[null,null,null,null,null,"AMPOIGNE"]
[null,null,null,null,null,"AMPONVILLE"]
[null,null,null,null,null,"AMPRIANI"]
[null,null,null,null,null,"AMPUIS"]
[null,null,null,null,null,"AMPUS"]
[null,null,null,null,null,"AMURE"]
[null,null,null,null,null,"AMY"]
[null,null,null,null,null,"ANAA"]
[null,null,null,null,null,"ANAIS"]
[null,null,null,null,null,"ANAN"]
[null,null,null,null,null,"ANCE"]
[null,null,null,null,null,"ANCEAUMEVILLE"]
[null,null,null,null,null,"ANCELLE"]
[null,null,null,null,null,"ANCEMONT"]
[null,null,null,null,null,"ANCENIS"]
[null,null,null,null,null,"ANCERVILLE"]
[null,null,null,null,null,"ANCERVILLER"]
[null,null,null,null,null,"ANCEY"]
[null,null,null,null,null,"ANCHAMPS"]
[null,null,null,null,null,"ANCHE"]
[null,null,null,null,null,"ANCHENONCOURT ET CHAZEL"]
[null,null,null,null,null,"ANCIENVILLE"]
[null,null,null,null,null,"ANCIER"]
[null,null,null,null,null,"ANCINNES"]
[null,null,null,null,null,"ANCIZAN"]
[null,null,null,null,null,"ANCONE"]
[null,null,null,null,null,"ANCOURT"]
[null,null,null,null,null,"ANCOURTEVILLE SUR HERICOURT"]
[null,null,null,null,null,"ANCRETIEVILLE ST VICTOR"]
[null,null,null,null,null,"ANCRETTEVILLE SUR MER"]
[null,null,null,null,null,"ANCTEVILLE"]
[null,null,null,null,null,"ANCTOVILLE"]
[null,null,null,null,null,"ANCTOVILLE SUR BOSCQ"]
[null,null,null,null,null,"ANCY"]
[null,null,null,null,null,"ANCY DORNOT"]
[null,null,null,null,null,"ANCY LE FRANC"]
[null,null,null,null,null,"ANCY LE LIBRE"]
[null,null,null,null,null,"ANDAINVILLE"]
[null,null,null,null,null,"ANDANCE"]
[null,null,null,null,null,"ANDANCETTE"]
[null,null,null,null,null,"ANDE"]
[null,null,null,null,null,"ANDECHY"]
[null,null,null,null,null,"ANDEL"]
[null,null,null,null,null,"ANDELAIN"]
[null,null,null,null,null,"ANDELAROCHE"]
[null,null,null,null,null,"ANDELARRE"]
[null,null,null,null,null,"ANDELARROT"]
[null,null,null,null,null,"ANDELAT"]
[null,null,null,null,null,"ANDELNANS"]
[null,null,null,null,null,"ANDELOT BLANCHEVILLE"]
[null,null,null,null,null,"ANDELOT EN MONTAGNE"]
[null,null,null,null,null,"ANDELOT MORVAL"]
[null,null,null,null,null,"ANDELU"]
[null,null,null,null,null,"ANDERNAY"]
[null,null,null,null,null,"ANDERNOS LES BAINS"]
[null,null,null,null,null,"ANDERNY"]
[null,null,null,null,null,"ANDERT ET CONDON"]
[null,null,null,null,null,"ANDEVILLE"]
[null,null,null,null,null,"ANDILLAC"]
[null,null,null,null,null,"ANDILLY"]
[null,null,null,null,null,"ANDILLY EN BASSIGNY"]
[null,null,null,null,null,"ANDIRAN"]
[null,null,null,null,null,"ANDLAU"]
[null,null,null,null,null,"ANDOINS"]
[null,null,null,null,null,"ANDOLSHEIM"]
[null,null,null,null,null,"ANDON"]
[null,null,null,null,null,"ANDONVILLE"]
[null,null,null,null,null,"ANDORNAY"]
[null,null,null,null,null,"ANDOUILLE"]
[null,null,null,null,null,"ANDOUILLE NEUVILLE"]
[null,null,null,null,null,"ANDOUQUE"]
[null,null,null,null,null,"ANDREIN"]
[null,null,null,null,null,"ANDRES"]
[null,null,null,null,null,"ANDREST"]
[null,null,null,null,null,"ANDRESY"]
[null,null,null,null,null,"ANDREZEL"]
[null,null,null,null,null,"ANDREZIEUX BOUTHEON"]
[null,null,null,null,null,"ANDRYES"]
[null,null,null,null,null,"ANDUZE"]
[null,null,null,null,null,"ANERES"]
[null,null,null,null,null,"ANET"]
[null,null,null,null,null,"ANGAIS"]
[null,null,null,null,null,"ANGE"]
[null,null,null,null,null,"ANGEAC CHAMPAGNE"]
[null,null,null,null,null,"ANGEAC CHARENTE"]
[null,null,null,null,null,"ANGECOURT"]
[null,null,null,null,null,"ANGEDUC"]
[null,null,null,null,null,"ANGELY"]
[null,null,null,null,null,"ANGEOT"]
[null,null,null,null,null,"ANGERS"]
[null,null,null,null,null,"ANGERVILLE"]
[null,null,null,null,null,"ANGERVILLE BAILLEUL"]
[null,null,null,null,null,"ANGERVILLE L ORCHER"]
[null,null,null,null,null,"ANGERVILLE LA CAMPAGNE"]
[null,null,null,null,null,"ANGERVILLE LA MARTEL"]
[null,null,null,null,null,"ANGERVILLIERS"]
[null,null,null,null,null,"ANGEVILLE"]
[null,null,null,null,null,"ANGEVILLERS"]
[null,null,null,null,null,"ANGICOURT"]
[null,null,null,null,null,"ANGIENS"]
[null,null,null,null,null,"ANGIREY"]
[null,null,null,null,null,"ANGIVILLERS"]
[null,null,null,null,null,"ANGLADE"]
[null,null,null,null,null,"ANGLARDS DE SALERS"]
[null,null,null,null,null,"ANGLARDS DE ST FLOUR"]
[null,null,null,null,null,"ANGLARS"]
[null,null,null,null,null,"ANGLARS JUILLAC"]
[null,null,null,null,null,"ANGLARS NOZAC"]
[null,null,null,null,null,"ANGLARS ST FELIX"]
[null,null,null,null,null,"ANGLEFORT"]
[null,null,null,null,null,"ANGLEMONT"]
[null,null,null,null,null,"ANGLES"]
[null,null,null,null,null,"ANGLES SUR L ANGLIN"]
[null,null,null,null,null,"ANGLESQUEVILLE L ESNEVAL"]
[null,null,null,null,null,"ANGLESQUEVILLE LA BRAS LONG"]
[null,null,null,null,null,"ANGLET"]
[null,null,null,null,null,"ANGLIERS"]
[null,null,null,null,null,"ANGLURE"]
[null,null,null,null,null,"ANGLURE SOUS DUN"]
[null,null,null,null,null,"ANGLUZELLES ET COURCELLES"]
[null,null,null,null,null,"ANGOISSE"]
[null,null,null,null,null,"ANGOMONT"]
[null,null,null,null,null,"ANGOS"]
[null,null,null,null,null,"ANGOULEME"]
[null,null,null,null,null,"ANGOULINS"]
[null,null,null,null,null,"ANGOUME"]
[null,null,null,null,null,"ANGOUS"]
[null,null,null,null,null,"ANGOUSTRINE VILLENEUVE DES ESCALDES"]
[null,null,null,null,null,"ANGOVILLE"]
[null,null,null,null,null,"ANGRES"]
[null,null,null,null,null,"ANGRESSE"]
[null,null,null,null,null,"ANGRIE"]
[null,null,null,null,null,"ANGUILCOURT LE SART"]
[null,null,null,null,null,"ANGY"]
[null,null,null,null,null,"ANHAUX"]
[null,null,null,null,null,"ANHIERS"]
[null,null,null,null,null,"ANIANE"]
[null,null,null,null,null,"ANICHE"]
[null,null,null,null,null,"ANISY"]
[null,null,null,null,null,"ANIZY LE CHATEAU"]
[null,null,null,null,null,"ANJEUX"]
[null,null,null,null,null,"ANJOU"]
[null,null,null,null,null,"ANJOUIN"]
[null,null,null,null,null,"ANJOUTEY"]
[null,null,null,null,null,"ANLA"]
[null,null,null,null,null,"ANLEZY"]
[null,null,null,null,null,"ANLHIAC"]
[null,null,null,null,null,"ANNAY"]
[null,null,null,null,null,"ANNAY LA COTE"]
[null,null,null,null,null,"ANNAY SUR SEREIN"]
[null,null,null,null,null,"ANNEBAULT"]
[null,null,null,null,null,"ANNECY"]
[null,null,null,null,null,"ANNECY LE VIEUX"]
[null,null,null,null,null,"ANNELLES"]
[null,null,null,null,null,"ANNEMASSE"]
[null,null,null,null,null,"ANNEOT"]
[null,null,null,null,null,"ANNEPONT"]
[null,null,null,null,null,"ANNEQUIN"]
[null,null,null,null,null,"ANNESSE ET BEAULIEU"]
[null,null,null,null,null,"ANNET SUR MARNE"]
[null,null,null,null,null,"ANNEUX"]
[null,null,null,null,null,"ANNEVILLE AMBOURVILLE"]
[null,null,null,null,null,"ANNEVILLE EN SAIRE"]
[null,null,null,null,null,"ANNEVILLE LA PRAIRIE"]
[null,null,null,null,null,"ANNEVILLE SUR MER"]
[null,null,null,null,null,"ANNEVILLE SUR SCIE"]
[null,null,null,null,null,"ANNEYRON"]
[null,null,null,null,null,"ANNEZAY"]
[null,null,null,null,null,"ANNEZIN"]
[null,null,null,null,null,"ANNOEULLIN"]
[null,null,null,null,null,"ANNOIRE"]
[null,null,null,null,null,"ANNOIS"]
[null,null,null,null,null,"ANNOISIN CHATELANS"]
[null,null,null,null,null,"ANNOIX"]
[null,null,null,null,null,"ANNONAY"]
[null,null,null,null,null,"ANNONVILLE"]
[null,null,null,null,null,"ANNOT"]
[null,null,null,null,null,"ANNOUVILLE VILMESNIL"]
[null,null,null,null,null,"ANNOUX"]
[null,null,null,null,null,"ANNOVILLE"]
[null,null,null,null,null,"ANOR"]
[null,null,null,null,null,"ANOS"]
[null,null,null,null,null,"ANOST"]
[null,null,null,null,null,"ANOULD"]
[null,null,null,null,null,"ANOUX"]
[null,null,null,null,null,"ANOYE"]
[null,null,null,null,null,"ANQUETIERVILLE"]
[null,null,null,null,null,"ANROSEY"]
[null,null,null,null,null,"ANSAC SUR VIENNE"]
[null,null,null,null,null,"ANSACQ"]
[null,null,null,null,null,"ANSAN"]
[null,null,null,null,null,"ANSAUVILLE"]
[null,null,null,null,null,"ANSAUVILLERS"]
[null,null,null,null,null,"ANSE"]
[null,null,null,null,null,"ANSE BERTRAND"]
[null,null,null,null,null,"ANSIGNAN"]
[null,null,null,null,null,"ANSOST"]
[null,null,null,null,null,"ANSOUIS"]
[null,null,null,null,null,"ANSTAING"]
[null,null,null,null,null,"ANTAGNAC"]
[null,null,null,null,null,"ANTERRIEUX"]
[null,null,null,null,null,"ANTEUIL"]
[null,null,null,null,null,"ANTEZANT LA CHAPELLE"]
[null,null,null,null,null,"ANTHE"]
[null,null,null,null,null,"ANTHELUPT"]
[null,null,null,null,null,"ANTHENAY"]
[null,null,null,null,null,"ANTHENY"]
[null,null,null,null,null,"ANTHEUIL"]
[null,null,null,null,null,"ANTHEUIL PORTES"]
[null,null,null,null,null,"ANTHIEN"]
[null,null,null,null,null,"ANTHON"]
[null,null,null,null,null,"ANTHY SUR LEMAN"]
[null,null,null,null,null,"ANTIBES"]
[null,null,null,null,null,"ANTICHAN"]
[null,null,null,null,null,"ANTICHAN DE FRONTIGNES"]
[null,null,null,null,null,"ANTIGNAC"]
[null,null,null,null,null,"ANTIGNY"]
[null,null,null,null,null,"ANTIGNY LA VILLE"]
[null,null,null,null,null,"ANTILLY"]
[null,null,null,null,null,"ANTIN"]
[null,null,null,null,null,"ANTISANTI"]
[null,null,null,null,null,"ANTIST"]
[null,null,null,null,null,"ANTOGNY LE TILLAC"]
[null,null,null,null,null,"ANTOIGNE"]
[null,null,null,null,null,"ANTOINGT"]
[null,null,null,null,null,"ANTONNE ET TRIGONANT"]
[null,null,null,null,null,"ANTONY"]
[null,null,null,null,null,"ANTRAIGUES SUR VOLANE"]
[null,null,null,null,null,"ANTRAIN"]
[null,null,null,null,null,"ANTRAN"]
[null,null,null,null,null,"ANTRAS"]
[null,null,null,null,null,"ANTRENAS"]
[null,null,null,null,null,"ANTUGNAC"]
[null,null,null,null,null,"ANTULLY"]
[null,null,null,null,null,"ANVEVILLE"]
[null,null,null,null,null,"ANVILLE"]
[null,null,null,null,null,"ANVIN"]
[null,null,null,null,null,"ANY MARTIN RIEUX"]
[null,null,null,null,null,"ANZAT LE LUGUET"]
[null,null,null,null,null,"ANZELING"]
[null,null,null,null,null,"ANZEME"]
[null,null,null,null,null,"ANZEX"]
[null,null,null,null,null,"ANZIN"]
[null,null,null,null,null,"ANZIN ST AUBIN"]
[null,null,null,null,null,"ANZY LE DUC"]
[null,null,null,null,null,"AOSTE"]
[null,null,null,null,null,"AOUGNY"]
[null,null,null,null,null,"AOUSTE"]
[null,null,null,null,null,"AOUSTE SUR SYE"]
[null,null,null,null,null,"AOUZE"]
[null,null,null,null,null,"APACH"]
[null,null,null,null,null,"APATOU"]
[null,null,null,null,null,"APCHAT"]
[null,null,null,null,null,"APCHON"]
[null,null,null,null,null,"APINAC"]
[null,null,null,null,null,"APPELLE"]
[null,null,null,null,null,"APPENAI SOUS BELLEME"]
[null,null,null,null,null,"APPENANS"]
[null,null,null,null,null,"APPENWIHR"]
[null,null,null,null,null,"APPEVILLE"]
[null,null,null,null,null,"APPEVILLE ANNEBAULT"]
[null,null,null,null,null,"APPIETTO"]
[null,null,null,null,null,"APPILLY"]
[null,null,null,null,null,"APPOIGNY"]
[null,null,null,null,null,"APPRIEU"]
[null,null,null,null,null,"APPY"]
[null,null,null,null,null,"APREMONT"]
[null,null,null,null,null,"APREMONT LA FORET"]
[null,null,null,null,null,"APREMONT SUR ALLIER"]
[null,null,null,null,null,"APREY"]
[null,null,null,null,null,"APT"]
[null,null,null,null,null,"ARABAUX"]
[null,null,null,null,null,"ARACHES LA FRASSE"]
[null,null,null,null,null,"ARAGNOUET"]
[null,null,null,null,null,"ARAGON"]
[null,null,null,null,null,"ARAMITS"]
[null,null,null,null,null,"ARAMON"]
[null,null,null,null,null,"ARANC"]
[null,null,null,null,null,"ARANCOU"]
[null,null,null,null,null,"ARANDAS"]
[null,null,null,null,null,"ARANDON"]
[null,null,null,null,null,"ARAUJUZON"]
[null,null,null,null,null,"ARAULES"]
[null,null,null,null,null,"ARAUX"]
[null,null,null,null,null,"ARBANATS"]
[null,null,null,null,null,"ARBAS"]
[null,null,null,null,null,"ARBECEY"]
[null,null,null,null,null,"ARBELLARA"]
[null,null,null,null,null,"ARBENT"]
[null,null,null,null,null,"ARBEOST"]
[null,null,null,null,null,"ARBERATS SILLEGUE"]
[null,null,null,null,null,"ARBIGNY"]
[null,null,null,null,null,"ARBIGNY SOUS VARENNES"]
[null,null,null,null,null,"ARBIN"]
[null,null,null,null,null,"ARBIS"]
[null,null,null,null,null,"ARBLADE LE BAS"]
[null,null,null,null,null,"ARBLADE LE HAUT"]
[null,null,null,null,null,"ARBOIS"]
[null,null,null,null,null,"ARBON"]
[null,null,null,null,null,"ARBONNE"]
[null,null,null,null,null,"ARBONNE LA FORET"]
[null,null,null,null,null,"ARBORAS"]
[null,null,null,null,null,"ARBORI"]
[null,null,null,null,null,"ARBOT"]
[null,null,null,null,null,"ARBOUANS"]
[null,null,null,null,null,"ARBOUCAVE"]
[null,null,null,null,null,"ARBOUET SUSSAUTE"]
[null,null,null,null,null,"ARBOURSE"]
[null,null,null,null,null,"ARBOUSSOLS"]
[null,null,null,null,null,"ARBOYS EN BUGEY"]
[null,null,null,null,null,"ARBRISSEL"]
[null,null,null,null,null,"ARBUS"]
[null,null,null,null,null,"ARBUSIGNY"]
[null,null,null,null,null,"ARC EN BARROIS"]
[null,null,null,null,null,"ARC ET SENANS"]
[null,null,null,null,null,"ARC LES GRAY"]
[null,null,null,null,null,"ARC SOUS CICON"]
[null,null,null,null,null,"ARC SOUS MONTENOT"]
[null,null,null,null,null,"ARC SUR TILLE"]
[null,null,null,null,null,"ARCACHON"]
[null,null,null,null,null,"ARCAIS"]
[null,null,null,null,null,"ARCAMBAL"]
[null,null,null,null,null,"ARCANGUES"]
[null,null,null,null,null,"ARCAY"]
[null,null,null,null,null,"ARCEAU"]
[null,null,null,null,null,"ARCENANT"]
[null,null,null,null,null,"ARCENS"]
[null,null,null,null,null,"ARCES"]
[null,null,null,null,null,"ARCES DILO"]
[null,null,null,null,null,"ARCEY"]
[null,null,null,null,null,"ARCHAIL"]
[null,null,null,null,null,"ARCHAMPS"]
[null,null,null,null,null,"ARCHELANGE"]
[null,null,null,null,null,"ARCHES"]
[null,null,null,null,null,"ARCHETTES"]
[null,null,null,null,null,"ARCHIAC"]
[null,null,null,null,null,"ARCHIGNAC"]
[null,null,null,null,null,"ARCHIGNAT"]
[null,null,null,null,null,"ARCHIGNY"]
[null,null,null,null,null,"ARCHINGEAY"]
[null,null,null,null,null,"ARCHON"]
[null,null,null,null,null,"ARCINGES"]
[null,null,null,null,null,"ARCINS"]
[null,null,null,null,null,"ARCIS LE PONSART"]
[null,null,null,null,null,"ARCIS SUR AUBE"]
[null,null,null,null,null,"ARCIZAC ADOUR"]
[null,null,null,null,null,"ARCIZAC EZ ANGLES"]
[null,null,null,null,null,"ARCIZANS AVANT"]
[null,null,null,null,null,"ARCIZANS DESSUS"]
[null,null,null,null,null,"ARCOMPS"]
[null,null,null,null,null,"ARCON"]
[null,null,null,null,null,"ARCONCEY"]
[null,null,null,null,null,"ARCONNAY"]
[null,null,null,null,null,"ARCONSAT"]
[null,null,null,null,null,"ARCONVILLE"]
[null,null,null,null,null,"ARCUEIL"]
[null,null,null,null,null,"ARCY STE RESTITUE"]
[null,null,null,null,null,"ARCY SUR CURE"]
[null,null,null,null,null,"ARDELLES"]
[null,null,null,null,null,"ARDELU"]
[null,null,null,null,null,"ARDENAIS"]
[null,null,null,null,null,"ARDENAY SUR MERIZE"]
[null,null,null,null,null,"ARDENGOST"]
[null,null,null,null,null,"ARDENTES"]
[null,null,null,null,null,"ARDES"]
[null,null,null,null,null,"ARDEUIL ET MONTFAUXELLES"]
[null,null,null,null,null,"ARDIEGE"]
[null,null,null,null,null,"ARDILLEUX"]
[null,null,null,null,null,"ARDILLIERES"]
[null,null,null,null,null,"ARDIN"]
[null,null,null,null,null,"ARDIZAS"]
[null,null,null,null,null,"ARDOIX"]
[null,null,null,null,null,"ARDON"]
[null,null,null,null,null,"ARDOUVAL"]
[null,null,null,null,null,"ARDRES"]
[null,null,null,null,null,"AREGNO"]
[null,null,null,null,null,"AREINES"]
[null,null,null,null,null,"ARELAUNE EN SEINE"]
[null,null,null,null,null,"AREN"]
[null,null,null,null,null,"ARENGOSSE"]
[null,null,null,null,null,"ARENTHON"]
[null,null,null,null,null,"ARES"]
[null,null,null,null,null,"ARESCHES"]
[null,null,null,null,null,"ARESSY"]
[null,null,null,null,null,"ARETTE"]
[null,null,null,null,null,"ARFEUILLE CHATAIN"]
[null,null,null,null,null,"ARFEUILLES"]
[null,null,null,null,null,"ARFONS"]
[null,null,null,null,null,"ARGAGNON"]
[null,null,null,null,null,"ARGANCHY"]
[null,null,null,null,null,"ARGANCON"]
[null,null,null,null,null,"ARGANCY"]
[null,null,null,null,null,"ARGEIN"]
[null,null,null,null,null,"ARGELES BAGNERES"]
[null,null,null,null,null,"ARGELES GAZOST"]
[null,null,null,null,null,"ARGELES SUR MER"]
[null,null,null,null,null,"ARGELIERS"]
[null,null,null,null,null,"ARGELLIERS"]
[null,null,null,null,null,"ARGELOS"]
[null,null,null,null,null,"ARGELOUSE"]
[null,null,null,null,null,"ARGENCES"]
[null,null,null,null,null,"ARGENCES EN AUBRAC"]
[null,null,null,null,null,"ARGENS MINERVOIS"]
[null,null,null,null,null,"ARGENT SUR SAULDRE"]
[null,null,null,null,null,"ARGENTAN"]
[null,null,null,null,null,"ARGENTAT"]
[null,null,null,null,null,"ARGENTENAY"]
[null,null,null,null,null,"ARGENTEUIL"]
[null,null,null,null,null,"ARGENTEUIL SUR ARMANCON"]
[null,null,null,null,null,"ARGENTIERES"]
[null,null,null,null,null,"ARGENTINE"]
[null,null,null,null,null,"ARGENTON"]
[null,null,null,null,null,"ARGENTON L EGLISE"]
[null,null,null,null,null,"ARGENTON NOTRE DAME"]
[null,null,null,null,null,"ARGENTON SUR CREUSE"]
[null,null,null,null,null,"ARGENTONAY"]
[null,null,null,null,null,"ARGENTRE"]
[null,null,null,null,null,"ARGENTRE DU PLESSIS"]
[null,null,null,null,null,"ARGENVIERES"]
[null,null,null,null,null,"ARGENVILLIERS"]
[null,null,null,null,null,"ARGERS"]
[null,null,null,null,null,"ARGET"]
[null,null,null,null,null,"ARGIESANS"]
[null,null,null,null,null,"ARGILLIERES"]
[null,null,null,null,null,"ARGILLIERS"]
[null,null,null,null,null,"ARGILLY"]
[null,null,null,null,null,"ARGIS"]
[null,null,null,null,null,"ARGIUSTA MORICCIO"]
[null,null,null,null,null,"ARGOEUVES"]
[null,null,null,null,null,"ARGOL"]
[null,null,null,null,null,"ARGONAY"]
[null,null,null,null,null,"ARGOUGES"]
[null,null,null,null,null,"ARGOULES"]
[null,null,null,null,null,"ARGUEIL"]
[null,null,null,null,null,"ARGUEL"]
[null,null,null,null,null,"ARGUENOS"]
[null,null,null,null,null,"ARGUT DESSOUS"]
[null,null,null,null,null,"ARGY"]
[null,null,null,null,null,"ARHANSUS"]
[null,null,null,null,null,"ARIES ESPENAN"]
[null,null,null,null,null,"ARIFAT"]
[null,null,null,null,null,"ARIGNAC"]
[null,null,null,null,null,"ARINTHOD"]
[null,null,null,null,null,"ARITH"]
[null,null,null,null,null,"ARJUZANX"]
[null,null,null,null,null,"ARLANC"]
[null,null,null,null,null,"ARLAY"]
[null,null,null,null,null,"ARLEBOSC"]
[null,null,null,null,null,"ARLEMPDES"]
[null,null,null,null,null,"ARLES"]
[null,null,null,null,null,"ARLES SUR TECH"]
[null,null,null,null,null,"ARLET"]
[null,null,null,null,null,"ARLEUF"]
[null,null,null,null,null,"ARLEUX"]
[null,null,null,null,null,"ARLEUX EN GOHELLE"]
[null,null,null,null,null,"ARLOS"]
[null,null,null,null,null,"ARMAILLE"]
[null,null,null,null,null,"ARMANCOURT"]
[null,null,null,null,null,"ARMAUCOURT"]
[null,null,null,null,null,"ARMBOUTS CAPPEL"]
[null,null,null,null,null,"ARMEAU"]
[null,null,null,null,null,"ARMENDARITS"]
[null,null,null,null,null,"ARMENTIERES"]
[null,null,null,null,null,"ARMENTIERES EN BRIE"]
[null,null,null,null,null,"ARMENTIERES SUR AVRE"]
[null,null,null,null,null,"ARMENTIERES SUR OURCQ"]
[null,null,null,null,null,"ARMENTIEUX"]
[null,null,null,null,null,"ARMES"]
[null,null,null,null,null,"ARMILLAC"]
[null,null,null,null,null,"ARMISSAN"]
[null,null,null,null,null,"ARMIX"]
[null,null,null,null,null,"ARMOUS ET CAU"]
[null,null,null,null,null,"ARMOY"]
[null,null,null,null,null,"ARNAC"]
[null,null,null,null,null,"ARNAC LA POSTE"]
[null,null,null,null,null,"ARNAC POMPADOUR"]
[null,null,null,null,null,"ARNAC SUR DOURDOU"]
[null,null,null,null,null,"ARNAGE"]
[null,null,null,null,null,"ARNANCOURT"]
[null,null,null,null,null,"ARNAS"]
[null,null,null,null,null,"ARNAUD GUILHEM"]
[null,null,null,null,null,"ARNAVE"]
[null,null,null,null,null,"ARNAVILLE"]
[null,null,null,null,null,"ARNAY LE DUC"]
[null,null,null,null,null,"ARNAY SOUS VITTEAUX"]
[null,null,null,null,null,"ARNAYON"]
[null,null,null,null,null,"ARNE"]
[null,null,null,null,null,"ARNEGUY"]
[null,null,null,null,null,"ARNEKE"]
[null,null,null,null,null,"ARNICOURT"]
[null,null,null,null,null,"ARNIERES SUR ITON"]
[null,null,null,null,null,"ARNOS"]
[null,null,null,null,null,"ARNOUVILLE"]
[null,null,null,null,null,"ARNOUVILLE LES MANTES"]
[null,null,null,null,null,"AROFFE"]
[null,null,null,null,null,"AROMAS"]
[null,null,null,null,null,"ARON"]
[null,null,null,null,null,"AROUE ITHOROTS OLHAIBY"]
[null,null,null,null,null,"AROZ"]
[null,null,null,null,null,"ARPAILLARGUES ET AUREILLAC"]
[null,null,null,null,null,"ARPAJON"]
[null,null,null,null,null,"ARPAJON SUR CERE"]
[null,null,null,null,null,"ARPAVON"]
[null,null,null,null,null,"ARPENANS"]
[null,null,null,null,null,"ARPHEUILLES"]
[null,null,null,null,null,"ARPHEUILLES ST PRIEST"]
[null,null,null,null,null,"ARPHY"]
[null,null,null,null,null,"ARQUENAY"]
[null,null,null,null,null,"ARQUES"]
[null,null,null,null,null,"ARQUES LA BATAILLE"]
[null,null,null,null,null,"ARQUETTES EN VAL"]
[null,null,null,null,null,"ARQUEVES"]
[null,null,null,null,null,"ARQUIAN"]
[null,null,null,null,null,"ARRACOURT"]
[null,null,null,null,null,"ARRADON"]
[null,null,null,null,null,"ARRAINCOURT"]
[null,null,null,null,null,"ARRANCOURT"]
[null,null,null,null,null,"ARRANCY"]
[null,null,null,null,null,"ARRANCY SUR CRUSNE"]
[null,null,null,null,null,"ARRANS"]
[null,null,null,null,null,"ARRAS"]
[null,null,null,null,null,"ARRAS EN LAVEDAN"]
[null,null,null,null,null,"ARRAS SUR RHONE"]
[null,null,null,null,null,"ARRAST LARREBIEU"]
[null,null,null,null,null,"ARRAUTE CHARRITTE"]
[null,null,null,null,null,"ARRAYE ET HAN"]
[null,null,null,null,null,"ARRAYOU LAHITTE"]
[null,null,null,null,null,"ARRE"]
[null,null,null,null,null,"ARREAU"]
[null,null,null,null,null,"ARRELLES"]
[null,null,null,null,null,"ARREMBECOURT"]
[null,null,null,null,null,"ARRENES"]
[null,null,null,null,null,"ARRENS MARSOUS"]
[null,null,null,null,null,"ARRENTES DE CORCIEUX"]
[null,null,null,null,null,"ARRENTIERES"]
[null,null,null,null,null,"ARREST"]
[null,null,null,null,null,"ARREUX"]
[null,null,null,null,null,"ARRIANCE"]
[null,null,null,null,null,"ARRICAU BORDES"]
[null,null,null,null,null,"ARRIEN"]
[null,null,null,null,null,"ARRIEN EN BETHMALE"]
[null,null,null,null,null,"ARRIGAS"]
[null,null,null,null,null,"ARRIGNY"]
[null,null,null,null,null,"ARRO"]
[null,null,null,null,null,"ARRODETS"]
[null,null,null,null,null,"ARRODETS EZ ANGLES"]
[null,null,null,null,null,"ARROMANCHES LES BAINS"]
[null,null,null,null,null,"ARRONNES"]
[null,null,null,null,null,"ARRONVILLE"]
[null,null,null,null,null,"ARROS DE NAY"]
[null,null,null,null,null,"ARROSES"]
[null,null,null,null,null,"ARROU"]
[null,null,null,null,null,"ARROUEDE"]
[null,null,null,null,null,"ARROUT"]
[null,null,null,null,null,"ARRY"]
[null,null,null,null,null,"ARS"]
[null,null,null,null,null,"ARS EN RE"]
[null,null,null,null,null,"ARS LAQUENEXY"]
[null,null,null,null,null,"ARS LES FAVETS"]
[null,null,null,null,null,"ARS SUR FORMANS"]
[null,null,null,null,null,"ARS SUR MOSELLE"]
[null,null,null,null,null,"ARSAC"]
[null,null,null,null,null,"ARSAC EN VELAY"]
[null,null,null,null,null,"ARSAGUE"]
[null,null,null,null,null,"ARSANS"]
[null,null,null,null,null,"ARSONVAL"]
[null,null,null,null,null,"ARSURE ARSURETTE"]
[null,null,null,null,null,"ARSY"]
[null,null,null,null,null,"ART SUR MEURTHE"]
[null,null,null,null,null,"ARTAGNAN"]
[null,null,null,null,null,"ARTAISE LE VIVIER"]
[null,null,null,null,null,"ARTAIX"]
[null,null,null,null,null,"ARTALENS SOUIN"]
[null,null,null,null,null,"ARTANNES SUR INDRE"]
[null,null,null,null,null,"ARTANNES SUR THOUET"]
[null,null,null,null,null,"ARTAS"]
[null,null,null,null,null,"ARTASSENX"]
[null,null,null,null,null,"ARTEMARE"]
[null,null,null,null,null,"ARTEMPS"]
[null,null,null,null,null,"ARTENAY"]
[null,null,null,null,null,"ARTHAZ PONT NOTRE DAME"]
[null,null,null,null,null,"ARTHEL"]
[null,null,null,null,null,"ARTHEMONAY"]
[null,null,null,null,null,"ARTHENAC"]
[null,null,null,null,null,"ARTHES"]
[null,null,null,null,null,"ARTHEZ D ARMAGNAC"]
[null,null,null,null,null,"ARTHEZ D ASSON"]
[null,null,null,null,null,"ARTHEZ DE BEARN"]
[null,null,null,null,null,"ARTHEZE"]
[null,null,null,null,null,"ARTHIES"]
[null,null,null,null,null,"ARTHON"]
[null,null,null,null,null,"ARTHONNAY"]
[null,null,null,null,null,"ARTHUN"]
[null,null,null,null,null,"ARTIGAT"]
[null,null,null,null,null,"ARTIGNOSC SUR VERDON"]
[null,null,null,null,null,"ARTIGUE"]
[null,null,null,null,null,"ARTIGUELOUTAN"]
[null,null,null,null,null,"ARTIGUELOUVE"]
[null,null,null,null,null,"ARTIGUEMY"]
[null,null,null,null,null,"ARTIGUES"]
[null,null,null,null,null,"ARTIGUES PRES BORDEAUX"]
[null,null,null,null,null,"ARTINS"]
[null,null,null,null,null,"ARTIX"]
[null,null,null,null,null,"ARTOLSHEIM"]
[null,null,null,null,null,"ARTONNE"]
[null,null,null,null,null,"ARTRES"]
[null,null,null,null,null,"ARTZENHEIM"]
[null,null,null,null,null,"ARUDY"]
[null,null,null,null,null,"ARUE"]
[null,null,null,null,null,"ARUTUA"]
[null,null,null,null,null,"ARVERT"]
[null,null,null,null,null,"ARVEYRES"]
[null,null,null,null,null,"ARVIEU"]
[null,null,null,null,null,"ARVIEUX"]
[null,null,null,null,null,"ARVIGNA"]
[null,null,null,null,null,"ARVILLARD"]
[null,null,null,null,null,"ARVILLE"]
[null,null,null,null,null,"ARVILLERS"]
[null,null,null,null,null,"ARX"]
[null,null,null,null,null,"ARZACQ ARRAZIGUET"]
[null,null,null,null,null,"ARZAL"]
[null,null,null,null,null,"ARZANO"]
[null,null,null,null,null,"ARZAY"]
[null,null,null,null,null,"ARZEMBOUY"]
[null,null,null,null,null,"ARZENC D APCHER"]
[null,null,null,null,null,"ARZENC DE RANDON"]
[null,null,null,null,null,"ARZENS"]
[null,null,null,null,null,"ARZILLIERES NEUVILLE"]
[null,null,null,null,null,"ARZON"]
[null,null,null,null,null,"ARZVILLER"]
[null,null,null,null,null,"ASASP ARROS"]
[null,null,null,null,null,"ASCAIN"]
[null,null,null,null,null,"ASCARAT"]
[null,null,null,null,null,"ASCHBACH"]
[null,null,null,null,null,"ASCHERES LE MARCHE"]
[null,null,null,null,null,"ASCO"]
[null,null,null,null,null,"ASCOU"]
[null,null,null,null,null,"ASCOUX"]
[null,null,null,null,null,"ASCROS"]
[null,null,null,null,null,"ASFELD"]
[null,null,null,null,null,"ASLONNES"]
[null,null,null,null,null,"ASNAN"]
[null,null,null,null,null,"ASNANS BEAUVOISIN"]
[null,null,null,null,null,"ASNELLES"]
[null,null,null,null,null,"ASNIERES"]
[null,null,null,null,null,"ASNIERES EN BESSIN"]
[null,null,null,null,null,"ASNIERES EN MONTAGNE"]
[null,null,null,null,null,"ASNIERES EN POITOU"]
[null,null,null,null,null,"ASNIERES LA GIRAUD"]
[null,null,null,null,null,"ASNIERES LES DIJON"]
[null,null,null,null,null,"ASNIERES SOUS BOIS"]
[null,null,null,null,null,"ASNIERES SUR BLOUR"]
[null,null,null,null,null,"ASNIERES SUR NOUERE"]
[null,null,null,null,null,"ASNIERES SUR OISE"]
[null,null,null,null,null,"ASNIERES SUR SAONE"]
[null,null,null,null,null,"ASNIERES SUR SEINE"]
[null,null,null,null,null,"ASNIERES SUR VEGRE"]
[null,null,null,null,null,"ASNOIS"]
[null,null,null,null,null,"ASPACH"]
[null,null,null,null,null,"ASPACH LE BAS"]
[null,null,null,null,null,"ASPACH MICHELBACH"]
[null,null,null,null,null,"ASPERES"]
[null,null,null,null,null,"ASPERJOC"]
[null,null,null,null,null,"ASPET"]
[null,null,null,null,null,"ASPIN AURE"]
[null,null,null,null,null,"ASPIN EN LAVEDAN"]
[null,null,null,null,null,"ASPIRAN"]
[null,null,null,null,null,"ASPREMONT"]
[null,null,null,null,null,"ASPRES LES CORPS"]
[null,null,null,null,null,"ASPRES SUR BUECH"]
[null,null,null,null,null,"ASPRET SARRAT"]
[null,null,null,null,null,"ASPRIERES"]
[null,null,null,null,null,"ASQUE"]
[null,null,null,null,null,"ASQUES"]
[null,null,null,null,null,"ASQUINS"]
[null,null,null,null,null,"ASSAC"]
[null,null,null,null,null,"ASSAINVILLERS"]
[null,null,null,null,null,"ASSAIS LES JUMEAUX"]
[null,null,null,null,null,"ASSAS"]
[null,null,null,null,null,"ASSAT"]
[null,null,null,null,null,"ASSAY"]
[null,null,null,null,null,"ASSE LE BERENGER"]
[null,null,null,null,null,"ASSE LE BOISNE"]
[null,null,null,null,null,"ASSE LE RIBOUL"]
[null,null,null,null,null,"ASSENAY"]
[null,null,null,null,null,"ASSENCIERES"]
[null,null,null,null,null,"ASSENONCOURT"]
[null,null,null,null,null,"ASSERAC"]
[null,null,null,null,null,"ASSEVENT"]
[null,null,null,null,null,"ASSEVILLERS"]
[null,null,null,null,null,"ASSIER"]
[null,null,null,null,null,"ASSIEU"]
[null,null,null,null,null,"ASSIGNAN"]
[null,null,null,null,null,"ASSIGNY"]
[null,null,null,null,null,"ASSIS SUR SERRE"]
[null,null,null,null,null,"ASSON"]
[null,null,null,null,null,"ASSWILLER"]
[null,null,null,null,null,"ASTAFFORT"]
[null,null,null,null,null,"ASTAILLAC"]
[null,null,null,null,null,"ASTE"]
[null,null,null,null,null,"ASTE BEON"]
[null,null,null,null,null,"ASTET"]
[null,null,null,null,null,"ASTILLE"]
[null,null,null,null,null,"ASTIS"]
[null,null,null,null,null,"ASTON"]
[null,null,null,null,null,"ASTUGUE"]
[null,null,null,null,null,"ATHEE"]
[null,null,null,null,null,"ATHEE SUR CHER"]
[null,null,null,null,null,"ATHESANS ETROITEFONTAINE"]
[null,null,null,null,null,"ATHIE"]
[null,null,null,null,null,"ATHIENVILLE"]
[null,null,null,null,null,"ATHIES"]
[null,null,null,null,null,"ATHIES SOUS LAON"]
[null,null,null,null,null,"ATHIS"]
[null,null,null,null,null,"ATHIS MONS"]
[null,null,null,null,null,"ATHIS VAL DE ROUVRE"]
[null,null,null,null,null,"ATHOS ASPIS"]
[null,null,null,null,null,"ATTAINVILLE"]
[null,null,null,null,null,"ATTANCOURT"]
[null,null,null,null,null,"ATTENSCHWILLER"]
[null,null,null,null,null,"ATTICHES"]
[null,null,null,null,null,"ATTICHY"]
[null,null,null,null,null,"ATTIGNAT"]
[null,null,null,null,null,"ATTIGNAT ONCIN"]
[null,null,null,null,null,"ATTIGNEVILLE"]
[null,null,null,null,null,"ATTIGNY"]
[null,null,null,null,null,"ATTILLONCOURT"]
[null,null,null,null,null,"ATTILLY"]
[null,null,null,null,null,"ATTIN"]
[null,null,null,null,null,"ATTON"]
[null,null,null,null,null,"ATTRAY"]
[null,null,null,null,null,"ATTRICOURT"]
[null,null,null,null,null,"AUBAGNAN"]
[null,null,null,null,null,"AUBAGNE"]
[null,null,null,null,null,"AUBAINE"]
[null,null,null,null,null,"AUBAIS"]
[null,null,null,null,null,"AUBAREDE"]
[null,null,null,null,null,"AUBAS"]
[null,null,null,null,null,"AUBAZAT"]
[null,null,null,null,null,"AUBAZINES"]
[null,null,null,null,null,"AUBE"]
[null,null,null,null,null,"AUBEGUIMONT"]
[null,null,null,null,null,"AUBENAS"]
[null,null,null,null,null,"AUBENAS LES ALPES"]
[null,null,null,null,null,"AUBENASSON"]
[null,null,null,null,null,"AUBENCHEUL AU BAC"]
[null,null,null,null,null,"AUBENCHEUL AUX BOIS"]
[null,null,null,null,null,"AUBENTON"]
[null,null,null,null,null,"AUBEPIERRE OZOUER LE REPOS"]
[null,null,null,null,null,"AUBEPIERRE SUR AUBE"]
[null,null,null,null,null,"AUBERCHICOURT"]
[null,null,null,null,null,"AUBERCOURT"]
[null,null,null,null,null,"AUBERGENVILLE"]
[null,null,null,null,null,"AUBERIVE"]
[null,null,null,null,null,"AUBERIVES EN ROYANS"]
[null,null,null,null,null,"AUBERIVES SUR VAREZE"]
[null,null,null,null,null,"AUBERMESNIL AUX ERABLES"]
[null,null,null,null,null,"AUBERMESNIL BEAUMAIS"]
[null,null,null,null,null,"AUBERS"]
[null,null,null,null,null,"AUBERTIN"]
[null,null,null,null,null,"AUBERVILLE"]
[null,null,null,null,null,"AUBERVILLE LA MANUEL"]
[null,null,null,null,null,"AUBERVILLE LA RENAULT"]
[null,null,null,null,null,"AUBERVILLIERS"]
[null,null,null,null,null,"AUBETERRE"]
[null,null,null,null,null,"AUBETERRE SUR DRONNE"]
[null,null,null,null,null,"AUBIAC"]
[null,null,null,null,null,"AUBIAT"]
[null,null,null,null,null,"AUBIERE"]
[null,null,null,null,null,"AUBIET"]
[null,null,null,null,null,"AUBIGNAN"]
[null,null,null,null,null,"AUBIGNAS"]
[null,null,null,null,null,"AUBIGNE"]
[null,null,null,null,null,"AUBIGNE RACAN"]
[null,null,null,null,null,"AUBIGNE SUR LAYON"]
[null,null,null,null,null,"AUBIGNOSC"]
[null,null,null,null,null,"AUBIGNY"]
[null,null,null,null,null,"AUBIGNY AU BAC"]
[null,null,null,null,null,"AUBIGNY AUX KAISNES"]
[null,null,null,null,null,"AUBIGNY EN ARTOIS"]
[null,null,null,null,null,"AUBIGNY EN LAONNOIS"]
[null,null,null,null,null,"AUBIGNY EN PLAINE"]
[null,null,null,null,null,"AUBIGNY LA RONCE"]
[null,null,null,null,null,"AUBIGNY LES CLOUZEAUX"]
[null,null,null,null,null,"AUBIGNY LES POTHEES"]
[null,null,null,null,null,"AUBIGNY LES SOMBERNON"]
[null,null,null,null,null,"AUBIGNY SUR NERE"]
[null,null,null,null,null,"AUBILLY"]
[null,null,null,null,null,"AUBIN"]
[null,null,null,null,null,"AUBIN ST VAAST"]
[null,null,null,null,null,"AUBINGES"]
[null,null,null,null,null,"AUBONCOURT VAUZELLES"]
[null,null,null,null,null,"AUBONNE"]
[null,null,null,null,null,"AUBORD"]
[null,null,null,null,null,"AUBOUE"]
[null,null,null,null,null,"AUBOUS"]
[null,null,null,null,null,"AUBRES"]
[null,null,null,null,null,"AUBREVILLE"]
[null,null,null,null,null,"AUBRIVES"]
[null,null,null,null,null,"AUBROMETZ"]
[null,null,null,null,null,"AUBRY DU HAINAUT"]
[null,null,null,null,null,"AUBRY EN EXMES"]
[null,null,null,null,null,"AUBRY LE PANTHOU"]
[null,null,null,null,null,"AUBURE"]
[null,null,null,null,null,"AUBUSSARGUES"]
[null,null,null,null,null,"AUBUSSON"]
[null,null,null,null,null,"AUBUSSON D AUVERGNE"]
[null,null,null,null,null,"AUBVILLERS"]
[null,null,null,null,null,"AUBY"]
[null,null,null,null,null,"AUCALEUC"]
[null,null,null,null,null,"AUCAMVILLE"]
[null,null,null,null,null,"AUCAZEIN"]
[null,null,null,null,null,"AUCELON"]
[null,null,null,null,null,"AUCEY LA PLAINE"]
[null,null,null,null,null,"AUCH"]
[null,null,null,null,null,"AUCHEL"]
[null,null,null,null,null,"AUCHONVILLERS"]
[null,null,null,null,null,"AUCHY AU BOIS"]
[null,null,null,null,null,"AUCHY LA MONTAGNE"]
[null,null,null,null,null,"AUCHY LES HESDIN"]
[null,null,null,null,null,"AUCHY LES MINES"]
[null,null,null,null,null,"AUCHY LEZ ORCHIES"]
[null,null,null,null,null,"AUCUN"]
[null,null,null,null,null,"AUDAUX"]
[null,null,null,null,null,"AUDELANGE"]
[null,null,null,null,null,"AUDELONCOURT"]
[null,null,null,null,null,"AUDEMBERT"]
[null,null,null,null,null,"AUDENGE"]
[null,null,null,null,null,"AUDERVILLE"]
[null,null,null,null,null,"AUDES"]
[null,null,null,null,null,"AUDEUX"]
[null,null,null,null,null,"AUDEVILLE"]
[null,null,null,null,null,"AUDIERNE"]
[null,null,null,null,null,"AUDIGNICOURT"]
[null,null,null,null,null,"AUDIGNIES"]
[null,null,null,null,null,"AUDIGNON"]
[null,null,null,null,null,"AUDIGNY"]
[null,null,null,null,null,"AUDINCOURT"]
[null,null,null,null,null,"AUDINCTHUN"]
[null,null,null,null,null,"AUDINGHEN"]
[null,null,null,null,null,"AUDON"]
[null,null,null,null,null,"AUDOUVILLE LA HUBERT"]
[null,null,null,null,null,"AUDREHEM"]
[null,null,null,null,null,"AUDRESSEIN"]
[null,null,null,null,null,"AUDRESSELLES"]
[null,null,null,null,null,"AUDRIEU"]
[null,null,null,null,null,"AUDRIX"]
[null,null,null,null,null,"AUDRUICQ"]
[null,null,null,null,null,"AUDUN LE ROMAN"]
[null,null,null,null,null,"AUDUN LE TICHE"]
[null,null,null,null,null,"AUENHEIM"]
[null,null,null,null,null,"AUFFARGIS"]
[null,null,null,null,null,"AUFFAY"]
[null,null,null,null,null,"AUFFERVILLE"]
[null,null,null,null,null,"AUFFREVILLE BRASSEUIL"]
[null,null,null,null,null,"AUFLANCE"]
[null,null,null,null,null,"AUGA"]
[null,null,null,null,null,"AUGAN"]
[null,null,null,null,null,"AUGE"]
[null,null,null,null,null,"AUGE ST MEDARD"]
[null,null,null,null,null,"AUGEA"]
[null,null,null,null,null,"AUGER ST VINCENT"]
[null,null,null,null,null,"AUGERANS"]
[null,null,null,null,null,"AUGERES"]
[null,null,null,null,null,"AUGEROLLES"]
[null,null,null,null,null,"AUGERS EN BRIE"]
[null,null,null,null,null,"AUGERVILLE LA RIVIERE"]
[null,null,null,null,null,"AUGICOURT"]
[null,null,null,null,null,"AUGIGNAC"]
[null,null,null,null,null,"AUGIREIN"]
[null,null,null,null,null,"AUGISEY"]
[null,null,null,null,null,"AUGNAT"]
[null,null,null,null,null,"AUGNAX"]
[null,null,null,null,null,"AUGNE"]
[null,null,null,null,null,"AUGNY"]
[null,null,null,null,null,"AUGUAISE"]
[null,null,null,null,null,"AUGY"]
[null,null,null,null,null,"AUGY SUR AUBOIS"]
[null,null,null,null,null,"AUJAC"]
[null,null,null,null,null,"AUJAN MOURNEDE"]
[null,null,null,null,null,"AUJARGUES"]
[null,null,null,null,null,"AUJEURRES"]
[null,null,null,null,null,"AUJOLS"]
[null,null,null,null,null,"AULAN"]
[null,null,null,null,null,"AULAS"]
[null,null,null,null,null,"AULHAT FLAT"]
[null,null,null,null,null,"AULLENE"]
[null,null,null,null,null,"AULNAT"]
[null,null,null,null,null,"AULNAY"]
[null,null,null,null,null,"AULNAY L AITRE"]
[null,null,null,null,null,"AULNAY LA RIVIERE"]
[null,null,null,null,null,"AULNAY SOUS BOIS"]
[null,null,null,null,null,"AULNAY SUR ITON"]
[null,null,null,null,null,"AULNAY SUR MARNE"]
[null,null,null,null,null,"AULNAY SUR MAULDRE"]
[null,null,null,null,null,"AULNOIS"]
[null,null,null,null,null,"AULNOIS EN PERTHOIS"]
[null,null,null,null,null,"AULNOIS SOUS LAON"]
[null,null,null,null,null,"AULNOIS SUR SEILLE"]
[null,null,null,null,null,"AULNOY"]
[null,null,null,null,null,"AULNOY LEZ VALENCIENNES"]
[null,null,null,null,null,"AULNOY SUR AUBE"]
[null,null,null,null,null,"AULNOYE AYMERIES"]
[null,null,null,null,null,"AULON"]
[null,null,null,null,null,"AULOS"]
[null,null,null,null,null,"AULT"]
[null,null,null,null,null,"AULUS LES BAINS"]
[null,null,null,null,null,"AULX LES CROMARY"]
[null,null,null,null,null,"AUMAGNE"]
[null,null,null,null,null,"AUMALE"]
[null,null,null,null,null,"AUMATRE"]
[null,null,null,null,null,"AUMELAS"]
[null,null,null,null,null,"AUMENANCOURT"]
[null,null,null,null,null,"AUMERVAL"]
[null,null,null,null,null,"AUMES"]
[null,null,null,null,null,"AUMESSAS"]
[null,null,null,null,null,"AUMETZ"]
[null,null,null,null,null,"AUMEVILLE LESTRE"]
[null,null,null,null,null,"AUMONT"]
[null,null,null,null,null,"AUMONT AUBRAC"]
[null,null,null,null,null,"AUMONT EN HALATTE"]
[null,null,null,null,null,"AUMUR"]
[null,null,null,null,null,"AUNAC"]
[null,null,null,null,null,"AUNAT"]
[null,null,null,null,null,"AUNAY EN BAZOIS"]
[null,null,null,null,null,"AUNAY LES BOIS"]
[null,null,null,null,null,"AUNAY SOUS AUNEAU"]
[null,null,null,null,null,"AUNAY SOUS CRECY"]
[null,null,null,null,null,"AUNAY SUR ODON"]
[null,null,null,null,null,"AUNEAU BLEURY ST SYMPHORIEN"]
[null,null,null,null,null,"AUNEUIL"]
[null,null,null,null,null,"AUNOU LE FAUCON"]
[null,null,null,null,null,"AUNOU SUR ORNE"]
[null,null,null,null,null,"AUPPEGARD"]
[null,null,null,null,null,"AUPS"]
[null,null,null,null,null,"AURADE"]
[null,null,null,null,null,"AURADOU"]
[null,null,null,null,null,"AURAGNE"]
[null,null,null,null,null,"AURAY"]
[null,null,null,null,null,"AURE"]
[null,null,null,null,null,"AUREC SUR LOIRE"]
[null,null,null,null,null,"AUREIL"]
[null,null,null,null,null,"AUREILHAN"]
[null,null,null,null,null,"AUREILLE"]
[null,null,null,null,null,"AUREL"]
[null,null,null,null,null,"AURENSAN"]
[null,null,null,null,null,"AUREVILLE"]
[null,null,null,null,null,"AURIAC"]
[null,null,null,null,null,"AURIAC DU PERIGORD"]
[null,null,null,null,null,"AURIAC L EGLISE"]
[null,null,null,null,null,"AURIAC LAGAST"]
[null,null,null,null,null,"AURIAC SUR DROPT"]
[null,null,null,null,null,"AURIAC SUR VENDINELLE"]
[null,null,null,null,null,"AURIAT"]
[null,null,null,null,null,"AURIBAIL"]
[null,null,null,null,null,"AURIBEAU"]
[null,null,null,null,null,"AURIBEAU SUR SIAGNE"]
[null,null,null,null,null,"AURICE"]
[null,null,null,null,null,"AURIEBAT"]
[null,null,null,null,null,"AURIERES"]
[null,null,null,null,null,"AURIGNAC"]
[null,null,null,null,null,"AURILLAC"]
[null,null,null,null,null,"AURIMONT"]
[null,null,null,null,null,"AURIN"]
[null,null,null,null,null,"AURIOL"]
[null,null,null,null,null,"AURIOLLES"]
[null,null,null,null,null,"AURIONS IDERNES"]
[null,null,null,null,null,"AURIS"]
[null,null,null,null,null,"AURONS"]
[null,null,null,null,null,"AUROS"]
[null,null,null,null,null,"AUROUER"]
[null,null,null,null,null,"AUROUX"]
[null,null,null,null,null,"AUSSAC"]
[null,null,null,null,null,"AUSSAC VADALLE"]
[null,null,null,null,null,"AUSSEING"]
[null,null,null,null,null,"AUSSEVIELLE"]
[null,null,null,null,null,"AUSSILLON"]
[null,null,null,null,null,"AUSSOIS"]
[null,null,null,null,null,"AUSSON"]
[null,null,null,null,null,"AUSSONCE"]
[null,null,null,null,null,"AUSSONNE"]
[null,null,null,null,null,"AUSSOS"]
[null,null,null,null,null,"AUSSURUCQ"]
[null,null,null,null,null,"AUTAINVILLE"]
[null,null,null,null,null,"AUTECHAUX"]
[null,null,null,null,null,"AUTECHAUX ROIDE"]
[null,null,null,null,null,"AUTERIVE"]
[null,null,null,null,null,"AUTERRIVE"]
[null,null,null,null,null,"AUTET"]
[null,null,null,null,null,"AUTEUIL"]
[null,null,null,null,null,"AUTEVIELLE ST MARTIN BIDEREN"]
[null,null,null,null,null,"AUTHE"]
[null,null,null,null,null,"AUTHEUIL"]
[null,null,null,null,null,"AUTHEUIL AUTHOUILLET"]
[null,null,null,null,null,"AUTHEUIL EN VALOIS"]
[null,null,null,null,null,"AUTHEUX"]
[null,null,null,null,null,"AUTHEVERNES"]
[null,null,null,null,null,"AUTHEZAT"]
[null,null,null,null,null,"AUTHIE"]
[null,null,null,null,null,"AUTHIEULE"]
[null,null,null,null,null,"AUTHIEUX RATIEVILLE"]
[null,null,null,null,null,"AUTHIOU"]
[null,null,null,null,null,"AUTHOISON"]
[null,null,null,null,null,"AUTHON"]
[null,null,null,null,null,"AUTHON DU PERCHE"]
[null,null,null,null,null,"AUTHON EBEON"]
[null,null,null,null,null,"AUTHON LA PLAINE"]
[null,null,null,null,null,"AUTHOU"]
[null,null,null,null,null,"AUTHUILLE"]
[null,null,null,null,null,"AUTHUME"]
[null,null,null,null,null,"AUTHUMES"]
[null,null,null,null,null,"AUTICHAMP"]
[null,null,null,null,null,"AUTIGNAC"]
[null,null,null,null,null,"AUTIGNY"]
[null,null,null,null,null,"AUTIGNY LA TOUR"]
[null,null,null,null,null,"AUTIGNY LE GRAND"]
[null,null,null,null,null,"AUTIGNY LE PETIT"]
[null,null,null,null,null,"AUTINGUES"]
[null,null,null,null,null,"AUTOIRE"]
[null,null,null,null,null,"AUTOREILLE"]
[null,null,null,null,null,"AUTOUILLET"]
[null,null,null,null,null,"AUTRAC"]
[null,null,null,null,null,"AUTRANS MEAUDRE EN VERCORS"]
[null,null,null,null,null,"AUTRECHE"]
[null,null,null,null,null,"AUTRECHENE"]
[null,null,null,null,null,"AUTRECHES"]
[null,null,null,null,null,"AUTRECOURT ET POURRON"]
[null,null,null,null,null,"AUTRECOURT SUR AIRE"]
[null,null,null,null,null,"AUTREMENCOURT"]
[null,null,null,null,null,"AUTREPIERRE"]
[null,null,null,null,null,"AUTREPPES"]
[null,null,null,null,null,"AUTRETOT"]
[null,null,null,null,null,"AUTREVILLE"]
[null,null,null,null,null,"AUTREVILLE ST LAMBERT"]
[null,null,null,null,null,"AUTREVILLE SUR LA RENNE"]
[null,null,null,null,null,"AUTREVILLE SUR MOSELLE"]
[null,null,null,null,null,"AUTREY"]
[null,null,null,null,null,"AUTREY LE VAY"]
[null,null,null,null,null,"AUTREY LES CERRE"]
[null,null,null,null,null,"AUTREY LES GRAY"]
[null,null,null,null,null,"AUTRICOURT"]
[null,null,null,null,null,"AUTRUCHE"]
[null,null,null,null,null,"AUTRUY SUR JUINE"]
[null,null,null,null,null,"AUTRY"]
[null,null,null,null,null,"AUTRY ISSARDS"]
[null,null,null,null,null,"AUTRY LE CHATEL"]
[null,null,null,null,null,"AUTUN"]
[null,null,null,null,null,"AUTY"]
[null,null,null,null,null,"AUVARE"]
[null,null,null,null,null,"AUVE"]
[null,null,null,null,null,"AUVERNAUX"]
[null,null,null,null,null,"AUVERS"]
[null,null,null,null,null,"AUVERS LE HAMON"]
[null,null,null,null,null,"AUVERS SOUS MONTFAUCON"]
[null,null,null,null,null,"AUVERS ST GEORGES"]
[null,null,null,null,null,"AUVERS SUR OISE"]
[null,null,null,null,null,"AUVERSE"]
[null,null,null,null,null,"AUVET ET LA CHAPELOTTE"]
[null,null,null,null,null,"AUVILLAR"]
[null,null,null,null,null,"AUVILLARS"]
[null,null,null,null,null,"AUVILLARS SUR SAONE"]
[null,null,null,null,null,"AUVILLERS LES FORGES"]
[null,null,null,null,null,"AUVILLIERS"]
[null,null,null,null,null,"AUVILLIERS EN GATINAIS"]
[null,null,null,null,null,"AUX AUSSAT"]
[null,null,null,null,null,"AUX MARAIS"]
[null,null,null,null,null,"AUXAIS"]
[null,null,null,null,null,"AUXANGE"]
[null,null,null,null,null,"AUXANT"]
[null,null,null,null,null,"AUXELLES BAS"]
[null,null,null,null,null,"AUXELLES HAUT"]
[null,null,null,null,null,"AUXERRE"]
[null,null,null,null,null,"AUXEY DURESSES"]
[null,null,null,null,null,"AUXI LE CHATEAU"]
[null,null,null,null,null,"AUXON"]
[null,null,null,null,null,"AUXONNE"]
[null,null,null,null,null,"AUXY"]
[null,null,null,null,null,"AUZAINVILLIERS"]
[null,null,null,null,null,"AUZANCES"]
[null,null,null,null,null,"AUZAS"]
[null,null,null,null,null,"AUZAT"]
[null,null,null,null,null,"AUZAT LA COMBELLE"]
[null,null,null,null,null,"AUZAY"]
[null,null,null,null,null,"AUZEBOSC"]
[null,null,null,null,null,"AUZELLES"]
[null,null,null,null,null,"AUZERS"]
[null,null,null,null,null,"AUZET"]
[null,null,null,null,null,"AUZEVILLE TOLOSANE"]
[null,null,null,null,null,"AUZIELLE"]
[null,null,null,null,null,"AUZITS"]
[null,null,null,null,null,"AUZON"]
[null,null,null,null,null,"AUZOUER EN TOURAINE"]
[null,null,null,null,null,"AUZOUVILLE AUBERBOSC"]
[null,null,null,null,null,"AUZOUVILLE L ESNEVAL"]
[null,null,null,null,null,"AUZOUVILLE SUR RY"]
[null,null,null,null,null,"AUZOUVILLE SUR SAANE"]
[null,null,null,null,null,"AVAILLES EN CHATELLERAULT"]
[null,null,null,null,null,"AVAILLES LIMOUZINE"]
[null,null,null,null,null,"AVAILLES SUR SEICHE"]
[null,null,null,null,null,"AVAILLES THOUARSAIS"]
[null,null,null,null,null,"AVAJAN"]
[null,null,null,null,null,"AVALLON"]
[null,null,null,null,null,"AVANCON"]
[null,null,null,null,null,"AVANNE AVENEY"]
[null,null,null,null,null,"AVANT LES MARCILLY"]
[null,null,null,null,null,"AVANT LES RAMERUPT"]
[null,null,null,null,null,"AVANTON"]
[null,null,null,null,null,"AVAPESSA"]
[null,null,null,null,null,"AVARAY"]
[null,null,null,null,null,"AVAUX"]
[null,null,null,null,null,"AVEIZE"]
[null,null,null,null,null,"AVEIZIEUX"]
[null,null,null,null,null,"AVELANGES"]
[null,null,null,null,null,"AVELESGES"]
[null,null,null,null,null,"AVELIN"]
[null,null,null,null,null,"AVELUY"]
[null,null,null,null,null,"AVENAS"]
[null,null,null,null,null,"AVENAY"]
[null,null,null,null,null,"AVENAY VAL D OR"]
[null,null,null,null,null,"AVENE"]
[null,null,null,null,null,"AVENSAC"]
[null,null,null,null,null,"AVENSAN"]
[null,null,null,null,null,"AVENTIGNAN"]
[null,null,null,null,null,"AVERAN"]
[null,null,null,null,null,"AVERDOINGT"]
[null,null,null,null,null,"AVERDON"]
[null,null,null,null,null,"AVERMES"]
[null,null,null,null,null,"AVERNES"]
[null,null,null,null,null,"AVERNES SOUS EXMES"]
[null,null,null,null,null,"AVERNES ST GOURGON"]
[null,null,null,null,null,"AVERON BERGELLE"]
[null,null,null,null,null,"AVERTON"]
[null,null,null,null,null,"AVESNELLES"]
[null,null,null,null,null,"AVESNES"]
[null,null,null,null,null,"AVESNES CHAUSSOY"]
[null,null,null,null,null,"AVESNES EN BRAY"]
[null,null,null,null,null,"AVESNES EN SAOSNOIS"]
[null,null,null,null,null,"AVESNES EN VAL"]
[null,null,null,null,null,"AVESNES LE COMTE"]
[null,null,null,null,null,"AVESNES LE SEC"]
[null,null,null,null,null,"AVESNES LES AUBERT"]
[null,null,null,null,null,"AVESNES LES BAPAUME"]
[null,null,null,null,null,"AVESNES SUR HELPE"]
[null,null,null,null,null,"AVESSAC"]
[null,null,null,null,null,"AVESSE"]
[null,null,null,null,null,"AVEUX"]
[null,null,null,null,null,"AVEZAC PRAT LAHITTE"]
[null,null,null,null,null,"AVEZAN"]
[null,null,null,null,null,"AVEZE"]
[null,null,null,null,null,"AVIERNOZ"]
[null,null,null,null,null,"AVIGNON"]
[null,null,null,null,null,"AVIGNON LES ST CLAUDE"]
[null,null,null,null,null,"AVIGNONET"]
[null,null,null,null,null,"AVIGNONET LAURAGAIS"]
[null,null,null,null,null,"AVILLERS"]
[null,null,null,null,null,"AVILLERS STE CROIX"]
[null,null,null,null,null,"AVILLEY"]
[null,null,null,null,null,"AVILLY ST LEONARD"]
[null,null,null,null,null,"AVION"]
[null,null,null,null,null,"AVIOTH"]
[null,null,null,null,null,"AVIRE"]
[null,null,null,null,null,"AVIREY LINGEY"]
[null,null,null,null,null,"AVIRON"]
[null,null,null,null,null,"AVIZE"]
[null,null,null,null,null,"AVOCOURT"]
[null,null,null,null,null,"AVOINE"]
[null,null,null,null,null,"AVOISE"]
[null,null,null,null,null,"AVOLSHEIM"]
[null,null,null,null,null,"AVON"]
[null,null,null,null,null,"AVON LA PEZE"]
[null,null,null,null,null,"AVON LES ROCHES"]
[null,null,null,null,null,"AVONDANCE"]
[null,null,null,null,null,"AVORD"]
[null,null,null,null,null,"AVOSNES"]
[null,null,null,null,null,"AVOT"]
[null,null,null,null,null,"AVOUDREY"]
[null,null,null,null,null,"AVRAINVILLE"]
[null,null,null,null,null,"AVRANCHES"]
[null,null,null,null,null,"AVRANVILLE"]
[null,null,null,null,null,"AVRECHY"]
[null,null,null,null,null,"AVRECOURT"]
[null,null,null,null,null,"AVREE"]
[null,null,null,null,null,"AVREMESNIL"]
[null,null,null,null,null,"AVRESSIEUX"]
[null,null,null,null,null,"AVREUIL"]
[null,null,null,null,null,"AVRICOURT"]
[null,null,null,null,null,"AVRIEUX"]
[null,null,null,null,null,"AVRIGNEY VIREY"]
[null,null,null,null,null,"AVRIGNY"]
[null,null,null,null,null,"AVRIL"]
[null,null,null,null,null,"AVRIL SUR LOIRE"]
[null,null,null,null,null,"AVRILLE"]
[null,null,null,null,null,"AVRILLE LES PONCEAUX"]
[null,null,null,null,null,"AVRILLY"]
[null,null,null,null,null,"AVROULT"]
[null,null,null,null,null,"AVY"]
[null,null,null,null,null,"AWALA YALIMAPO"]
[null,null,null,null,null,"AWOINGT"]
[null,null,null,null,null,"AX LES THERMES"]
[null,null,null,null,null,"AXAT"]
[null,null,null,null,null,"AXIAT"]
[null,null,null,null,null,"AY CHAMPAGNE"]
[null,null,null,null,null,"AY SUR MOSELLE"]
[null,null,null,null,null,"AYAT SUR SIOULE"]
[null,null,null,null,null,"AYDAT"]
[null,null,null,null,null,"AYDIE"]
[null,null,null,null,null,"AYDIUS"]
[null,null,null,null,null,"AYDOILLES"]
[null,null,null,null,null,"AYEN"]
[null,null,null,null,null,"AYENCOURT"]
[null,null,null,null,null,"AYETTE"]
[null,null,null,null,null,"AYGUATEBIA TALAU"]
[null,null,null,null,null,"AYGUEMORTE LES GRAVES"]
[null,null,null,null,null,"AYGUESVIVES"]
[null,null,null,null,null,"AYGUETINTE"]
[null,null,null,null,null,"AYHERRE"]
[null,null,null,null,null,"AYN"]
[null,null,null,null,null,"AYNAC"]
[null,null,null,null,null,"AYRENS"]
[null,null,null,null,null,"AYRON"]
[null,null,null,null,null,"AYROS ARBOUIX"]
[null,null,null,null,null,"AYSE"]
[null,null,null,null,null,"AYSSENES"]
[null,null,null,null,null,"AYTRE"]
[null,null,null,null,null,"AYZAC OST"]
[null,null,null,null,null,"AYZIEU"]
[null,null,null,null,null,"AZANNES ET SOUMAZANNES"]
[null,null,null,null,null,"AZAS"]
[null,null,null,null,null,"AZAT CHATENET"]
[null,null,null,null,null,"AZAT LE RIS"]
[null,null,null,null,null,"AZAY LE BRULE"]
[null,null,null,null,null,"AZAY LE FERRON"]
[null,null,null,null,null,"AZAY LE RIDEAU"]
[null,null,null,null,null,"AZAY SUR CHER"]
[null,null,null,null,null,"AZAY SUR INDRE"]
[null,null,null,null,null,"AZAY SUR THOUET"]
[null,null,null,null,null,"AZE"]
[null,null,null,null,null,"AZELOT"]
[null,null,null,null,null,"AZERABLES"]
[null,null,null,null,null,"AZERAILLES"]
[null,null,null,null,null,"AZERAT"]
[null,null,null,null,null,"AZEREIX"]
[null,null,null,null,null,"AZET"]
[null,null,null,null,null,"AZEVILLE"]
[null,null,null,null,null,"AZILLANET"]
[null,null,null,null,null,"AZILLE"]
[null,null,null,null,null,"AZILONE AMPAZA"]
[null,null,null,null,null,"AZINCOURT"]
[null,null,null,null,null,"AZOLETTE"]
[null,null,null,null,null,"AZOUDANGE"]
[null,null,null,null,null,"AZUR"]
[null,null,null,null,null,"AZY"]
[null,null,null,null,null,"AZY LE VIF"]
[null,null,null,null,null,"AZY SUR MARNE"]
[null,null,null,null,null,"AZZANA"]
[null,null,null,null,null,"BAALON"]
[null,null,null,null,null,"BAALONS"]
[null,null,null,null,null,"BABEAU BOULDOUX"]
[null,null,null,null,null,"BABOEUF"]
[null,null,null,null,null,"BABY"]
[null,null,null,null,null,"BACCARAT"]
[null,null,null,null,null,"BACCON"]
[null,null,null,null,null,"BACH"]
[null,null,null,null,null,"BACHANT"]
[null,null,null,null,null,"BACHAS"]
[null,null,null,null,null,"BACHIVILLERS"]
[null,null,null,null,null,"BACHOS"]
[null,null,null,null,null,"BACHY"]
[null,null,null,null,null,"BACILLY"]
[null,null,null,null,null,"BACONNES"]
[null,null,null,null,null,"BACOUEL"]
[null,null,null,null,null,"BACOUEL SUR SELLE"]
[null,null,null,null,null,"BACOURT"]
[null,null,null,null,null,"BACQUEPUIS"]
[null,null,null,null,null,"BACQUEVILLE"]
[null,null,null,null,null,"BACQUEVILLE EN CAUX"]
[null,null,null,null,null,"BADAILHAC"]
[null,null,null,null,null,"BADAROUX"]
[null,null,null,null,null,"BADECON LE PIN"]
[null,null,null,null,null,"BADEFOLS D ANS"]
[null,null,null,null,null,"BADEFOLS SUR DORDOGNE"]
[null,null,null,null,null,"BADEN"]
[null,null,null,null,null,"BADENS"]
[null,null,null,null,null,"BADEVEL"]
[null,null,null,null,null,"BADMENIL AUX BOIS"]
[null,null,null,null,null,"BADONVILLER"]
[null,null,null,null,null,"BADONVILLIERS GERAUVILLIERS"]
[null,null,null,null,null,"BAERENDORF"]
[null,null,null,null,null,"BAERENTHAL"]
[null,null,null,null,null,"BAFFIE"]
[null,null,null,null,null,"BAGARD"]
[null,null,null,null,null,"BAGAS"]
[null,null,null,null,null,"BAGAT EN QUERCY"]
[null,null,null,null,null,"BAGE LA VILLE"]
[null,null,null,null,null,"BAGE LE CHATEL"]
[null,null,null,null,null,"BAGERT"]
[null,null,null,null,null,"BAGES"]
[null,null,null,null,null,"BAGIRY"]
[null,null,null,null,null,"BAGNAC SUR CELE"]
[null,null,null,null,null,"BAGNEAUX"]
[null,null,null,null,null,"BAGNEAUX SUR LOING"]
[null,null,null,null,null,"BAGNERES DE BIGORRE"]
[null,null,null,null,null,"BAGNERES DE LUCHON"]
[null,null,null,null,null,"BAGNEUX"]
[null,null,null,null,null,"BAGNEUX LA FOSSE"]
[null,null,null,null,null,"BAGNIZEAU"]
[null,null,null,null,null,"BAGNOLES"]
[null,null,null,null,null,"BAGNOLES DE L ORNE NORMANDIE"]
[null,null,null,null,null,"BAGNOLET"]
[null,null,null,null,null,"BAGNOLS"]
[null,null,null,null,null,"BAGNOLS EN FORET"]
[null,null,null,null,null,"BAGNOLS LES BAINS"]
[null,null,null,null,null,"BAGNOLS SUR CEZE"]
[null,null,null,null,null,"BAGNOT"]
[null,null,null,null,null,"BAGUER MORVAN"]
[null,null,null,null,null,"BAGUER PICAN"]
[null,null,null,null,null,"BAHO"]
[null,null,null,null,null,"BAHUS SOUBIRAN"]
[null,null,null,null,null,"BAIE MAHAULT"]
[null,null,null,null,null,"BAIGNEAUX"]
[null,null,null,null,null,"BAIGNES"]
[null,null,null,null,null,"BAIGNES STE RADEGONDE"]
[null,null,null,null,null,"BAIGNEUX LES JUIFS"]
[null,null,null,null,null,"BAIGTS"]
[null,null,null,null,null,"BAIGTS DE BEARN"]
[null,null,null,null,null,"BAILLARGUES"]
[null,null,null,null,null,"BAILLE"]
[null,null,null,null,null,"BAILLEAU ARMENONVILLE"]
[null,null,null,null,null,"BAILLEAU L EVEQUE"]
[null,null,null,null,null,"BAILLEAU LE PIN"]
[null,null,null,null,null,"BAILLESTAVY"]
[null,null,null,null,null,"BAILLET EN FRANCE"]
[null,null,null,null,null,"BAILLEUL"]
[null,null,null,null,null,"BAILLEUL AUX CORNAILLES"]
[null,null,null,null,null,"BAILLEUL LA VALLEE"]
[null,null,null,null,null,"BAILLEUL LE SOC"]
[null,null,null,null,null,"BAILLEUL LES PERNES"]
[null,null,null,null,null,"BAILLEUL NEUVILLE"]
[null,null,null,null,null,"BAILLEUL SIR BERTHOULT"]
[null,null,null,null,null,"BAILLEUL SUR THERAIN"]
[null,null,null,null,null,"BAILLEULMONT"]
[null,null,null,null,null,"BAILLEULVAL"]
[null,null,null,null,null,"BAILLEVAL"]
[null,null,null,null,null,"BAILLIF"]
[null,null,null,null,null,"BAILLOLET"]
[null,null,null,null,null,"BAILLOU"]
[null,null,null,null,null,"BAILLY"]
[null,null,null,null,null,"BAILLY AUX FORGES"]
[null,null,null,null,null,"BAILLY EN RIVIERE"]
[null,null,null,null,null,"BAILLY LE FRANC"]
[null,null,null,null,null,"BAILLY ROMAINVILLIERS"]
[null,null,null,null,null,"BAIN DE BRETAGNE"]
[null,null,null,null,null,"BAINCTHUN"]
[null,null,null,null,null,"BAINGHEN"]
[null,null,null,null,null,"BAINS"]
[null,null,null,null,null,"BAINS LES BAINS"]
[null,null,null,null,null,"BAINS SUR OUST"]
[null,null,null,null,null,"BAINVILLE AUX MIROIRS"]
[null,null,null,null,null,"BAINVILLE AUX SAULES"]
[null,null,null,null,null,"BAINVILLE SUR MADON"]
[null,null,null,null,null,"BAIROLS"]
[null,null,null,null,null,"BAIRON ET SES ENVIRONS"]
[null,null,null,null,null,"BAIS"]
[null,null,null,null,null,"BAISIEUX"]
[null,null,null,null,null,"BAISSEY"]
[null,null,null,null,null,"BAIVES"]
[null,null,null,null,null,"BAIX"]
[null,null,null,null,null,"BAIXAS"]
[null,null,null,null,null,"BAIZIEUX"]
[null,null,null,null,null,"BAJAMONT"]
[null,null,null,null,null,"BAJONNETTE"]
[null,null,null,null,null,"BAJUS"]
[null,null,null,null,null,"BALACET"]
[null,null,null,null,null,"BALADOU"]
[null,null,null,null,null,"BALAGNY SUR THERAIN"]
[null,null,null,null,null,"BALAGUERES"]
[null,null,null,null,null,"BALAGUIER D OLT"]
[null,null,null,null,null,"BALAGUIER SUR RANCE"]
[null,null,null,null,null,"BALAISEAUX"]
[null,null,null,null,null,"BALAIVES ET BUTZ"]
[null,null,null,null,null,"BALAN"]
[null,null,null,null,null,"BALANOD"]
[null,null,null,null,null,"BALANSUN"]
[null,null,null,null,null,"BALANZAC"]
[null,null,null,null,null,"BALARUC LE VIEUX"]
[null,null,null,null,null,"BALARUC LES BAINS"]
[null,null,null,null,null,"BALATRE"]
[null,null,null,null,null,"BALAZE"]
[null,null,null,null,null,"BALAZUC"]
[null,null,null,null,null,"BALBIGNY"]
[null,null,null,null,null,"BALBINS"]
[null,null,null,null,null,"BALBRONN"]
[null,null,null,null,null,"BALDENHEIM"]
[null,null,null,null,null,"BALDERSHEIM"]
[null,null,null,null,null,"BALEIX"]
[null,null,null,null,null,"BALESTA"]
[null,null,null,null,null,"BALEYSSAGUES"]
[null,null,null,null,null,"BALGAU"]
[null,null,null,null,null,"BALHAM"]
[null,null,null,null,null,"BALIGNAC"]
[null,null,null,null,null,"BALIGNICOURT"]
[null,null,null,null,null,"BALINES"]
[null,null,null,null,null,"BALINGHEM"]
[null,null,null,null,null,"BALIRACQ MAUMUSSON"]
[null,null,null,null,null,"BALIROS"]
[null,null,null,null,null,"BALIZAC"]
[null,null,null,null,null,"BALLAINVILLIERS"]
[null,null,null,null,null,"BALLAISON"]
[null,null,null,null,null,"BALLAN MIRE"]
[null,null,null,null,null,"BALLANCOURT SUR ESSONNE"]
[null,null,null,null,null,"BALLANS"]
[null,null,null,null,null,"BALLAY"]
[null,null,null,null,null,"BALLEDENT"]
[null,null,null,null,null,"BALLEE"]
[null,null,null,null,null,"BALLERAY"]
[null,null,null,null,null,"BALLEROY SUR DROME"]
[null,null,null,null,null,"BALLERSDORF"]
[null,null,null,null,null,"BALLEVILLE"]
[null,null,null,null,null,"BALLON"]
[null,null,null,null,null,"BALLON ST MARS"]
[null,null,null,null,null,"BALLONS"]
[null,null,null,null,null,"BALLORE"]
[null,null,null,null,null,"BALLOTS"]
[null,null,null,null,null,"BALLOY"]
[null,null,null,null,null,"BALMA"]
[null,null,null,null,null,"BALNOT LA GRANGE"]
[null,null,null,null,null,"BALNOT SUR LAIGNES"]
[null,null,null,null,null,"BALOGNA"]
[null,null,null,null,null,"BALOT"]
[null,null,null,null,null,"BALSAC"]
[null,null,null,null,null,"BALSCHWILLER"]
[null,null,null,null,null,"BALSIEGES"]
[null,null,null,null,null,"BALTZENHEIM"]
[null,null,null,null,null,"BALZAC"]
[null,null,null,null,null,"BAMBECQUE"]
[null,null,null,null,null,"BAMBIDERSTROFF"]
[null,null,null,null,null,"BAN DE LAVELINE"]
[null,null,null,null,null,"BAN DE SAPT"]
[null,null,null,null,null,"BAN SUR MEURTHE CLEFCY"]
[null,null,null,null,null,"BANASSAC CANILHAC"]
[null,null,null,null,null,"BANCA"]
[null,null,null,null,null,"BANCIGNY"]
[null,null,null,null,null,"BANCOURT"]
[null,null,null,null,null,"BANDOL"]
[null,null,null,null,null,"BANDRABOUA"]
[null,null,null,null,null,"BANDRELE"]
[null,null,null,null,null,"BANEINS"]
[null,null,null,null,null,"BANEUIL"]
[null,null,null,null,null,"BANGOR"]
[null,null,null,null,null,"BANIOS"]
[null,null,null,null,null,"BANIZE"]
[null,null,null,null,null,"BANNALEC"]
[null,null,null,null,null,"BANNANS"]
[null,null,null,null,null,"BANNAY"]
[null,null,null,null,null,"BANNE"]
[null,null,null,null,null,"BANNEGON"]
[null,null,null,null,null,"BANNES"]
[null,null,null,null,null,"BANNEVILLE LA CAMPAGNE"]
[null,null,null,null,null,"BANNIERES"]
[null,null,null,null,null,"BANNONCOURT"]
[null,null,null,null,null,"BANNOST VILLEGAGNON"]
[null,null,null,null,null,"BANOGNE RECOUVRANCE"]
[null,null,null,null,null,"BANON"]
[null,null,null,null,null,"BANOS"]
[null,null,null,null,null,"BANS"]
[null,null,null,null,null,"BANSAT"]
[null,null,null,null,null,"BANTANGES"]
[null,null,null,null,null,"BANTEUX"]
[null,null,null,null,null,"BANTHELU"]
[null,null,null,null,null,"BANTHEVILLE"]
[null,null,null,null,null,"BANTIGNY"]
[null,null,null,null,null,"BANTOUZELLE"]
[null,null,null,null,null,"BANTZENHEIM"]
[null,null,null,null,null,"BANVILLARS"]
[null,null,null,null,null,"BANVILLE"]
[null,null,null,null,null,"BANVOU"]
[null,null,null,null,null,"BANYULS DELS ASPRES"]
[null,null,null,null,null,"BANYULS SUR MER"]
[null,null,null,null,null,"BAON"]
[null,null,null,null,null,"BAONS LE COMTE"]
[null,null,null,null,null,"BAPAUME"]
[null,null,null,null,null,"BAR"]
[null,null,null,null,null,"BAR LE DUC"]
[null,null,null,null,null,"BAR LES BUZANCY"]
[null,null,null,null,null,"BARBEVILLE"]
[null,null,null,null,null,"BARBIZON"]
[null,null,null,null,null,"BAREN"]
[null,null,null,null,null,"BARESIA SUR L AIN"]
[null,null,null,null,null,"BARNEVILLE LA BERTRAN"]
[null,null,null,null,null,"BARONVILLE"]
[null,null,null,null,null,"BARRE DES CEVENNES"]
[null,null,null,null,null,"BARVILLE"]
[null,null,null,null,null,"BASLIEUX LES FISMES"]
[null,null,null,null,null,"BASSEVELLE"]
[null,null,null,null,null,"BASSUSSARRY"]
[null,null,null,null,null,"BATTENHEIM"]
[null,null,null,null,null,"BAUDRECOURT"]
[null,null,null,null,null,"BAULOU"]
[null,null,null,null,null,"BAX"]
[null,null,null,null,null,"BAYON"]
[null,null,null,null,null,"BAZELAT"]
[null,null,null,null,null,"BAZINGHEN"]
[null,null,null,null,null,"BAZOUGERS"]
[null,null,null,null,null,"BEAUBEC LA ROSIERE"]
[null,null,null,null,null,"BEAUCOURT"]
[null,null,null,null,null,"BEAUFAY"]
[null,null,null,null,null,"BEAUFORT EN ANJOU"]
[null,null,null,null,null,"BEAULON"]
[null,null,null,null,null,"BEAUMESNIL"]
[null,null,null,null,null,"BEAUMONT LE ROGER"]
[null,null,null,null,null,"BEAUMONT SUR GROSNE"]
[null,null,null,null,null,"BEAURAINS"]
[null,null,null,null,null,"BEAUREPAIRE"]
[null,null,null,null,null,"BEAUVAL"]
[null,null,null,null,null,"BEAUVOIR EN ROYANS"]
[null,null,null,null,null,"BECON LES GRANITS"]
[null,null,null,null,null,"BEDOIN"]
[null,null,null,null,null,"BEGUIOS"]
[null,null,null,null,null,"BELABRE"]
[null,null,null,null,null,"BELESTA"]
[null,null,null,null,null,"BELFAHY"]
[null,null,null,null,null,"BELLECOMBE EN BAUGES"]
[null,null,null,null,null,"BELLECOMBE TARENDOL"]
[null,null,null,null,null,"BELLEME"]
[null,null,null,null,null,"BELLEVAUX"]
[null,null,null,null,null,"BELLOCQ"]
[null,null,null,null,null,"BELMONT D AZERGUES"]
[null,null,null,null,null,"BELVAL SOUS CHATILLON"]
[null,null,null,null,null,"BENAGUES"]
[null,null,null,null,null,"BENEVENT L ABBAYE"]
[null,null,null,null,null,"BENOISEY"]
[null,null,null,null,null,"BERCHERES LES PIERRES"]
[null,null,null,null,null,"BEREZIAT"]
[null,null,null,null,null,"BERHET"]
[null,null,null,null,null,"BERLING"]
[null,null,null,null,null,"BERNAY EN PONTHIEU"]
[null,null,null,null,null,"BERNEUIL"]
[null,null,null,null,null,"BERRE L ETANG"]
[null,null,null,null,null,"BERROGAIN LARUNS"]
[null,null,null,null,null,"BERSON"]
[null,null,null,null,null,"BERTONCOURT"]
[null,null,null,null,null,"BERTRIMONT"]
[null,null,null,null,null,"BESCAT"]
[null,null,null,null,null,"BESSAMOREL"]
[null,null,null,null,null,"BESSIERES"]
[null,null,null,null,null,"BETBEZE"]
[null,null,null,null,null,"BETHON"]
[null,null,null,null,null,"BETRACQ"]
[null,null,null,null,null,"BETTLACH"]
[null,null,null,null,null,"BEULOTTE ST LAURENT"]
[null,null,null,null,null,"BEUVRAGES"]
[null,null,null,null,null,"BEUZEVILLETTE"]
[null,null,null,null,null,"BEYRIE EN BEARN"]
[null,null,null,null,null,"BEZAUMONT"]
[null,null,null,null,null,"BEZENET"]
[null,null,null,null,null,"BICHANCOURT"]
[null,null,null,null,null,"BIDACHE"]
[null,null,null,null,null,"BIESLES"]
[null,null,null,null,null,"BIEVILLE"]
[null,null,null,null,null,"BIGORNO"]
[null,null,null,null,null,"BILLY"]
[null,null,null,null,null,"BILTZHEIM"]
[null,null,null,null,null,"BIRAC SUR TREC"]
[null,null,null,null,null,"BISCHOFFSHEIM"]
[null,null,null,null,null,"BIVILLE LA BAIGNARDE"]
[null,null,null,null,null,"BIZONNES"]
[null,null,null,null,null,"BLAISY HAUT"]
[null,null,null,null,null,"BLANCHE EGLISE"]
[null,null,null,null,null,"BLANZY"]
[null,null,null,null,null,"BLARINGHEM"]
[null,null,null,null,null,"BLAY"]
[null,null,null,null,null,"BLESMES"]
[null,null,null,null,null,"BLIESBRUCK"]
[null,null,null,null,null,"BLONVILLE SUR MER"]
[null,null,null,null,null,"BOBIGNY"]
[null,null,null,null,null,"BOFFRES"]
[null,null,null,null,null,"BOIRY NOTRE DAME"]
[null,null,null,null,null,"BOIS GUILBERT"]
[null,null,null,null,null,"BOISEMONT"]
[null,null,null,null,null,"BOISSEAU"]
[null,null,null,null,null,"BOISSIA"]
[null,null,null,null,null,"BOISSY LE SEC"]
[null,null,null,null,null,"BOLQUERE"]
[null,null,null,null,null,"BONDAROY"]
[null,null,null,null,null,"BONNAC"]
[null,null,null,null,null,"BONNEMAZON"]
[null,null,null,null,null,"BONNEUIL LES EAUX"]
[null,null,null,null,null,"BONNEVEAU"]
[null,null,null,null,null,"BONVILLARET"]
[null,null,null,null,null,"BOO SILHEN"]
[null,null,null,null,null,"BOREY"]
[null,null,null,null,null,"BORREZE"]
[null,null,null,null,null,"BOSNORMAND"]
[null,null,null,null,null,"BOSSET"]
[null,null,null,null,null,"BOUCAU"]
[null,null,null,null,null,"BOUCHY ST GENEST"]
[null,null,null,null,null,"BOUERE"]
[null,null,null,null,null,"BOUGES LE CHATEAU"]
[null,null,null,null,null,"BOUHY"]
[null,null,null,null,null,"BOUILLE ST PAUL"]
[null,null,null,null,null,"BOUILLY"]
[null,null,null,null,null,"BOULLAY LES TROUX"]
[null,null,null,null,null,"BOULLEVILLE"]
[null,null,null,null,null,"BOUMOURT"]
[null,null,null,null,null,"BOURBON LANCY"]
[null,null,null,null,null,"BOURDON"]
[null,null,null,null,null,"BOURG BRUCHE"]
[null,null,null,null,null,"BOURG LES VALENCE"]
[null,null,null,null,null,"BOURGHEIM"]
[null,null,null,null,null,"BOURGVALLEES"]
[null,null,null,null,null,"BOURNEAU"]
[null,null,null,null,null,"BOURSCHEID"]
[null,null,null,null,null,"BOUSBECQUE"]
[null,null,null,null,null,"BOUSSIERES SUR SAMBRE"]
[null,null,null,null,null,"BOUTENAC TOUVENT"]
[null,null,null,null,null,"BOUVINCOURT EN VERMANDOIS"]
[null,null,null,null,null,"BOUZANVILLE"]
[null,null,null,null,null,"BOUZINCOURT"]
[null,null,null,null,null,"BOVELLES"]
[null,null,null,null,null,"BRAGASSARGUES"]
[null,null,null,null,null,"BRAINE"]
[null,null,null,null,null,"BRANDON"]
[null,null,null,null,null,"BRANSCOURT"]
[null,null,null,null,null,"BRATTE"]
[null,null,null,null,null,"BRAY LES MAREUIL"]
[null,null,null,null,null,"BRECE"]
[null,null,null,null,null,"BREHAIN"]
[null,null,null,null,null,"BREMES"]
[null,null,null,null,null,"BRENOD"]
[null,null,null,null,null,"BRESSOLLES"]
[null,null,null,null,null,"BRETHEL"]
[null,null,null,null,null,"BRETTEVILLE L ORGUEILLEUSE"]
[null,null,null,null,null,"BREUIL LE VERT"]
[null,null,null,null,null,"BREVAL"]
[null,null,null,null,null,"BREVANS"]
[null,null,null,null,null,"BRICONVILLE"]
[null,null,null,null,null,"BRICQUEVILLE"]
[null,null,null,null,null,"BRIEY"]
[null,null,null,null,null,"BRIGNANCOURT"]
[null,null,null,null,null,"BRILLON"]
[null,null,null,null,null,"BRIOUDE"]
[null,null,null,null,null,"BRISSY HAMEGICOURT"]
[null,null,null,null,null,"BROISSIA"]
[null,null,null,null,null,"BROSSAC"]
[null,null,null,null,null,"BROUSSE LE CHATEAU"]
[null,null,null,null,null,"BROUVELIEURES"]
[null,null,null,null,null,"BRUGAIROLLES"]
[null,null,null,null,null,"BRUGUIERES"]
[null,null,null,null,null,"BRUTELLES"]
[null,null,null,null,null,"BUCAMPS"]
[null,null,null,null,null,"BUCHELAY"]
[null,null,null,null,null,"BUDLING"]
[null,null,null,null,null,"BUHY"]
[null,null,null,null,null,"BUISSARD"]
[null,null,null,null,null,"BULLY LES MINES"]
[null,null,null,null,null,"BURDIGNES"]
[null,null,null,null,null,"BURIVILLE"]
[null,null,null,null,null,"BURZY"]
[null,null,null,null,null,"BUSSEROTTE ET MONTENAILLE"]
[null,null,null,null,null,"BUSSY EN OTHE"]
[null,null,null,null,null,"BUTHIERS"]
[null,null,null,null,null,"BUYSSCHEURE"]
[null,null,null,null,null,"CABANAC CAZAUX"]
[null,null,null,null,null,"CABRIS"]
[null,null,null,null,null,"CADEN"]
[null,null,null,null,null,"CAHAGNES"]
[null,null,null,null,null,"CAILHAU"]
[null,null,null,null,null,"CAILLEVILLE"]
[null,null,null,null,null,"CALLAC"]
[null,null,null,null,null,"CALMEILLES"]
[null,null,null,null,null,"CAMBES"]
[null,null,null,null,null,"CAMBLIGNEUL"]
[null,null,null,null,null,"CAMJAC"]
[null,null,null,null,null,"CAMPAGNAC"]
[null,null,null,null,null,"CAMPHIN EN CAREMBAULT"]
[null,null,null,null,null,"CAMPNEUSEVILLE"]
[null,null,null,null,null,"CANAPLES"]
[null,null,null,null,null,"CANDE SUR BEUVRON"]
[null,null,null,null,null,"CANEHAN"]
[null,null,null,null,null,"CANTARON"]
[null,null,null,null,null,"CANTELOUP"]
[null,null,null,null,null,"CAPIAN"]
[null,null,null,null,null,"CAPINGHEM"]
[null,null,null,null,null,"CARBINI"]
[null,null,null,null,null,"CARDESSE"]
[null,null,null,null,null,"CARLA BAYLE"]
[null,null,null,null,null,"CARNETIN"]
[null,null,null,null,null,"CARQUEFOU"]
[null,null,null,null,null,"CARTIGNIES"]
[null,null,null,null,null,"CASE PILOTE"]
[null,null,null,null,null,"CASSIS"]
[null,null,null,null,null,"CASTEIDE CAMI"]
[null,null,null,null,null,"CASTELLO DI ROSTINO"]
[null,null,null,null,null,"CASTELNAU D ESTRETEFONDS"]
[null,null,null,null,null,"CASTELNER"]
[null,null,null,null,null,"CASTERA LECTOUROIS"]
[null,null,null,null,null,"CASTILLON D ARTHEZ"]
[null,null,null,null,null,"CASTILLON LA BATAILLE"]
[null,null,null,null,null,"CASTRES"]
[null,null,null,null,null,"CAUCHY A LA TOUR"]
[null,null,null,null,null,"CAUDRY"]
[null,null,null,null,null,"CAUROY"]
[null,null,null,null,null,"CAUSSINIOJOULS"]
[null,null,null,null,null,"CAVIGNY"]
[null,null,null,null,null,"CAYRIECH"]
[null,null,null,null,null,"CAZAUX VILLECOMTAL"]
[null,null,null,null,null,"CAZILLAC"]
[null,null,null,null,null,"CELLE LEVESCAULT"]
[null,null,null,null,null,"CELOUX"]
[null,null,null,null,null,"CENSY"]
[null,null,null,null,null,"CERCOUX"]
[null,null,null,null,null,"CERISY BULEUX"]
[null,null,null,null,null,"CERNON"]
[null,null,null,null,null,"CERTINES"]
[null,null,null,null,null,"CERVIERES"]
[null,null,null,null,null,"CETTE EYGUN"]
[null,null,null,null,null,"CEYRAT"]
[null,null,null,null,null,"CHABLIS"]
[null,null,null,null,null,"CHADENAC"]
[null,null,null,null,null,"CHAILLEVOIS"]
[null,null,null,null,null,"CHAINTRE"]
[null,null,null,null,null,"CHALEINS"]
[null,null,null,null,null,"CHALINDREY"]
[null,null,null,null,null,"CHALONS DU MAINE"]
[null,null,null,null,null,"CHAMAGNE"]
[null,null,null,null,null,"CHAMBLAY"]
[null,null,null,null,null,"CHAMBON"]
[null,null,null,null,null,"CHAMBRETAUD"]
[null,null,null,null,null,"CHAMESEY"]
[null,null,null,null,null,"CHAMPAGNAC LA PRUNE"]
[null,null,null,null,null,"CHAMPAGNE AU MONT D OR"]
[null,null,null,null,null,"CHAMPAGNE VIGNY"]
[null,null,null,null,null,"CHAMPDIEU"]
[null,null,null,null,null,"CHAMPENOUX"]
[null,null,null,null,null,"CHAMPIGNEULLE"]
[null,null,null,null,null,"CHAMPILLET"]
[null,null,null,null,null,"CHAMPOLEON"]
[null,null,null,null,null,"CHAMPS SUR TARENTAINE MARCHAL"]
[null,null,null,null,null,"CHAMVRES"]
[null,null,null,null,null,"CHANCIA"]
[null,null,null,null,null,"CHANONAT"]
[null,null,null,null,null,"CHANTEMERLE LES BLES"]
[null,null,null,null,null,"CHANTONNAY"]
[null,null,null,null,null,"CHAPELLE DES BOIS"]
[null,null,null,null,null,"CHAPTELAT"]
[null,null,null,null,null,"CHARDENY"]
[null,null,null,null,null,"CHARENTON DU CHER"]
[null,null,null,null,null,"CHAREY"]
[null,null,null,null,null,"CHARMES SUR L HERBASSE"]
[null,null,null,null,null,"CHARMONT"]
[null,null,null,null,null,"CHARNY SUR MEUSE"]
[null,null,null,null,null,"CHARTRES"]
[null,null,null,null,null,"CHAS"]
[null,null,null,null,null,"CHASSENON"]
[null,null,null,null,null,"CHASSIEU"]
[null,null,null,null,null,"CHATEAU BERNARD"]
[null,null,null,null,null,"CHATEAU GONTIER"]
[null,null,null,null,null,"CHATEAU LANDON"]
[null,null,null,null,null,"CHATEAUNEUF D ENTRAUNES"]
[null,null,null,null,null,"CHATEAUNEUF DE GALAURE"]
[null,null,null,null,null,"CHATEAUVIEUX LES FOSSES"]
[null,null,null,null,null,"CHATEL CENSOIR"]
[null,null,null,null,null,"CHATELARD"]
[null,null,null,null,null,"CHATENAY VAUDIN"]
[null,null,null,null,null,"CHATILLON EN MICHAILLE"]
[null,null,null,null,null,"CHATILLON SUR LOIRE"]
[null,null,null,null,null,"CHATTE"]
[null,null,null,null,null,"CHAUDEYRAC"]
[null,null,null,null,null,"CHAUGEY"]
[null,null,null,null,null,"CHAUMONT"]
[null,null,null,null,null,"CHAUNY"]
[null,null,null,null,null,"CHAUVIGNE"]
[null,null,null,null,null,"CHAVAGNES"]
[null,null,null,null,null,"CHAVANNES"]
[null,null,null,null,null,"CHAVONNE"]
[null,null,null,null,null,"CHAZELLES"]
[null,null,null,null,null,"CHELAN"]
[null,null,null,null,null,"CHEMENOT"]
[null,null,null,null,null,"CHEMILLE SUR DEME"]
[null,null,null,null,null,"CHENELETTE"]
[null,null,null,null,null,"CHENICOURT"]
[null,null,null,null,null,"CHEPPY"]
[null,null,null,null,null,"CHERENCE LE ROUSSEL"]
[null,null,null,null,null,"CHERREAU"]
[null,null,null,null,null,"CHEU"]
[null,null,null,null,null,"CHEVANNAY"]
[null,null,null,null,null,"CHEVILLY LARUE"]
[null,null,null,null,null,"CHEVROTAINE"]
[null,null,null,null,null,"CHEZY"]
[null,null,null,null,null,"CHIERRY"]
[null,null,null,null,null,"CHIRAC"]
[null,null,null,null,null,"CHISSERIA"]
[null,null,null,null,null,"CHOISEUL"]
[null,null,null,null,null,"CHOQUEUSE LES BENARDS"]
[null,null,null,null,null,"CHOUZE SUR LOIRE"]
[null,null,null,null,null,"CHOUZY SUR CISSE"]
[null,null,null,null,null,"CIEL"]
[null,null,null,null,null,"CINQUEUX"]
[null,null,null,null,null,"CIREY"]
[null,null,null,null,null,"CITEY"]
[null,null,null,null,null,"CIVRY"]
[null,null,null,null,null,"CLAIRVAUX LES LACS"]
[null,null,null,null,null,"CLANSAYES"]
[null,null,null,null,null,"CLAVILLE"]
[null,null,null,null,null,"CLEDES"]
[null,null,null,null,null,"CLEREY SUR BRENON"]
[null,null,null,null,null,"CLERMONT DESSOUS"]
[null,null,null,null,null,"CLEUVILLE"]
[null,null,null,null,null,"CLIMBACH"]
[null,null,null,null,null,"CLUX VILLENEUVE"]
[null,null,null,null,null,"COATREVEN"]
[null,null,null,null,null,"COESMES"]
[null,null,null,null,null,"COHENNOZ"]
[null,null,null,null,null,"COINCOURT"]
[null,null,null,null,null,"COLLANDRES QUINCARNON"]
[null,null,null,null,null,"COLLINE BEAUMONT"]
[null,null,null,null,null,"COLMERY"]
[null,null,null,null,null,"COLOMBIER FONTAINE"]
[null,null,null,null,null,"COLOMIEU"]
[null,null,null,null,null,"COMBERTAULT"]
[null,null,null,null,null,"COMBRAY"]
[null,null,null,null,null,"COMMEAUX"]
[null,null,null,null,null,"COMPERTRIX"]
[null,null,null,null,null,"CONCA"]
[null,null,null,null,null,"CONDAL"]
[null,null,null,null,null,"CONDE LES AUTRY"]
[null,null,null,null,null,"CONDE SUR AISNE"]
[null,null,null,null,null,"CONFLANS SUR SEINE"]
[null,null,null,null,null,"CONFRACOURT"]
[null,null,null,null,null,"CONQUEYRAC"]
[null,null,null,null,null,"CONSOLATION MAISONNETTES"]
[null,null,null,null,null,"CONTREVOZ"]
[null,null,null,null,null,"COOLUS"]
[null,null,null,null,null,"CORBIE"]
[null,null,null,null,null,"CORCELLES LES ARTS"]
[null,null,null,null,null,"CORDEAC"]
[null,null,null,null,null,"CORMEILLES"]
[null,null,null,null,null,"CORMES"]
[null,null,null,null,null,"CORNILLE"]
[null,null,null,null,null,"CORNILLON SUR L OULE"]
[null,null,null,null,null,"CORSAINT"]
[null,null,null,null,null,"CORSEUL"]
[null,null,null,null,null,"COSNAC"]
[null,null,null,null,null,"COUBERT"]
[null,null,null,null,null,"COUCY LE CHATEAU AUFFRIQUE"]
[null,null,null,null,null,"COUEILLES"]
[null,null,null,null,null,"COULAINES"]
[null,null,null,null,null,"COULMIER LE SEC"]
[null,null,null,null,null,"COULONGE"]
[null,null,null,null,null,"COUPESARTE"]
[null,null,null,null,null,"COURANCES"]
[null,null,null,null,null,"COURCELLES"]
[null,null,null,null,null,"COURCELLES LES MONTBARD"]
[null,null,null,null,null,"COURCHAPON"]
[null,null,null,null,null,"COURCY AUX LOGES"]
[null,null,null,null,null,"COURLAY"]
[null,null,null,null,null,"COURNANEL"]
[null,null,null,null,null,"COURSAC"]
[null,null,null,null,null,"COURTAGNON"]
[null,null,null,null,null,"COURTEIX"]
[null,null,null,null,null,"COURTOMER"]
[null,null,null,null,null,"COURVILLE SUR EURE"]
[null,null,null,null,null,"COUTEUGES"]
[null,null,null,null,null,"COUTURE SUR LOIR"]
[null,null,null,null,null,"COYECQUES"]
[null,null,null,null,null,"CRAINTILLEUX"]
[null,null,null,null,null,"CRAPEAUMESNIL"]
[null,null,null,null,null,"CRAVANT"]
[null,null,null,null,null,"CREGOLS"]
[null,null,null,null,null,"CRENANS"]
[null,null,null,null,null,"CRESPINET"]
[null,null,null,null,null,"CREST"]
[null,null,null,null,null,"CREVECOEUR EN BRIE"]
[null,null,null,null,null,"CREZIERES"]
[null,null,null,null,null,"CREZILLES"]
[null,null,null,null,null,"CRIQUIERS"]
[null,null,null,null,null,"CROIGNON"]
[null,null,null,null,null,"CROIX MOLIGNEAUX"]
[null,null,null,null,null,"CROS DE MONTVERT"]
[null,null,null,null,null,"CROUTELLE"]
[null,null,null,null,null,"CROZES HERMITAGE"]
[null,null,null,null,null,"CRUZILLE"]
[null,null,null,null,null,"CUCHARMOY"]
[null,null,null,null,null,"CUFFY"]
[null,null,null,null,null,"CUISEREY"]
[null,null,null,null,null,"CULEY"]
[null,null,null,null,null,"CUQ TOULZA"]
[null,null,null,null,null,"CURDIN"]
[null,null,null,null,null,"CUSEY"]
[null,null,null,null,null,"CUSSEY SUR L OGNON"]
[null,null,null,null,null,"CUTRY"]
[null,null,null,null,null,"CUZION"]
[null,null,null,null,null,"DAGNY"]
[null,null,null,null,null,"DAMAZAN"]
[null,null,null,null,null,"DAMERAUCOURT"]
[null,null,null,null,null,"DAMOUZY"]
[null,null,null,null,null,"DAMPIERRE LES BOIS"]
[null,null,null,null,null,"DAMREMONT"]
[null,null,null,null,null,"DANGU"]
[null,null,null,null,null,"DARAZAC"]
[null,null,null,null,null,"DARNEY AUX CHENES"]
[null,null,null,null,null,"DAUX"]
[null,null,null,null,null,"DECIZE"]
[null,null,null,null,null,"DEMANDOLX"]
[null,null,null,null,null,"DENEZE SOUS DOUE"]
[null,null,null,null,null,"DERBAMONT"]
[null,null,null,null,null,"DERNACUEILLETTE"]
[null,null,null,null,null,"DEUX JUMEAUX"]
[null,null,null,null,null,"DEVESSET"]
[null,null,null,null,null,"DIEFFENTHAL"]
[null,null,null,null,null,"DIENNE"]
[null,null,null,null,null,"DIGOSVILLE"]
[null,null,null,null,null,"DINAN"]
[null,null,null,null,null,"DINTEVILLE"]
[null,null,null,null,null,"DIZIMIEU"]
[null,null,null,null,null,"DOHEM"]
[null,null,null,null,null,"DOMAIZE"]
[null,null,null,null,null,"DOMECY SUR CURE"]
[null,null,null,null,null,"DOMESSIN"]
[null,null,null,null,null,"DOMMARTIN DAMPIERRE"]
[null,null,null,null,null,"DOMMARTIN LE ST PERE"]
[null,null,null,null,null,"DOMPIERRE SUR BESBRE"]
[null,null,null,null,null,"DOMPIERRE SUR MER"]
[null,null,null,null,null,"DOMQUEUR"]
[null,null,null,null,null,"DONNAZAC"]
[null,null,null,null,null,"DONZENAC"]
[null,null,null,null,null,"DORTAN"]
[null,null,null,null,null,"DOUCHY LES MINES"]
[null,null,null,null,null,"DOULEVANT LE CHATEAU"]
[null,null,null,null,null,"DOUSSARD"]
[null,null,null,null,null,"DOUZENS"]
[null,null,null,null,null,"DRAIZE"]
[null,null,null,null,null,"DRICOURT"]
[null,null,null,null,null,"DROUX"]
[null,null,null,null,null,"DRUYE"]
[null,null,null,null,null,"DUN"]
[null,null,null,null,null,"DUNIERES"]
[null,null,null,null,null,"DURLINSDORF"]
[null,null,null,null,null,"DURY"]
[null,null,null,null,null,"DZAOUDZI"]
[null,null,null,null,null,"ECCLES"]
[null,null,null,null,null,"ECHARCON"]
[null,null,null,null,null,"ECHOURGNAC"]
[null,null,null,null,null,"ECLASSAN"]
[null,null,null,null,null,"ECOUIS"]
[null,null,null,null,null,"ECRAINVILLE"]
[null,null,null,null,null,"ECURAS"]
[null,null,null,null,null,"EFFIAT"]
[null,null,null,null,null,"EGUILLES"]
[null,null,null,null,null,"ELBACH"]
[null,null,null,null,null,"ELOISE"]
[null,null,null,null,null,"EMEVILLE"]
[null,null,null,null,null,"ENENCOURT LE SEC"]
[null,null,null,null,null,"ENFONVELLE"]
[null,null,null,null,null,"ENNEMAIN"]
[null,null,null,null,null,"ENTRANGE"]
[null,null,null,null,null,"ENTZHEIM"]
[null,null,null,null,null,"EPARGNES"]
[null,null,null,null,null,"EPERNAY SOUS GEVREY"]
[null,null,null,null,null,"EPIEZ SUR MEUSE"]
[null,null,null,null,null,"EPIRY"]
[null,null,null,null,null,"EPRETOT"]
[null,null,null,null,null,"ERBEVILLER SUR AMEZULE"]
[null,null,null,null,null,"ERCOURT"]
[null,null,null,null,null,"ERMONT"]
[null,null,null,null,null,"EROME"]
[null,null,null,null,null,"ESBLY"]
[null,null,null,null,null,"ESCANDOLIERES"]
[null,null,null,null,null,"ESCLASSAN LABASTIDE"]
[null,null,null,null,null,"ESCOEUILLES"]
[null,null,null,null,null,"ESCOS"]
[null,null,null,null,null,"ESLEY"]
[null,null,null,null,null,"ESNON"]
[null,null,null,null,null,"ESPENEL"]
[null,null,null,null,null,"ESPIET"]
[null,null,null,null,null,"ESQUELBECQ"]
[null,null,null,null,null,"ESSERT ROMAND"]
[null,null,null,null,null,"ESSUILES"]
[null,null,null,null,null,"ESTAVAR"]
[null,null,null,null,null,"ESTIVAREILLES"]
[null,null,null,null,null,"ESTREE CAUCHY"]
[null,null,null,null,null,"ETABLES"]
[null,null,null,null,null,"ETANG SUR ARROUX"]
[null,null,null,null,null,"ETERVILLE"]
[null,null,null,null,null,"ETON"]
[null,null,null,null,null,"ETRELLES"]
[null,null,null,null,null,"ETRIAC"]
[null,null,null,null,null,"ETRIGNY"]
[null,null,null,null,null,"EVAUX ET MENIL"]
[null,null,null,null,null,"EVENOS"]
[null,null,null,null,null,"EXIREUIL"]
[null,null,null,null,null,"EYBURIE"]
[null,null,null,null,null,"EYJEAUX"]
[null,null,null,null,null,"EZE"]
[null,null,null,null,null,"FAGET ABBATIAL"]
[null,null,null,null,null,"FALLERANS"]
[null,null,null,null,null,"FAMECK"]
[null,null,null,null,null,"FATOUVILLE GRESTAIN"]
[null,null,null,null,null,"FAUCON"]
[null,null,null,null,null,"FAVARS"]
[null,null,null,null,null,"FAVEROIS"]
[null,null,null,null,null,"FAYET RONAYE"]
[null,null,null,null,null,"FAYS LA CHAPELLE"]
[null,null,null,null,null,"FEIGNEUX"]
[null,null,null,null,null,"FELLUNS"]
[null,null,null,null,null,"FENOLS"]
[null,null,null,null,null,"FEROLLES ATTILLY"]
[null,null,null,null,null,"FERRIERE SUR BEAULIEU"]
[null,null,null,null,null,"FERRUSSAC"]
[null,null,null,null,null,"FESTUBERT"]
[null,null,null,null,null,"FEURS"]
[null,null,null,null,null,"FIERVILLE BRAY"]
[null,null,null,null,null,"FILLINGES"]
[null,null,null,null,null,"FIXIN"]
[null,null,null,null,null,"FLAINVAL"]
[null,null,null,null,null,"FLAVIAC"]
[null,null,null,null,null,"FLECHY"]
[null,null,null,null,null,"FLETRANGE"]
[null,null,null,null,null,"FLEURBAIX"]
[null,null,null,null,null,"FLEVILLE"]
[null,null,null,null,null,"FLEYS"]
[null,null,null,null,null,"FLORIMONT"]
[null,null,null,null,null,"FLOURSIES"]
[null,null,null,null,null,"FOLLIGNY"]
[null,null,null,null,null,"FONCQUEVILLERS"]
[null,null,null,null,null,"FONTAINE DENIS NUISY"]
[null,null,null,null,null,"FONTAINE LA GUYON"]
[null,null,null,null,null,"FONTAINE LES HERMANS"]
[null,null,null,null,null,"FONTAINE SUR AY"]
[null,null,null,null,null,"FONTANGY"]
[null,null,null,null,null,"FONTENAY AUX ROSES"]
[null,null,null,null,null,"FONTENAY LE FLEURY"]
[null,null,null,null,null,"FONTENOY LA JOUTE"]
[null,null,null,null,null,"FONTENU"]
[null,null,null,null,null,"FONTPEDROUSE"]
[null,null,null,null,null,"FOREST L ABBAYE"]
[null,null,null,null,null,"FORMIGUERES"]
[null,null,null,null,null,"FOSSEMAGNE"]
[null,null,null,null,null,"FOUCHY"]
[null,null,null,null,null,"FOUILLEUSE"]
[null,null,null,null,null,"FOUQUEURE"]
[null,null,null,null,null,"FOURG"]
[null,null,null,null,null,"FOURQUES SUR GARONNE"]
[null,null,null,null,null,"FOZIERES"]
[null,null,null,null,null,"FRAMECOURT"]
[null,null,null,null,null,"FRANCESCAS"]
[null,null,null,null,null,"FRANGY EN BRESSE"]
[null,null,null,null,null,"FRANSU"]
[null,null,null,null,null,"FRECHEDE"]
[null,null,null,null,null,"FREJEVILLE"]
[null,null,null,null,null,"FREMERY"]
[null,null,null,null,null,"FRENEUSE"]
[null,null,null,null,null,"FRESNES"]
[null,null,null,null,null,"FRESNES TILLOLOY"]
[null,null,null,null,null,"FRESSAC"]
[null,null,null,null,null,"FRETERIVE"]
[null,null,null,null,null,"FREYCHENET"]
[null,null,null,null,null,"FRIESEN"]
[null,null,null,null,null,"FROIDMONT COHARTILLE"]
[null,null,null,null,null,"FRONTENAC"]
[null,null,null,null,null,"FROUZINS"]
[null,null,null,null,null,"FULLEREN"]
[null,null,null,null,null,"GAAS"]
[null,null,null,null,null,"GAGNAC SUR CERE"]
[null,null,null,null,null,"GAILLON"]
[null,null,null,null,null,"GALIAX"]
[null,null,null,null,null,"GAN"]
[null,null,null,null,null,"GANCOURT ST ETIENNE"]
[null,null,null,null,null,"GARDES LE PONTAROUX"]
[null,null,null,null,null,"GAREIN"]
[null,null,null,null,null,"GARINDEIN"]
[null,null,null,null,null,"GASNY"]
[null,null,null,null,null,"GATUZIERES"]
[null,null,null,null,null,"GAUVILLE LA CAMPAGNE"]
[null,null,null,null,null,"GAYAN"]
[null,null,null,null,null,"GELLENONCOURT"]
[null,null,null,null,null,"GEMEAUX"]
[null,null,null,null,null,"GENESTON"]
[null,null,null,null,null,"GENICOURT SUR MEUSE"]
[null,null,null,null,null,"GENSAC DE BOULOGNE"]
[null,null,null,null,null,"GENVRY"]
[null,null,null,null,null,"GERMAINE"]
[null,null,null,null,null,"GERMAINES"]
[null,null,null,null,null,"GERMONVILLE"]
[null,null,null,null,null,"GERY"]
[null,null,null,null,null,"GEVINGEY"]
[null,null,null,null,null,"GHISSIGNIES"]
[null,null,null,null,null,"GIF SUR YVETTE"]
[null,null,null,null,null,"GIJOUNET"]
[null,null,null,null,null,"GIMEAUX"]
[null,null,null,null,null,"GINOUILLAC"]
[null,null,null,null,null,"GIRIVILLER"]
[null,null,null,null,null,"GISSEY LE VIEIL"]
[null,null,null,null,null,"GIVORS"]
[null,null,null,null,null,"GLAMONDANS"]
[null,null,null,null,null,"GLENAC"]
[null,null,null,null,null,"GODISSON"]
[null,null,null,null,null,"GOLANCOURT"]
[null,null,null,null,null,"GOLLEVILLE"]
[null,null,null,null,null,"GONDRIN"]
[null,null,null,null,null,"GONFREVILLE L ORCHER"]
[null,null,null,null,null,"GORZE"]
[null,null,null,null,null,"GOUAIX"]
[null,null,null,null,null,"GOULET"]
[null,null,null,null,null,"GOURAINCOURT"]
[null,null,null,null,null,"GOURVIEILLE"]
[null,null,null,null,null,"GOUTEVERNISSE"]
[null,null,null,null,null,"GOUZANGREZ"]
[null,null,null,null,null,"GRACAY"]
[null,null,null,null,null,"GRAIGNES MESNIL ANGOT"]
[null,null,null,null,null,"GRAND CAMP"]
[null,null,null,null,null,"GRAND COMBE DES BOIS"]
[null,null,null,null,null,"GRANDPARIGNY"]
[null,null,null,null,null,"GRANDRIEU"]
[null,null,null,null,null,"GRANDVILLERS"]
[null,null,null,null,null,"GRANS"]
[null,null,null,null,null,"GRAULHET"]
[null,null,null,null,null,"GRAZAC"]
[null,null,null,null,null,"GRENANT"]
[null,null,null,null,null,"GRESSWILLER"]
[null,null,null,null,null,"GREZELS"]
[null,null,null,null,null,"GRIGNON"]
[null,null,null,null,null,"GRIPPORT"]
[null,null,null,null,null,"GROS CHASTANG"]
[null,null,null,null,null,"GROSNE"]
[null,null,null,null,null,"GRUISSAN"]
[null,null,null,null,null,"GUAGNO"]
[null,null,null,null,null,"GUEMENE PENFAO"]
[null,null,null,null,null,"GUER"]
[null,null,null,null,null,"GUESNAIN"]
[null,null,null,null,null,"GUEUX"]
[null,null,null,null,null,"GUICHE"]
[null,null,null,null,null,"GUILLIERS"]
[null,null,null,null,null,"GUIMPS"]
[null,null,null,null,null,"GUISY"]
[null,null,null,null,null,"GUJAN MESTRAS"]
[null,null,null,null,null,"GURUNHUEL"]
[null,null,null,null,null,"GY"]
[null,null,null,null,null,"HAEGEN"]
[null,null,null,null,null,"HAGONDANGE"]
[null,null,null,null,null,"HALLIVILLERS"]
[null,null,null,null,null,"HAMBLAIN LES PRES"]
[null,null,null,null,null,"HANCOURT"]
[null,null,null,null,null,"HANS"]
[null,null,null,null,null,"HARCANVILLE"]
[null,null,null,null,null,"HARGARTEN AUX MINES"]
[null,null,null,null,null,"HARSAULT"]
[null,null,null,null,null,"HARTENNES ET TAUX"]
[null,null,null,null,null,"HATTIGNY"]
[null,null,null,null,null,"HAUMONT PRES SAMOGNEUX"]
[null,null,null,null,null,"HAUTBOS"]
[null,null,null,null,null,"HAUTEFAGE LA TOUR"]
[null,null,null,null,null,"HAUTEVILLE SUR MER"]
[null,null,null,null,null,"HAUTVILLERS"]
[null,null,null,null,null,"HECKEN"]
[null,null,null,null,null,"HEIDOLSHEIM"]
[null,null,null,null,null,"HELLIMER"]
[null,null,null,null,null,"HEMILLY"]
[null,null,null,null,null,"HENRICHEMONT"]
[null,null,null,null,null,"HERBELLES"]
[null,null,null,null,null,"HERIMONCOURT"]
[null,null,null,null,null,"HERLIN LE SEC"]
[null,null,null,null,null,"HERMERAY"]
[null,null,null,null,null,"HERRERE"]
[null,null,null,null,null,"HERZEELE"]
[null,null,null,null,null,"HEUDEBOUVILLE"]
[null,null,null,null,null,"HEUQUEVILLE"]
[null,null,null,null,null,"HIIS"]
[null,null,null,null,null,"HIPSHEIM"]
[null,null,null,null,null,"HODENG AU BOSC"]
[null,null,null,null,null,"HOLTZHEIM"]
[null,null,null,null,null,"HONDOUVILLE"]
[null,null,null,null,null,"HOSTE"]
[null,null,null,null,null,"HOUDEMONT"]
[null,null,null,null,null,"HOUPLINES"]
[null,null,null,null,null,"HOUTKERQUE"]
[null,null,null,null,null,"HUETRE"]
[null,null,null,null,null,"HULLUCH"]
[null,null,null,null,null,"HUMBERCAMPS"]
[null,null,null,null,null,"HUSSIGNY GODBRANGE"]
[null,null,null,null,null,"HYERES"]
[null,null,null,null,null,"IGUERANDE"]
[null,null,null,null,null,"ILE DE BREHAT"]
[null,null,null,null,null,"ILLIER ET LARAMADE"]
[null,null,null,null,null,"INEUIL"]
[null,null,null,null,null,"INGRANDES LE FRESNE SUR LOIRE"]
[null,null,null,null,null,"IRE LE SEC"]
[null,null,null,null,null,"IS SUR TILLE"]
[null,null,null,null,null,"ISLAND"]
[null,null,null,null,null,"ISSENHAUSEN"]
[null,null,null,null,null,"ISSIRAC"]
[null,null,null,null,null,"IVRY LE TEMPLE"]
[null,null,null,null,null,"IZAUT DE L HOTEL"]
[null,null,null,null,null,"JALESCHES"]
[null,null,null,null,null,"JALLANGES"]
[null,null,null,null,null,"JANDUN"]
[null,null,null,null,null,"JARNIOUX"]
[null,null,null,null,null,"JASSES"]
[null,null,null,null,null,"JAUX"]
[null,null,null,null,null,"JEANCOURT"]
[null,null,null,null,null,"JEUFOSSE"]
[null,null,null,null,null,"JOINVILLE LE PONT"]
[null,null,null,null,null,"JONGIEUX"]
[null,null,null,null,null,"JOSSIGNY"]
[null,null,null,null,null,"JOUE DU PLAIN"]
[null,null,null,null,null,"JOUSSE"]
[null,null,null,null,null,"JOUY LES REIMS"]
[null,null,null,null,null,"JUIGNE SUR LOIRE"]
[null,null,null,null,null,"JUILLY"]
[null,null,null,null,null,"JUNAY"]
[null,null,null,null,null,"JURQUES"]
[null,null,null,null,null,"JUSSECOURT MINECOURT"]
[null,null,null,null,null,"JUVILLE"]
[null,null,null,null,null,"JUZET D IZAUT"]
[null,null,null,null,null,"KERGRIST MOELOU"]
[null,null,null,null,null,"KERPERT"]
[null,null,null,null,null,"KIRRWILLER"]
[null,null,null,null,null,"KRAUTERGERSHEIM"]
[null,null,null,null,null,"L ABERGEMENT STE COLOMBE"]
[null,null,null,null,null,"L ESCARENE"]
[null,null,null,null,null,"L HERMITAGE"]
[null,null,null,null,null,"L HOUMEAU"]
[null,null,null,null,null,"L ISLE EN DODON"]
[null,null,null,null,null,"LA BARBEN"]
[null,null,null,null,null,"LA BASTIDE DES JOURDANS"]
[null,null,null,null,null,"LA BAULE ESCOUBLAC"]
[null,null,null,null,null,"LA BAUME"]
[null,null,null,null,null,"LA BELLIOLE"]
[null,null,null,null,null,"LA BOISSIERE DES LANDES"]
[null,null,null,null,null,"LA BOURBOULE"]
[null,null,null,null,null,"LA BRUERE SUR LOIR"]
[null,null,null,null,null,"LA CADIERE ET CAMBO"]
[null,null,null,null,null,"LA CELLE"]
[null,null,null,null,null,"LA CELLE SUR MORIN"]
[null,null,null,null,null,"LA CHAPELLE AU MOINE"]
[null,null,null,null,null,"LA CHAPELLE BALOUE"]
[null,null,null,null,null,"LA CHAPELLE DE LA TOUR"]
[null,null,null,null,null,"LA CHAPELLE DU CHATELARD"]
[null,null,null,null,null,"LA CHAPELLE HARENG"]
[null,null,null,null,null,"LA CHAPELLE LA REINE"]
[null,null,null,null,null,"LA CHAPELLE REANVILLE"]
[null,null,null,null,null,"LA CHAPELLE ST AUBERT"]
[null,null,null,null,null,"LA CHAPELLE ST MARTIAL"]
[null,null,null,null,null,"LA CHAPELLE TAILLEFERT"]
[null,null,null,null,null,"LA CHAPELOTTE"]
[null,null,null,null,null,"LA CHAUX"]
[null,null,null,null,null,"LA CHEZE"]
[null,null,null,null,null,"LA CORBIERE"]
[null,null,null,null,null,"LA COURTINE"]
[null,null,null,null,null,"LA CROIX DE LA ROCHETTE"]
[null,null,null,null,null,"LA DIGNE D AVAL"]
[null,null,null,null,null,"LA FAYE"]
[null,null,null,null,null,"LA FERTE BERNARD"]
[null,null,null,null,null,"LA FEUILLEE"]
[null,null,null,null,null,"LA FORESTIERE"]
[null,null,null,null,null,"LA FREDIERE"]
[null,null,null,null,null,"LA GAUBRETIERE"]
[null,null,null,null,null,"LA GOUTELLE"]
[null,null,null,null,null,"LA GRESLE"]
[null,null,null,null,null,"LA GRIPPERIE ST SYMPHORIEN"]
[null,null,null,null,null,"LA HAYE MALHERBE"]
[null,null,null,null,null,"LA HEUNIERE"]
[null,null,null,null,null,"LA LANDE ST LEGER"]
[null,null,null,null,null,"LA LECHERE"]
[null,null,null,null,null,"LA MADELEINE VILLEFROUIN"]
[null,null,null,null,null,"LA MANCELIERE"]
[null,null,null,null,null,"LA MEAUFFE"]
[null,null,null,null,null,"LA MOTTE DE GALAURE"]
[null,null,null,null,null,"LA MOTTE SERVOLEX"]
[null,null,null,null,null,"LA NEUVILLE D AUMONT"]
[null,null,null,null,null,"LA NEUVILLE HOUSSET"]
[null,null,null,null,null,"LA PERCHE"]
[null,null,null,null,null,"LA PESSE"]
[null,null,null,null,null,"LA PRENESSAYE"]
[null,null,null,null,null,"LA PUISAYE"]
[null,null,null,null,null,"LA REMUEE"]
[null,null,null,null,null,"LA ROCHE BLANCHE"]
[null,null,null,null,null,"LA ROCHE POSAY"]
[null,null,null,null,null,"LA ROMAGNE"]
[null,null,null,null,null,"LA ROQUETTE SUR SIAGNE"]
[null,null,null,null,null,"LA SALVETAT PEYRALES"]
[null,null,null,null,null,"LA SELLE CRAONNAISE"]
[null,null,null,null,null,"LA SUZE SUR SARTHE"]
[null,null,null,null,null,"LA TOMBE"]
[null,null,null,null,null,"LA TRETOIRE"]
[null,null,null,null,null,"LA TUILIERE"]
[null,null,null,null,null,"LA VERDIERE"]
[null,null,null,null,null,"LA VEUVE"]
[null,null,null,null,null,"LA VILLENEUVE AU CHENE"]
[null,null,null,null,null,"LA VOULTE SUR RHONE"]
[null,null,null,null,null,"LABAROCHE"]
[null,null,null,null,null,"LABASTIDE GABAUSSE"]
[null,null,null,null,null,"LABASTIDE ST SERNIN"]
[null,null,null,null,null,"LABESSETTE"]
[null,null,null,null,null,"LABORDE"]
[null,null,null,null,null,"LACAJUNTE"]
[null,null,null,null,null,"LACAPELLE SEGALAR"]
[null,null,null,null,null,"LACHAPELLE EN BLAISY"]
[null,null,null,null,null,"LACHAUX"]
[null,null,null,null,null,"LACROIX SUR MEUSE"]
[null,null,null,null,null,"LADIRAT"]
[null,null,null,null,null,"LAFITOLE"]
[null,null,null,null,null,"LAGARDE PAREOL"]
[null,null,null,null,null,"LAGNY SUR MARNE"]
[null,null,null,null,null,"LAGUIAN MAZOUS"]
[null,null,null,null,null,"LAHOUSSOYE"]
[null,null,null,null,null,"LAIFOUR"]
[null,null,null,null,null,"LAIRE"]
[null,null,null,null,null,"LALANDE"]
[null,null,null,null,null,"LALLAING"]
[null,null,null,null,null,"LAMANCINE"]
[null,null,null,null,null,"LAMAZERE"]
[null,null,null,null,null,"LAMILLARIE"]
[null,null,null,null,null,"LAMOTHE CASSEL"]
[null,null,null,null,null,"LANANS"]
[null,null,null,null,null,"LANCON"]
[null,null,null,null,null,"LANDES"]
[null,null,null,null,null,"LANDOUZY LA COUR"]
[null,null,null,null,null,"LANDRETHUN LE NORD"]
[null,null,null,null,null,"LANEUVILLE A REMY"]
[null,null,null,null,null,"LANGATTE"]
[null,null,null,null,null,"LANGUIDIC"]
[null,null,null,null,null,"LANING"]
[null,null,null,null,null,"LANNE SOUBIRAN"]
[null,null,null,null,null,"LANQUAIS"]
[null,null,null,null,null,"LANSARGUES"]
[null,null,null,null,null,"LANTOSQUE"]
[null,null,null,null,null,"LAON"]
[null,null,null,null,null,"LAPEYRUGUE"]
[null,null,null,null,null,"LARAJASSE"]
[null,null,null,null,null,"LARGEASSE"]
[null,null,null,null,null,"LARNOD"]
[null,null,null,null,null,"LARRAU"]
[null,null,null,null,null,"LARROQUE TOIRAC"]
[null,null,null,null,null,"LASSALES"]
[null,null,null,null,null,"LASTIC"]
[null,null,null,null,null,"LATRAPE"]
[null,null,null,null,null,"LAULNE"]
[null,null,null,null,null,"LAURAGUEL"]
[null,null,null,null,null,"LAURENS"]
[null,null,null,null,null,"LAVAL DU TARN"]
[null,null,null,null,null,"LAVAL PRADEL"]
[null,null,null,null,null,"LAVAU"]
[null,null,null,null,null,"LAVAUR"]
[null,null,null,null,null,"LAVEYRON"]
[null,null,null,null,null,"LAVIGNY"]
[null,null,null,null,null,"LAVIRON"]
[null,null,null,null,null,"LE BAILLEUL"]
[null,null,null,null,null,"LE BARROUX"]
[null,null,null,null,null,"LE BOCASSE"]
[null,null,null,null,null,"LE BOUCHET ST NICOLAS"]
[null,null,null,null,null,"LE BOULLAY MIVOYE"]
[null,null,null,null,null,"LE BREUIL SUR COUZE"]
[null,null,null,null,null,"LE BRUGERON"]
[null,null,null,null,null,"LE CAIRE"]
[null,null,null,null,null,"LE CERGNE"]
[null,null,null,null,null,"LE CHARME"]
[null,null,null,null,null,"LE CHAY"]
[null,null,null,null,null,"LE CLOITRE ST THEGONNEC"]
[null,null,null,null,null,"LE CROISIC"]
[null,null,null,null,null,"LE DORAT"]
[null,null,null,null,null,"LE FEL"]
[null,null,null,null,null,"LE FRECHE"]
[null,null,null,null,null,"LE GAULT ST DENIS"]
[null,null,null,null,null,"LE GRAND VILLAGE PLAGE"]
[null,null,null,null,null,"LE HAILLAN"]
[null,null,null,null,null,"LE JUCH"]
[null,null,null,null,null,"LE LESLAY"]
[null,null,null,null,null,"LE MAGE"]
[null,null,null,null,null,"LE MARIN"]
[null,null,null,null,null,"LE MAS DE TENCE"]
[null,null,null,null,null,"LE MERIOT"]
[null,null,null,null,null,"LE MESNIL AMELOT"]
[null,null,null,null,null,"LE MESNIL MAUGER"]
[null,null,null,null,null,"LE MESNIL SOUS JUMIEGES"]
[null,null,null,null,null,"LE MONETIER LES BAINS"]
[null,null,null,null,null,"LE MONTET"]
[null,null,null,null,null,"LE PALLET"]
[null,null,null,null,null,"LE PEGUE"]
[null,null,null,null,null,"LE PIAN SUR GARONNE"]
[null,null,null,null,null,"LE PLANTAY"]
[null,null,null,null,null,"LE PLESSIS LUZARCHES"]
[null,null,null,null,null,"LE POINCONNET"]
[null,null,null,null,null,"LE POUGET"]
[null,null,null,null,null,"LE POUT"]
[null,null,null,null,null,"LE REVEST LES EAUX"]
[null,null,null,null,null,"LE RHEU"]
[null,null,null,null,null,"LE SAINT"]
[null,null,null,null,null,"LE SOULIE"]
[null,null,null,null,null,"LE TEMPLE"]
[null,null,null,null,null,"LE THOR"]
[null,null,null,null,null,"LE TOUR DU PARC"]
[null,null,null,null,null,"LE TREVOUX"]
[null,null,null,null,null,"LE VALTIN"]
[null,null,null,null,null,"LE VERGER"]
[null,null,null,null,null,"LE VIGAN"]
[null,null,null,null,null,"LE WAST"]
[null,null,null,null,null,"LEDAS ET PENTHIES"]
[null,null,null,null,null,"LEERS"]
[null,null,null,null,null,"LEIMBACH"]
[null,null,null,null,null,"LEMBRAS"]
[null,null,null,null,null,"LENONCOURT"]
[null,null,null,null,null,"LENTILLES"]
[null,null,null,null,null,"LEONCEL"]
[null,null,null,null,null,"LERZY"]
[null,null,null,null,null,"LES ALLEUDS"]
[null,null,null,null,null,"LES AUTHIEUX DU PUITS"]
[null,null,null,null,null,"LES BARTHES"]
[null,null,null,null,null,"LES BROUZILS"]
[null,null,null,null,null,"LES CHAPELLES"]
[null,null,null,null,null,"LES CRESNAYS"]
[null,null,null,null,null,"LES EPARRES"]
[null,null,null,null,null,"LES FONTENELLES"]
[null,null,null,null,null,"LES GRANGES GONTARDES"]
[null,null,null,null,null,"LES HOGUES"]
[null,null,null,null,null,"LES LOGES"]
[null,null,null,null,null,"LES MATELLES"]
[null,null,null,null,null,"LES MONCEAUX"]
[null,null,null,null,null,"LES MONTS D ANDAINE"]
[null,null,null,null,null,"LES PIARDS"]
[null,null,null,null,null,"LES PINS"]
[null,null,null,null,null,"LES ROUGES EAUX"]
[null,null,null,null,null,"LES SALELLES"]
[null,null,null,null,null,"LES TERRES DE CHAUX"]
[null,null,null,null,null,"LES VENTES"]
[null,null,null,null,null,"LES VOIVRES"]
[null,null,null,null,null,"LESDAIN"]
[null,null,null,null,null,"LESNEVEN"]
[null,null,null,null,null,"LESSY"]
[null,null,null,null,null,"LESTRADE ET THOUELS"]
[null,null,null,null,null,"LEURY"]
[null,null,null,null,null,"LEVALLOIS PERRET"]
[null,null,null,null,null,"LEYMENT"]
[null,null,null,null,null,"LEYRIEU"]
[null,null,null,null,null,"LEZEVILLE"]
[null,null,null,null,null,"LHUITRE"]
[null,null,null,null,null,"LIBOURNE"]
[null,null,null,null,null,"LIENCOURT"]
[null,null,null,null,null,"LIESSIES"]
[null,null,null,null,null,"LIEZEY"]
[null,null,null,null,null,"LIGNE"]
[null,null,null,null,null,"LIGNORELLES"]
[null,null,null,null,null,"LIHONS"]
[null,null,null,null,null,"LIMEIL BREVANNES"]
[null,null,null,null,null,"LIMONT FONTAINE"]
[null,null,null,null,null,"LINDRE BASSE"]
[null,null,null,null,null,"LINTOT"]
[null,null,null,null,null,"LIOURDRES"]
[null,null,null,null,null,"LISSAC"]
[null,null,null,null,null,"LIVAROT PAYS D AUGE"]
[null,null,null,null,null,"LIVRE LA TOUCHE"]
[null,null,null,null,null,"LIVRY LOUVERCY"]
[null,null,null,null,null,"LOCHES"]
[null,null,null,null,null,"LOCMARIA GRAND CHAMP"]
[null,null,null,null,null,"LOGELHEIM"]
[null,null,null,null,null,"LOHITZUN OYHERCQ"]
[null,null,null,null,null,"LOIVRE"]
[null,null,null,null,null,"LOMBRON"]
[null,null,null,null,null,"LONGCOCHON"]
[null,null,null,null,null,"LONGESSAIGNE"]
[null,null,null,null,null,"LONGPRE LE SEC"]
[null,null,null,null,null,"LONGUENEE EN ANJOU"]
[null,null,null,null,null,"LONLAY LE TESSON"]
[null,null,null,null,null,"LOPIGNA"]
[null,null,null,null,null,"LORAY"]
[null,null,null,null,null,"LORRIS"]
[null,null,null,null,null,"LORRY MARDIGNY"]
[null,null,null,null,null,"LOUATRE"]
[null,null,null,null,null,"LOUCELLES"]
[null,null,null,null,null,"LOUEUSE"]
[null,null,null,null,null,"LOUPES"]
[null,null,null,null,null,"LOURES BAROUSSE"]
[null,null,null,null,null,"LOUTEHEL"]
[null,null,null,null,null,"LOUVIGNE DE BAIS"]
[null,null,null,null,null,"LOUZES"]
[null,null,null,null,null,"LUBLE"]
[null,null,null,null,null,"LUCAY LE MALE"]
[null,null,null,null,null,"LUCINGES"]
[null,null,null,null,null,"LUDESSE"]
[null,null,null,null,null,"LUIGNE"]
[null,null,null,null,null,"LUMEAU"]
[null,null,null,null,null,"LUPSTEIN"]
[null,null,null,null,null,"LUQUET"]
[null,null,null,null,null,"LUSSAC LES CHATEAUX"]
[null,null,null,null,null,"LUSSAULT SUR LOIRE"]
[null,null,null,null,null,"LUYNES"]
[null,null,null,null,null,"LUZINAY"]
[null,null,null,null,null,"LYS"]
[null,null,null,null,null,"MACHAULT"]
[null,null,null,null,null,"MACQUEVILLE"]
[null,null,null,null,null,"MAEL CARHAIX"]
[null,null,null,null,null,"MAGNET"]
[null,null,null,null,null,"MAGNY COURS"]
[null,null,null,null,null,"MAGNY LORMES"]
[null,null,null,null,null,"MAIGNE"]
[null,null,null,null,null,"MAILLEZAIS"]
[null,null,null,null,null,"MAINTENON"]
[null,null,null,null,null,"MAISOD"]
[null,null,null,null,null,"MAISON FEYNE"]
[null,null,null,null,null,"MAIXE"]
[null,null,null,null,null,"MAIZERY"]
[null,null,null,null,null,"MALAUCOURT SUR SEILLE"]
[null,null,null,null,null,"MALAUZAT"]
[null,null,null,null,null,"MALEGOUDE"]
[null,null,null,null,null,"MALLERET BOUSSAC"]
[null,null,null,null,null,"MALOUY"]
[null,null,null,null,null,"MAMOUDZOU"]
[null,null,null,null,null,"MANCIEULLES"]
[null,null,null,null,null,"MANERBE"]
[null,null,null,null,null,"MANIGOD"]
[null,null,null,null,null,"MANSAN"]
[null,null,null,null,null,"MANSO"]
[null,null,null,null,null,"MARANGE SILVANGE"]
[null,null,null,null,null,"MARANWEZ"]
[null,null,null,null,null,"MARBOIS"]
[null,null,null,null,null,"MARCHAMPT"]
[null,null,null,null,null,"MARCHEVILLE"]
[null,null,null,null,null,"MARCILLAT EN COMBRAILLE"]
[null,null,null,null,null,"MARCILLY SUR MAULNE"]
[null,null,null,null,null,"MARCORIGNAN"]
[null,null,null,null,null,"MAREIL LE GUYON"]
[null,null,null,null,null,"MARESVILLE"]
[null,null,null,null,null,"MAREY SUR TILLE"]
[null,null,null,null,null,"MARGUERAY"]
[null,null,null,null,null,"MARIGNANA"]
[null,null,null,null,null,"MARIGNY ST MARCEL"]
[null,null,null,null,null,"MARIZY STE GENEVIEVE"]
[null,null,null,null,null,"MARMAGNE"]
[null,null,null,null,null,"MARNAZ"]
[null,null,null,null,null,"MAROMME"]
[null,null,null,null,null,"MARQUERIE"]
[null,null,null,null,null,"MARQUION"]
[null,null,null,null,null,"MARSANNE"]
[null,null,null,null,null,"MARSEILLE 03"]
[null,null,null,null,null,"MARTAGNY"]
[null,null,null,null,null,"MARTHILLE"]
[null,null,null,null,null,"MARTINVAST"]
[null,null,null,null,null,"MARTRES TOLOSANE"]
[null,null,null,null,null,"MAS SAINTES PUELLES"]
[null,null,null,null,null,"MASNIERES"]
[null,null,null,null,null,"MASSIEU"]
[null,null,null,null,null,"MASSONGY"]
[null,null,null,null,null,"MATAFELON GRANGES"]
[null,null,null,null,null,"MAUCOURT"]
[null,null,null,null,null,"MAUGUIO"]
[null,null,null,null,null,"MAUREGNY EN HAYE"]
[null,null,null,null,null,"MAUREMONT"]
[null,null,null,null,null,"MAURS"]
[null,null,null,null,null,"MAUVEZIN SUR GUPIE"]
[null,null,null,null,null,"MAXILLY SUR LEMAN"]
[null,null,null,null,null,"MAYREVILLE"]
[null,null,null,null,null,"MAZERES"]
[null,null,null,null,null,"MAZIERES NARESSE"]
[null,null,null,null,null,"MEALLET"]
[null,null,null,null,null,"MEDILLAC"]
[null,null,null,null,null,"MEHONCOURT"]
[null,null,null,null,null,"MEISENTHAL"]
[null,null,null,null,null,"MELICOURT"]
[null,null,null,null,null,"MELVE"]
[null,null,null,null,null,"MENCAS"]
[null,null,null,null,null,"MENETREOL SUR SAULDRE"]
[null,null,null,null,null,"MENIGOUTE"]
[null,null,null,null,null,"MENIL GONDOUIN"]
[null,null,null,null,null,"MENOUVILLE"]
[null,null,null,null,null,"MENTIERES"]
[null,null,null,null,null,"MERCUER"]
[null,null,null,null,null,"MERE"]
[null,null,null,null,null,"MERIFONS"]
[null,null,null,null,null,"MERINDOL LES OLIVIERS"]
[null,null,null,null,null,"MERREY"]
[null,null,null,null,null,"MERTZEN"]
[null,null,null,null,null,"MESANDANS"]
[null,null,null,null,null,"MESLIERES"]
[null,null,null,null,null,"MESNIL RAOUL"]
[null,null,null,null,null,"MESPLES"]
[null,null,null,null,null,"MESSINCOURT"]
[null,null,null,null,null,"METZ LE COMTE"]
[null,null,null,null,null,"MEURCE"]
[null,null,null,null,null,"MEURCOURT"]
[null,null,null,null,null,"MEYRONNE"]
[null,null,null,null,null,"MEYSSAC"]
[null,null,null,null,null,"MEZIDON CANON"]
[null,null,null,null,null,"MEZY SUR SEINE"]
[null,null,null,null,null,"MIEUXCE"]
[null,null,null,null,null,"MIGNOVILLARD"]
[null,null,null,null,null,"MILLEMONT"]
[null,null,null,null,null,"MILON LA CHAPELLE"]
[null,null,null,null,null,"MIQUELON LANGLADE"]
[null,null,null,null,null,"MIRAMONT DE GUYENNE"]
[null,null,null,null,null,"MIRIBEL LANCHATRE"]
[null,null,null,null,null,"MISERIEUX"]
[null,null,null,null,null,"MITZACH"]
[null,null,null,null,null,"MOERNACH"]
[null,null,null,null,null,"MOISENAY"]
[null,null,null,null,null,"MOISSAT"]
[null,null,null,null,null,"MOITRON SUR SARTHE"]
[null,null,null,null,null,"MOLINCHART"]
[null,null,null,null,null,"MOLLES"]
[null,null,null,null,null,"MONACIA D AULLENE"]
[null,null,null,null,null,"MONCASSIN"]
[null,null,null,null,null,"MONCEL SUR VAIR"]
[null,null,null,null,null,"MONCHY HUMIERES"]
[null,null,null,null,null,"MONDELANGE"]
[null,null,null,null,null,"MONDRAINVILLE"]
[null,null,null,null,null,"MONETIER ALLEMONT"]
[null,null,null,null,null,"MONLAUR BERNET"]
[null,null,null,null,null,"MONNETIER MORNEX"]
[null,null,null,null,null,"MONSEMPRON LIBOS"]
[null,null,null,null,null,"MONT DE GALIE"]
[null,null,null,null,null,"MONT NOTRE DAME"]
[null,null,null,null,null,"MONT ST REMY"]
[null,null,null,null,null,"MONT SUR MONNET"]
[null,null,null,null,null,"MONTAGNY LES BUXY"]
[null,null,null,null,null,"MONTAGOUDIN"]
[null,null,null,null,null,"MONTAMBERT"]
[null,null,null,null,null,"MONTANER"]
[null,null,null,null,null,"MONTAUBAN"]
[null,null,null,null,null,"MONTBARTIER"]
[null,null,null,null,null,"MONTBENOIT"]
[null,null,null,null,null,"MONTBRAND"]
[null,null,null,null,null,"MONTBRUN DES CORBIERES"]
[null,null,null,null,null,"MONTCAVREL"]
[null,null,null,null,null,"MONTCLAR SUR GERVANNE"]
[null,null,null,null,null,"MONTCONY"]
[null,null,null,null,null,"MONTEGUT PLANTAUREL"]
[null,null,null,null,null,"MONTEILS"]
[null,null,null,null,null,"MONTENILS"]
[null,null,null,null,null,"MONTESQUIEU"]
[null,null,null,null,null,"MONTEZIC"]
[null,null,null,null,null,"MONTFERRIER SUR LEZ"]
[null,null,null,null,null,"MONTFROC"]
[null,null,null,null,null,"MONTGERAIN"]
[null,null,null,null,null,"MONTGUERS"]
[null,null,null,null,null,"MONTHODON"]
[null,null,null,null,null,"MONTIGNAC"]
[null,null,null,null,null,"MONTIGNY EN GOHELLE"]
[null,null,null,null,null,"MONTIGNY LES VAUCOULEURS"]
[null,null,null,null,null,"MONTIGNY SUR L AIN"]
[null,null,null,null,null,"MONTJEAN"]
[null,null,null,null,null,"MONTLAUR"]
[null,null,null,null,null,"MONTMAGNY"]
[null,null,null,null,null,"MONTMAUR"]
[null,null,null,null,null,"MONTMELIAN"]
[null,null,null,null,null,"MONTOIRE SUR LE LOIR"]
[null,null,null,null,null,"MONTORY"]
[null,null,null,null,null,"MONTPLONNE"]
[null,null,null,null,null,"MONTREAL LA CLUSE"]
[null,null,null,null,null,"MONTREUIL L ARGILLE"]
[null,null,null,null,null,"MONTREUIL SUR ILLE"]
[null,null,null,null,null,"MONTRICOUX"]
[null,null,null,null,null,"MONTS EN BESSIN"]
[null,null,null,null,null,"MONTSELGUES"]
[null,null,null,null,null,"MONTVALENT"]
[null,null,null,null,null,"MOOSCH"]
[null,null,null,null,null,"MORBIER"]
[null,null,null,null,null,"MOREY"]
[null,null,null,null,null,"MORIGNY CHAMPIGNY"]
[null,null,null,null,null,"MORLHON LE HAUT"]
[null,null,null,null,null,"MORNE A L EAU"]
[null,null,null,null,null,"MOROGUES"]
[null,null,null,null,null,"MORTAGNE AU PERCHE"]
[null,null,null,null,null,"MORVAL"]
[null,null,null,null,null,"MOSLES"]
[null,null,null,null,null,"MOUAVILLE"]
[null,null,null,null,null,"MOUFLERS"]
[null,null,null,null,null,"MOULEZAN"]
[null,null,null,null,null,"MOULINS"]
[null,null,null,null,null,"MOURENS"]
[null,null,null,null,null,"MOURMELON LE PETIT"]
[null,null,null,null,null,"MOUSSY LE VIEUX"]
[null,null,null,null,null,"MOUSTOIR AC"]
[null,null,null,null,null,"MOUVAUX"]
[null,null,null,null,null,"MOUZENS"]
[null,null,null,null,null,"MTSAMBORO"]
[null,null,null,null,null,"MUGRON"]
[null,null,null,null,null,"MULHAUSEN"]
[null,null,null,null,null,"MURAT SUR VEBRE"]
[null,null,null,null,null,"MURLIN"]
[null,null,null,null,null,"MUSSIDAN"]
[null,null,null,null,null,"MUZY"]
[null,null,null,null,null,"NAILLOUX"]
[null,null,null,null,null,"NAMPONT"]
[null,null,null,null,null,"NANCY SUR CLUSES"]
[null,null,null,null,null,"NANTEUIL"]
[null,null,null,null,null,"NANTOIN"]
[null,null,null,null,null,"NARROSSE"]
[null,null,null,null,null,"NAVACELLES"]
[null,null,null,null,null,"NEAUFLES AUVERGNY"]
[null,null,null,null,null,"NEFIACH"]
[null,null,null,null,null,"NERAC"]
[null,null,null,null,null,"NERET"]
[null,null,null,null,null,"NESPLOY"]
[null,null,null,null,null,"NEUBLANS ABERGEMENT"]
[null,null,null,null,null,"NEUFMOUTIERS EN BRIE"]
[null,null,null,null,null,"NEUILH"]
[null,null,null,null,null,"NEUILLY SUR SEINE"]
[null,null,null,null,null,"NEURE"]
[null,null,null,null,null,"NEUVILLE BOURJONVAL"]
[null,null,null,null,null,"NEUVILLE LES DAMES"]
[null,null,null,null,null,"NEUVILLE ST REMY"]
[null,null,null,null,null,"NEUVIREUIL"]
[null,null,null,null,null,"NEUVY EN CHAMPAGNE"]
[null,null,null,null,null,"NEZIGNAN L EVEQUE"]
[null,null,null,null,null,"NIBLES"]
[null,null,null,null,null,"NIEUDAN"]
[null,null,null,null,null,"NIEUL LE DOLENT"]
[null,null,null,null,null,"NINVILLE"]
[null,null,null,null,null,"NOAILLAC"]
[null,null,null,null,null,"NOELLET"]
[null,null,null,null,null,"NOGENT SUR MARNE"]
[null,null,null,null,null,"NOIDANS LES VESOUL"]
[null,null,null,null,null,"NOIRVAL"]
[null,null,null,null,null,"NOMDIEU"]
[null,null,null,null,null,"NONHIGNY"]
[null,null,null,null,null,"NORON L ABBAYE"]
[null,null,null,null,null,"NORTKERQUE"]
[null,null,null,null,null,"NOTRE DAME DE L OSIER"]
[null,null,null,null,null,"NOTRE DAME DU PRE"]
[null,null,null,null,null,"NOUIC"]
[null,null,null,null,null,"NOUZEROLLES"]
[null,null,null,null,null,"NOVIANT AUX PRES"]
[null,null,null,null,null,"NOYELLES GODAULT"]
[null,null,null,null,null,"NOYELLETTE"]
[null,null,null,null,null,"NOYERS ST MARTIN"]
[null,null,null,null,null,"NURET LE FERRON"]
[null,null,null,null,null,"OBERBRONN"]
[null,null,null,null,null,"OBERVISSE"]
[null,null,null,null,null,"OCCAGNES"]
[null,null,null,null,null,"OEUF EN TERNOIS"]
[null,null,null,null,null,"OFFRANVILLE"]
[null,null,null,null,null,"OIGNY"]
[null,null,null,null,null,"OISON"]
[null,null,null,null,null,"OLIVET"]
[null,null,null,null,null,"OLMET"]
[null,null,null,null,null,"OMESSA"]
[null,null,null,null,null,"OMS"]
[null,null,null,null,null,"ONNAING"]
[null,null,null,null,null,"ORAAS"]
[null,null,null,null,null,"ORADOUR"]
[null,null,null,null,null,"ORBIGNY"]
[null,null,null,null,null,"ORCIVAL"]
[null,null,null,null,null,"ORGELET"]
[null,null,null,null,null,"ORIEUX"]
[null,null,null,null,null,"ORLEANS"]
[null,null,null,null,null,"ORMES"]
[null,null,null,null,null,"OROER"]
[null,null,null,null,null,"ORS"]
[null,null,null,null,null,"ORVAL SUR SIENNE"]
[null,null,null,null,null,"OSANI"]
[null,null,null,null,null,"OSSES"]
[null,null,null,null,null,"OTTERSWILLER"]
[null,null,null,null,null,"OUANNE"]
[null,null,null,null,null,"OUHANS"]
[null,null,null,null,null,"OULCHES LA VALLEE FOULON"]
[null,null,null,null,null,"OUPIA"]
[null,null,null,null,null,"OUST"]
[null,null,null,null,null,"OUVE WIRQUIN"]
[null,null,null,null,null,"OYES"]
[null,null,null,null,null,"OZERAILLES"]
[null,null,null,null,null,"PAEA"]
[null,null,null,null,null,"PAILHARES"]
[null,null,null,null,null,"PAIZAY LE TORT"]
[null,null,null,null,null,"PALAVAS LES FLOTS"]
[null,null,null,null,null,"PALMAS D AVEYRON"]
[null,null,null,null,null,"PANGE"]
[null,null,null,null,null,"PAPEETE"]
[null,null,null,null,null,"PARCE SUR SARTHE"]
[null,null,null,null,null,"PARENTIGNAT"]
[null,null,null,null,null,"PARIGNARGUES"]
[null,null,null,null,null,"PARIS 07"]
[null,null,null,null,null,"PARIS 10"]
[null,null,null,null,null,"PAROY SUR THOLON"]
[null,null,null,null,null,"PARS LES ROMILLY"]
[null,null,null,null,null,"PASSY"]
[null,null,null,null,null,"PATAY"]
[null,null,null,null,null,"PAVEZIN"]
[null,null,null,null,null,"PAYRIGNAC"]
[null,null,null,null,null,"PEAS"]
[null,null,null,null,null,"PEILLAC"]
[null,null,null,null,null,"PELLAFOL"]
[null,null,null,null,null,"PENNEDEPIE"]
[null,null,null,null,null,"PENVENAN"]
[null,null,null,null,null,"PERIGNAC"]
[null,null,null,null,null,"PERNOIS"]
[null,null,null,null,null,"PERONNAS"]
[null,null,null,null,null,"PERRIGNY SUR LOIRE"]
[null,null,null,null,null,"PERROUSE"]
[null,null,null,null,null,"PERTHES LES BRIENNE"]
[null,null,null,null,null,"PETIT BERSAC"]
[null,null,null,null,null,"PETIT TENQUIN"]
[null,null,null,null,null,"PEUTON"]
[null,null,null,null,null,"PEYRAT LE CHATEAU"]
[null,null,null,null,null,"PEYRIAC DE MER"]
[null,null,null,null,null,"PEYROUSE"]
[null,null,null,null,null,"PEZENAS"]
[null,null,null,null,null,"PIA"]
[null,null,null,null,null,"PICQUIGNY"]
[null,null,null,null,null,"PIERRE LA TREICHE"]
[null,null,null,null,null,"PIERREFITTE EN BEAUVAISIS"]
[null,null,null,null,null,"PIERREPONT SUR AVRE"]
[null,null,null,null,null,"PIETRALBA"]
[null,null,null,null,null,"PIMBO"]
[null,null,null,null,null,"PINDRAY"]
[null,null,null,null,null,"PINON"]
[null,null,null,null,null,"PISCOP"]
[null,null,null,null,null,"PISSY POVILLE"]
[null,null,null,null,null,"PLAINE DE WALSCH"]
[null,null,null,null,null,"PLAISANCE"]
[null,null,null,null,null,"PLANGUENOUAL"]
[null,null,null,null,null,"PLASSAC"]
[null,null,null,null,null,"PLELO"]
[null,null,null,null,null,"PLESLIN TRIGAVOU"]
[null,null,null,null,null,"PLEUMEUR GAUTIER"]
[null,null,null,null,null,"PLICHANCOURT"]
[null,null,null,null,null,"PLOMELIN"]
[null,null,null,null,null,"PLOUASNE"]
[null,null,null,null,null,"PLOUFRAGAN"]
[null,null,null,null,null,"PLOUGASNOU"]
[null,null,null,null,null,"PLOUHA"]
[null,null,null,null,null,"PLOUNEVEZEL"]
[null,null,null,null,null,"PLOYART ET VAURSEINE"]
[null,null,null,null,null,"PLUNERET"]
[null,null,null,null,null,"POGGIO DI NAZZA"]
[null,null,null,null,null,"POILLY"]
[null,null,null,null,null,"POIROUX"]
[null,null,null,null,null,"POITIERS"]
[null,null,null,null,null,"POLMINHAC"]
[null,null,null,null,null,"POMMERET"]
[null,null,null,null,null,"POMPIERRE"]
[null,null,null,null,null,"PONCEY LES ATHEE"]
[null,null,null,null,null,"PONT AUDEMER"]
[null,null,null,null,null,"PONT DE BUIS LES QUIMERCH"]
[null,null,null,null,null,"PONT L ABBE D ARNOULT"]
[null,null,null,null,null,"PONT REMY"]
[null,null,null,null,null,"PONT STE MAXENCE"]
[null,null,null,null,null,"PONTCHARRA"]
[null,null,null,null,null,"PONTEYRAUD"]
[null,null,null,null,null,"PONTRIEUX"]
[null,null,null,null,null,"PORCHEUX"]
[null,null,null,null,null,"PORT LE GRAND"]
[null,null,null,null,null,"PORTBAIL"]
[null,null,null,null,null,"POSSESSE"]
[null,null,null,null,null,"POUDENAS"]
[null,null,null,null,null,"POUILLEY LES VIGNES"]
[null,null,null,null,null,"POULAINES"]
[null,null,null,null,null,"POUM"]
[null,null,null,null,null,"POURSIUGUES BOUCOUE"]
[null,null,null,null,null,"POUY SUR VANNES"]
[null,null,null,null,null,"POYANS"]
[null,null,null,null,null,"PRADINAS"]
[null,null,null,null,null,"PRAT"]
[null,null,null,null,null,"PRATS DE CARLUX"]
[null,null,null,null,null,"PRECY LE SEC"]
[null,null,null,null,null,"PRECY SUR OISE"]
[null,null,null,null,null,"PRENY"]
[null,null,null,null,null,"PRESILLY"]
[null,null,null,null,null,"PRESSIGNAC VICQ"]
[null,null,null,null,null,"PREVENCHERES"]
[null,null,null,null,null,"PRIAIRES"]
[null,null,null,null,null,"PRIVEZAC"]
[null,null,null,null,null,"PROMILHANES"]
[null,null,null,null,null,"PROYART"]
[null,null,null,null,null,"PRUINES"]
[null,null,null,null,null,"PUECHABON"]
[null,null,null,null,null,"PUGET SUR ARGENS"]
[null,null,null,null,null,"PUISIEULX"]
[null,null,null,null,null,"PUISSERGUIER"]
[null,null,null,null,null,"PULIGNY MONTRACHET"]
[null,null,null,null,null,"PUTEAUX"]
[null,null,null,null,null,"PUY MALSIGNAT"]
[null,null,null,null,null,"PUYGAILLARD DE QUERCY"]
[null,null,null,null,null,"PUYNORMAND"]
[null,null,null,null,null,"QUAIX EN CHARTREUSE"]
[null,null,null,null,null,"QUELNEUC"]
[null,null,null,null,null,"QUERRIEN"]
[null,null,null,null,null,"QUEUILLE"]
[null,null,null,null,null,"QUIE"]
[null,null,null,null,null,"QUINCAY"]
[null,null,null,null,null,"QUINEVILLE"]
[null,null,null,null,null,"QUOEUX HAUT MAINIL"]
[null,null,null,null,null,"RACRANGE"]
[null,null,null,null,null,"RAIMBEAUCOURT"]
[null,null,null,null,null,"RAINANS"]
[null,null,null,null,null,"RAMERUPT"]
[null,null,null,null,null,"RAMOUS"]
[null,null,null,null,null,"RANG DU FLIERS"]
[null,null,null,null,null,"RANSART"]
[null,null,null,null,null,"RASLAY"]
[null,null,null,null,null,"RAUCOURT ET FLABA"]
[null,null,null,null,null,"RAYSSAC"]
[null,null,null,null,null,"REAL"]
[null,null,null,null,null,"REBRECHIEN"]
[null,null,null,null,null,"RECLINGHEM"]
[]
[null,null,null,null,null,"REGNEVELLE"]
[null,null,null,null,null,"REGNIE DURETTE"]
[null,null,null,null,null,"REINHARDSMUNSTER"]
[null,null,null,null,null,"REITHOUSE"]
[null,null,null,null,null,"REMECOURT"]
[null,null,null,null,null,"REMILLY LES POTHEES"]
[null,null,null,null,null,"REMPNAT"]
[null,null,null,null,null,"RENING"]
[null,null,null,null,null,"REPARSAC"]
[null,null,null,null,null,"RETAUD"]
[null,null,null,null,null,"REUIL EN BRIE"]
[null,null,null,null,null,"REVENS"]
[null,null,null,null,null,"REYNES"]
[null,null,null,null,null,"RHINAU"]
[null,null,null,null,null,"RIBENNES"]
[null,null,null,null,null,"RICHE"]
[null,null,null,null,null,"RIEUCAZE"]
[null,null,null,null,null,"RIEUX EN CAMBRESIS"]
[null,null,null,null,null,"RILHAC XAINTRIE"]
[null,null,null,null,null,"RIMATARA"]
[null,null,null,null,null,"RIMLING"]
[null,null,null,null,null,"RIOZ"]
[null,null,null,null,null,"RIVARENNES"]
[null,null,null,null,null,"RIVIERE"]
[null,null,null,null,null,"ROBERVAL"]
[null,null,null,null,null,"ROCHE LA MOLIERE"]
[null,null,null,null,null,"ROCHEFORT SUR LA COTE"]
[null,null,null,null,null,"ROCHES SUR MARNE"]
[null,null,null,null,null,"ROCQUES"]
[null,null,null,null,null,"ROESCHWOOG"]
[null,null,null,null,null,"ROGNY LES SEPT ECLUSES"]
[null,null,null,null,null,"ROISEY"]
[null,null,null,null,null,"ROMAGNE SOUS MONTFAUCON"]
[null,null,null,null,null,"ROMAZY"]
[null,null,null,null,null,"ROMIGUIERES"]
[null,null,null,null,null,"RONCHIN"]
[null,null,null,null,null,"RONVAUX"]
[null,null,null,null,null,"ROPPENHEIM"]
[null,null,null,null,null,"ROQUESERIERE"]
[null,null,null,null,null,"ROQUETOIRE"]
[null,null,null,null,null,"ROSCOFF"]
[null,null,null,null,null,"ROSNY SOUS BOIS"]
[null,null,null,null,null,"ROSTRENEN"]
[null,null,null,null,null,"ROUCY"]
[null,null,null,null,null,"ROUFFACH"]
[null,null,null,null,null,"ROUGNAC"]
[null,null,null,null,null,"ROUILLY SACEY"]
[null,null,null,null,null,"ROUSSELOY"]
[null,null,null,null,null,"ROUSSILLON EN MORVAN"]
[null,null,null,null,null,"ROUVRES SOUS MEILLY"]
[null,null,null,null,null,"ROUVROY LES MERLES"]
[null,null,null,null,null,"ROYER"]
[null,null,null,null,null,"ROYVILLE"]
[null,null,null,null,null,"ROZIERES SUR CRISE"]
[null,null,null,null,null,"RUDEAU LADOSSE"]
[null,null,null,null,null,"RUFFEY LES ECHIREY"]
[null,null,null,null,null,"RUMAUCOURT"]
[null,null,null,null,null,"RUPT EN WOEVRE"]
[null,null,null,null,null,"RUSTROFF"]
[null,null,null,null,null,"SABARAT"]
[null,null,null,null,null,"SACHE"]
[null,null,null,null,null,"SADIRAC"]
[null,null,null,null,null,"SAIGNES"]
[null,null,null,null,null,"SAILLY AU BOIS"]
[null,null,null,null,null,"SAINS EN AMIENOIS"]
[null,null,null,null,null,"SAINTS GEOSMES"]
[null,null,null,null,null,"SALAVRE"]
[null,null,null,null,null,"SALERNES"]
[null,null,null,null,null,"SALEUX"]
[null,null,null,null,null,"SALLELES D AUDE"]
[null,null,null,null,null,"SALLES ADOUR"]
[null,null,null,null,null,"SALON LA TOUR"]
[null,null,null,null,null,"SALSIGNE"]
[null,null,null,null,null,"SAMOGNEUX"]
[null,null,null,null,null,"SAMPOLO"]
[null,null,null,null,null,"SANCOINS"]
[null,null,null,null,null,"SANDRANS"]
[null,null,null,null,null,"SANT ANDREA DI BOZIO"]
[null,null,null,null,null,"SANTANS"]
[null,null,null,null,null,"SANTEUIL"]
[null,null,null,null,null,"SARAN"]
[null,null,null,null,null,"SARCEAUX"]
[null,null,null,null,null,"SARRAGUZAN"]
[null,null,null,null,null,"SARRAMEA"]
[null,null,null,null,null,"SARREWERDEN"]
[null,null,null,null,null,"SARTROUVILLE"]
[null,null,null,null,null,"SASSIS"]
[null,null,null,null,null,"SAUCLIERES"]
[null,null,null,null,null,"SAULCES CHAMPENOISES"]
[null,null,null,null,null,"SAULNAY"]
[null,null,null,null,null,"SAULX"]
[null,null,null,null,null,"SAUMERAY"]
[null,null,null,null,null,"SAUSSAY"]
[null,null,null,null,null,"SAUVAGNAT"]
[null,null,null,null,null,"SAUVETERRE DE BEARN"]
[null,null,null,null,null,"SAUX"]
[null,null,null,null,null,"SAVASSE"]
[null,null,null,null,null,"SAVIGNARGUES"]
[null,null,null,null,null,"SAVIGNY EN SEPTAINE"]
[null,null,null,null,null,"SAVOLLES"]
[null,null,null,null,null,"SAXEL"]
[null,null,null,null,null,"SAZOS"]
[null,null,null,null,null,"SCHIRRHEIN"]
[null,null,null,null,null,"SCHOENECK"]
[null,null,null,null,null,"SCY CHAZELLES"]
[null,null,null,null,null,"SECHAULT"]
[null,null,null,null,null,"SEGOS"]
[null,null,null,null,null,"SEGUS"]
[null,null,null,null,null,"SEINE PORT"]
[null,null,null,null,null,"SELLIERES"]
[null,null,null,null,null,"SEMELAY"]
[null,null,null,null,null,"SEMOUSSAC"]
[null,null,null,null,null,"SENANTES"]
[null,null,null,null,null,"SENGOUAGNET"]
[null,null,null,null,null,"SENON"]
[null,null,null,null,null,"SENTENAC D OUST"]
[null,null,null,null,null,"SEPT SORTS"]
[null,null,null,null,null,"SEPTEME"]
[null,null,null,null,null,"SERAINCOURT"]
[null,null,null,null,null,"SERE LANSO"]
[null,null,null,null,null,"SERGENAUX"]
[null,null,null,null,null,"SERMAISES"]
[null,null,null,null,null,"SEROCOURT"]
[null,null,null,null,null,"SERRE LES MOULIERES"]
[null,null,null,null,null,"SERVAIS"]
[null,null,null,null,null,"SERVIERES"]
[null,null,null,null,null,"SETE"]
[null,null,null,null,null,"SEURRE"]
[null,null,null,null,null,"SEWEN"]
[null,null,null,null,null,"SEYNES"]
[null,null,null,null,null,"SIERSTHAL"]
[null,null,null,null,null,"SIEWILLER"]
[null,null,null,null,null,"SIGNY MONTLIBERT"]
[null,null,null,null,null,"SILLERY"]
[null,null,null,null,null,"SILVARECCIO"]
[null,null,null,null,null,"SINGLY"]
[null,null,null,null,null,"SIRACOURT"]
[null,null,null,null,null,"SIX FOURS LES PLAGES"]
[null,null,null,null,null,"SOGNY EN L ANGLE"]
[null,null,null,null,null,"SOLBACH"]
[null,null,null,null,null,"SOLIGNAT"]
[null,null,null,null,null,"SOMBERNON"]
[null,null,null,null,null,"SOMMELONNE"]
[null,null,null,null,null,"SOMMIERES"]
[null,null,null,null,null,"SONNAZ"]
[null,null,null,null,null,"SORBOLLANO"]
[null,null,null,null,null,"SORMONNE"]
[null,null,null,null,null,"SOTTA"]
[null,null,null,null,null,"SOTTEVILLE SOUS LE VAL"]
[null,null,null,null,null,"SOUDE"]
[null,null,null,null,null,"SOUEL"]
[null,null,null,null,null,"SOULAIRES"]
[null,null,null,null,null,"SOULAURES"]
[null,null,null,null,null,"SOUMENSAC"]
[null,null,null,null,null,"SOUPROSSE"]
[null,null,null,null,null,"SOUSMOULINS"]
[null,null,null,null,null,"SOYANS"]
[null,null,null,null,null,"SPELONCATO"]
[null,null,null,null,null,"SPYCKER"]
[null,null,null,null,null,"ST AIGNAN DES GUES"]
[null,null,null,null,null,"ST AIGNY"]
[null,null,null,null,null,"ST AMAND DE VERGT"]
[null,null,null,null,null,"ST AMAND LES EAUX"]
[null,null,null,null,null,"ST ANDEOL DE FOURCHADES"]
[null,null,null,null,null,"ST ANDEUX"]
[null,null,null,null,null,"ST ANDRE DE BUEGES"]
[null,null,null,null,null,"ST ANDRE DE SEIGNANX"]
[null,null,null,null,null,"ST ANDRE LACHAMP"]
[null,null,null,null,null,"ST ANGEL"]
[null,null,null,null,null,"ST ANTONIN DU VAR"]
[null,null,null,null,null,"ST ARCONS DE BARGES"]
[null,null,null,null,null,"ST AUBIN D ARQUENAY"]
[null,null,null,null,null,"ST AUBIN DE TERREGATTE"]
[null,null,null,null,null,"ST AUBIN LE CAUF"]
[null,null,null,null,null,"ST AUBIN SUR LOIRE"]
[null,null,null,null,null,"ST AVIT DE SOULEGE"]
[null,null,null,null,null,"ST AYBERT"]
[null,null,null,null,null,"ST BASLEMONT"]
[null,null,null,null,null,"ST BAUZILLE DE LA SYLVE"]
[null,null,null,null,null,"ST BENOIT DES ONDES"]
[null,null,null,null,null,"ST BERAIN SUR DHEUNE"]
[null,null,null,null,null,"ST BLAISE"]
[null,null,null,null,null,"ST BONNET DE MONTAUROUX"]
[null,null,null,null,null,"ST BONNET DU GARD"]
[null,null,null,null,null,"ST BRANCHS"]
[null,null,null,null,null,"ST BRICE EN COGLES"]
[null,null,null,null,null,"ST CAPRAIS"]
[null,null,null,null,null,"ST CAST LE GUILDO"]
[null,null,null,null,null,"ST CHAFFREY"]
[null,null,null,null,null,"ST CHRISTOL DE RODIERES"]
[null,null,null,null,null,"ST CHRISTOPHE DU BOIS"]
[null,null,null,null,null,"ST CHRISTOPHE SUR ROC"]
[null,null,null,null,null,"ST CIRGUES DE MALBERT"]
[null,null,null,null,null,"ST CLAIR SUR GALAURE"]
[null,null,null,null,null,"ST CLEMENT DES LEVEES"]
[null,null,null,null,null,"ST CONGARD"]
[null,null,null,null,null,"ST CONNAN"]
[null,null,null,null,null,"ST CREPIN D AUBEROCHE"]
[null,null,null,null,null,"ST CYR DES GATS"]
[null,null,null,null,null,"ST CYR LA ROSIERE"]
[null,null,null,null,null,"ST DENIS D ACLON"]
[null,null,null,null,null,"ST DENIS DE PILE"]
[null,null,null,null,null,"ST DENIS LES SENS"]
[null,null,null,null,null,"ST DESIRAT"]
[null,null,null,null,null,"ST DIDIER SUR CHALARONNE"]
[null,null,null,null,null,"ST DIZIER EN DIOIS"]
[null,null,null,null,null,"ST ELIX LE CHATEAU"]
[null,null,null,null,null,"ST ELOY LA GLACIERE"]
[null,null,null,null,null,"ST ETIENNE D ALBAGNAN"]
[null,null,null,null,null,"ST ETIENNE DE CROSSEY"]
[null,null,null,null,null,"ST ETIENNE DU GRES"]
[null,null,null,null,null,"ST ETIENNE EN COGLES"]
[null,null,null,null,null,"ST ETIENNE LES ORGUES"]
[null,null,null,null,null,"ST EVROULT DE MONTFORT"]
[null,null,null,null,null,"ST FELIX"]
[null,null,null,null,null,"ST FERRIOL"]
[null,null,null,null,null,"ST FLORENTIN"]
[null,null,null,null,null,"ST FRAIMBAULT DE PRIERES"]
[null,null,null,null,null,"ST FRONT"]
[null,null,null,null,null,"ST GAUDENT"]
[null,null,null,null,null,"ST GENES DE FRONSAC"]
[null,null,null,null,null,"ST GENIES BELLEVUE"]
[null,null,null,null,null,"ST GENIS POUILLY"]
[null,null,null,null,null,"ST GEORGES D OLERON"]
[null,null,null,null,null,"ST GEORGES DE MONTCLARD"]
[null,null,null,null,null,"ST GEORGES LA POUGE"]
[null,null,null,null,null,"ST GEORGES SUR ERVE"]
[null,null,null,null,null,"ST GERMAIN BEAUPRE"]
[null,null,null,null,null,"ST GERMAIN DE FRESNEY"]
[null,null,null,null,null,"ST GERMAIN DE LA GRANGE"]
[null,null,null,null,null,"ST GERMAIN DU PINEL"]
[null,null,null,null,null,"ST GERMAIN DU TEIL"]
[null,null,null,null,null,"ST GERMAIN LES BELLES"]
[null,null,null,null,null,"ST GERMAIN NUELLES"]
[null,null,null,null,null,"ST GERVAIS D AUVERGNE"]
[null,null,null,null,null,"ST GERVAIS LES TROIS CLOCHERS"]
[null,null,null,null,null,"ST GIBRIEN"]
[null,null,null,null,null,"ST GONDON"]
[null,null,null,null,null,"ST GOURGON"]
[null,null,null,null,null,"ST HERNIN"]
[null,null,null,null,null,"ST HILAIRE CUSSON LA VALMITTE"]
[null,null,null,null,null,"ST HILAIRE EN WOEVRE"]
[null,null,null,null,null,"ST HILAIRE LA GERARD"]
[null,null,null,null,null,"ST HILARION"]
[null,null,null,null,null,"ST HIPPOLYTE DE MONTAIGU"]
[null,null,null,null,null,"ST IGNAT"]
[null,null,null,null,null,"ST JACQUES DES ARRETS"]
[null,null,null,null,null,"ST JEAN BREVELAY"]
[null,null,null,null,null,"ST JEAN D ETREUX"]
[null,null,null,null,null,"ST JEAN DE BRAYE"]
[null,null,null,null,null,"ST JEAN DE LA HAIZE"]
[null,null,null,null,null,"ST JEAN DE MAURIENNE"]
[null,null,null,null,null,"ST JEAN DE THOLOME"]
[null,null,null,null,null,"ST JEAN DES VIGNES"]
[null,null,null,null,null,"ST JEAN EN ROYANS"]
[null,null,null,null,null,"ST JEAN LES LONGUYON"]
[null,null,null,null,null,"ST JEAN ST NICOLAS"]
[null,null,null,null,null,"ST JEOIRE"]
[null,null,null,null,null,"ST JOUIN DE MARNES"]
[null,null,null,null,null,"ST JULIEN AUX BOIS"]
[null,null,null,null,null,"ST JULIEN D EYMET"]
[null,null,null,null,null,"ST JULIEN DU PUY"]
[null,null,null,null,null,"ST JULIEN EN CHAMPSAUR"]
[null,null,null,null,null,"ST JULIEN MOLHESABATE"]
[null,null,null,null,null,"ST JULIEN SUR DHEUNE"]
[null,null,null,null,null,"ST JUST LA PENDUE"]
[null,null,null,null,null,"ST JUVAT"]
[null,null,null,null,null,"ST LAURENT BRETAGNE"]
[null,null,null,null,null,"ST LAURENT DE CERDANS"]
[null,null,null,null,null,"ST LAURENT DES ARBRES"]
[null,null,null,null,null,"ST LAURENT DU TENCEMENT"]
[null,null,null,null,null,"ST LAURENT MEDOC"]
[null,null,null,null,null,"ST LEGER DE BALSON"]
[null,null,null,null,null,"ST LEGER EN YVELINES"]
[null,null,null,null,null,"ST LEGER SOUS MARGERIE"]
[null,null,null,null,null,"ST LEONARD DES PARCS"]
[null,null,null,null,null,"ST LEONARD EN BEAUCE"]
[null,null,null,null,null,"ST LON LES MINES"]
[null,null,null,null,null,"ST LOUP D ORDON"]
[null,null,null,null,null,"ST LOUP NANTOUARD"]
[null,null,null,null,null,"ST LYE"]
[null,null,null,null,null,"ST MAGNE DE CASTILLON"]
[null,null,null,null,null,"ST MALON SUR MEL"]
[null,null,null,null,null,"ST MARC DU COR"]
[null,null,null,null,null,"ST MARCEL LES SAUZET"]
[null,null,null,null,null,"ST MARD"]
[null,null,null,null,null,"ST MARS VIEUX MAISONS"]
[null,null,null,null,null,"ST MARTIAL ENTRAYGUES"]
[null,null,null,null,null,"ST MARTIN D ARBEROUE"]
[null,null,null,null,null,"ST MARTIN D ONEY"]
[null,null,null,null,null,"ST MARTIN DE BLAGNY"]
[null,null,null,null,null,"ST MARTIN DE L ARCON"]
[null,null,null,null,null,"ST MARTIN DE LA PORTE"]
[null,null,null,null,null,"ST MARTIN DE NIGELLES"]
[null,null,null,null,null,"ST MARTIN DES LANDES"]
[null,null,null,null,null,"ST MARTIN DU BOSCHET"]
[null,null,null,null,null,"ST MARTIN L AIGUILLON"]
[null,null,null,null,null,"ST MARTIN LACAUSSADE"]
[null,null,null,null,null,"ST MARTIN LES MELLE"]
[null,null,null,null,null,"ST MARTIN SUR ARMANCON"]
[null,null,null,null,null,"ST MATHIEU DE TREVIERS"]
[null,null,null,null,null,"ST MAURICE CRILLAT"]
[null,null,null,null,null,"ST MAURICE EN GOURGOIS"]
[null,null,null,null,null,"ST MAURICE NAVACELLES"]
[null,null,null,null,null,"ST MAXENT"]
[null,null,null,null,null,"ST MEDARD EN JALLES"]
[null,null,null,null,null,"ST MENOUX"]
[null,null,null,null,null,"ST MICHEL DE CHABRILLANOUX"]
[null,null,null,null,null,"ST MICHEL DE MONTAIGNE"]
[null,null,null,null,null,"ST MICHEL DE ST GEOIRS"]
[null,null,null,null,null,"ST MONT"]
[null,null,null,null,null,"ST MORILLON"]
[null,null,null,null,null,"ST NICOLAS DE LA HAIE"]
[null,null,null,null,null,"ST NICOLAS DE SOMMAIRE"]
[null,null,null,null,null,"ST ORENS"]
[null,null,null,null,null,"ST OUEN DE PONTCHEUIL"]
[null,null,null,null,null,"ST OUEN DU MESNIL OGER"]
[null,null,null,null,null,"ST PABU"]
[null,null,null,null,null,"ST PALAIS DE NEGRIGNAC"]
[null,null,null,null,null,"ST PARDOUX LA CROISILLE"]
[null,null,null,null,null,"ST PARIZE EN VIRY"]
[null,null,null,null,null,"ST PAUL DE TARTAS"]
[null,null,null,null,null,"ST PAUL FLAUGNAC"]
[null,null,null,null,null,"ST PAUL LE JEUNE"]
[null,null,null,null,null,"ST PAULET"]
[null,null,null,null,null,"ST PERN"]
[null,null,null,null,null,"ST PHILIBERT"]
[null,null,null,null,null,"ST PIERRE D ALVEY"]
[null,null,null,null,null,"ST PIERRE DE BOEUF"]
[null,null,null,null,null,"ST PIERRE DE GENEBROZ"]
[null,null,null,null,null,"ST PIERRE DE SALERNE"]
[null,null,null,null,null,"ST PIERRE DES LOGES"]
[null,null,null,null,null,"ST PIERRE EGLISE"]
[null,null,null,null,null,"ST PIERRE LAFEUILLE"]
[null,null,null,null,null,"ST PIERRE SUR DIVES"]
[null,null,null,null,null,"ST PLANTAIRE"]
[null,null,null,null,null,"ST POUANGE"]
[null,null,null,null,null,"ST PRIEST DES CHAMPS"]
[null,null,null,null,null,"ST PRIVAT DU DRAGON"]
[null,null,null,null,null,"ST PUY"]
[null,null,null,null,null,"ST QUENTIN DE BARON"]
[null,null,null,null,null,"ST QUIRC"]
[null,null,null,null,null,"ST REGIS DU COIN"]
[null,null,null,null,null,"ST REMY LA CALONNE"]
[null,null,null,null,null,"ST REMY SUR CREUSE"]
[null,null,null,null,null,"ST ROMAIN DE JALIONAS"]
[null,null,null,null,null,"ST ROMAIN LA MOTTE"]
[null,null,null,null,null,"ST SAIRE"]
[null,null,null,null,null,"ST SANTIN CANTALES"]
[null,null,null,null,null,"ST SAUVEUR D AUNIS"]
[null,null,null,null,null,"ST SAUVEUR EN DIOIS"]
[null,null,null,null,null,"ST SEBASTIEN D AIGREFEUILLE"]
[null,null,null,null,null,"ST SENIER SOUS AVRANCHES"]
[null,null,null,null,null,"ST SEURIN SUR L ISLE"]
[null,null,null,null,null,"ST SILVAIN MONTAIGUT"]
[null,null,null,null,null,"ST SORLIN EN VALLOIRE"]
[null,null,null,null,null,"ST SORNIN"]
[null,null,null,null,null,"ST SULPICE DE FAVIERES"]
[null,null,null,null,null,"ST SULPICE LE DUNOIS"]
[null,null,null,null,null,"ST SYMPHORIEN DE LAY"]
[null,null,null,null,null,"ST THIBAULT"]
[null,null,null,null,null,"ST THURIAU"]
[null,null,null,null,null,"ST UNIAC"]
[null,null,null,null,null,"ST VAIZE"]
[null,null,null,null,null,"ST VAURY"]
[null,null,null,null,null,"ST VICTOR L ABBAYE"]
[null,null,null,null,null,"ST VICTOUR"]
[null,null,null,null,null,"ST VINCENT DE PERTIGNAS"]
[null,null,null,null,null,"ST VINCENT EN BRESSE"]
[null,null,null,null,null,"ST VOIR"]
[null,null,null,null,null,"ST YAN"]
[null,null,null,null,null,"STE AGATHE"]
[null,null,null,null,null,"STE ANASTASIE SUR ISSOLE"]
[null,null,null,null,null,"STE AUSTREBERTHE"]
[null,null,null,null,null,"STE COLOMBE DE VILLENEUVE"]
[null,null,null,null,null,"STE COLOME"]
[null,null,null,null,null,"STE ENIMIE"]
[null,null,null,null,null,"STE FAUSTE"]
[null,null,null,null,null,"STE GAUBURGE STE COLOMBE"]
[null,null,null,null,null,"STE HELENE"]
[null,null,null,null,null,"STE LIVRADE SUR LOT"]
[null,null,null,null,null,"STE MARGUERITE SUR MER"]
[null,null,null,null,null,"STE MARIE DU BOIS"]
[null,null,null,null,null,"STE MEME"]
[null,null,null,null,null,"STE PALLAYE"]
[null,null,null,null,null,"STE SEGREE"]
[null,null,null,null,null,"STE TREPHINE"]
[null,null,null,null,null,"STENAY"]
[null,null,null,null,null,"STERNENBERG"]
[null,null,null,null,null,"SUGNY"]
[null,null,null,null,null,"SUIPPES"]
[null,null,null,null,null,"SURQUES"]
[null,null,null,null,null,"SURVILLE"]
[null,null,null,null,null,"SUSSAC"]
[null,null,null,null,null,"TABRE"]
[null,null,null,null,null,"TAHAA"]
[null,null,null,null,null,"TAIX"]
[null,null,null,null,null,"TALANT"]
[null,null,null,null,null,"TALUYERS"]
[null,null,null,null,null,"TANCONVILLE"]
[null,null,null,null,null,"TARBES"]
[null,null,null,null,null,"TARGASSONNE"]
[null,null,null,null,null,"TASSIN LA DEMI LUNE"]
[null,null,null,null,null,"TAULIGNAN"]
[null,null,null,null,null,"TAUSSAC LA BILLIERE"]
[null,null,null,null,null,"TAZILLY"]
[null,null,null,null,null,"TELGRUC SUR MER"]
[null,null,null,null,null,"TENTELING"]
[null,null,null,null,null,"TERNAS"]
[null,null,null,null,null,"TERROU"]
[null,null,null,null,null,"TETHIEU"]
[null,null,null,null,null,"THAL DRULINGEN"]
[null,null,null,null,null,"THEHILLAC"]
[null,null,null,null,null,"THENAILLES"]
[null,null,null,null,null,"THERMES MAGNOAC"]
[null,null,null,null,null,"THEY SOUS VAUDEMONT"]
[null,null,null,null,null,"THIBIE"]
[null,null,null,null,null,"THIENNES"]
[null,null,null,null,null,"THIL MANNEVILLE"]
[null,null,null,null,null,"THIN LE MOUTIER"]
[null,null,null,null,null,"THIRAUCOURT"]
[null,null,null,null,null,"THOISSIA"]
[null,null,null,null,null,"THOMERY"]
[null,null,null,null,null,"THORE LA ROCHETTE"]
[null,null,null,null,null,"THOUARS SUR ARIZE"]
[null,null,null,null,null,"THUBOEUF"]
[null,null,null,null,null,"THUY"]
[null,null,null,null,null,"TIFFAUGES"]
[null,null,null,null,null,"TILLOY FLORIVILLE"]
[null,null,null,null,null,"TILQUES"]
[null,null,null,null,null,"TOCQUEVILLE EN CAUX"]
[null,null,null,null,null,"TONNAC"]
[null,null,null,null,null,"TORCY LE GRAND"]
[null,null,null,null,null,"TORTERON"]
[null,null,null,null,null,"TORVILLIERS"]
[null,null,null,null,null,"TOULON"]
[null,null,null,null,null,"TOULON SUR ARROUX"]
[null,null,null,null,null,"TOURCELLES CHAUMONT"]
[null,null,null,null,null,"TOURNEBU"]
[null,null,null,null,null,"TOURNON ST PIERRE"]
[null,null,null,null,null,"TOURS SUR MARNE"]
[null,null,null,null,null,"TOURVILLE SUR SIENNE"]
[null,null,null,null,null,"TOUTLEMONDE"]
[null,null,null,null,null,"TRAITIEFONTAINE"]
[null,null,null,null,null,"TRAMONT ST ANDRE"]
[null,null,null,null,null,"TRAVERSERES"]
[null,null,null,null,null,"TREBONS DE LUCHON"]
[null,null,null,null,null,"TREFLEZ"]
[null,null,null,null,null,"TREGOUREZ"]
[null,null,null,null,null,"TRELINS"]
[null,null,null,null,null,"TREMBLAY"]
[null,null,null,null,null,"TREMOUILLE ST LOUP"]
[null,null,null,null,null,"TREOGAT"]
[null,null,null,null,null,"TRESCAULT"]
[null,null,null,null,null,"TREVENANS"]
[null,null,null,null,null,"TREVILLE"]
[null,null,null,null,null,"TRIE CHATEAU"]
[null,null,null,null,null,"TRIZAC"]
[null,null,null,null,null,"TROIS FONTAINES L ABBAYE"]
[null,null,null,null,null,"TRONGET"]
[null,null,null,null,null,"TROUSSENCOURT"]
[null,null,null,null,null,"TRUNGY"]
[null,null,null,null,null,"TULLE"]
[null,null,null,null,null,"TURRIERS"]
[null,null,null,null,null,"UCHON"]
[null,null,null,null,null,"ULLY ST GEORGES"]
[null,null,null,null,null,"URBEIS"]
[null,null,null,null,null,"URIMENIL"]
[null,null,null,null,null,"UROST"]
[null,null,null,null,null,"USTARITZ"]
[null,null,null,null,null,"UTTENHEIM"]
[null,null,null,null,null,"VACHERAUVILLE"]
[null,null,null,null,null,"VACQUERIE LE BOUCQ"]
[null,null,null,null,null,"VAGNEY"]
[null,null,null,null,null,"VAITE"]
[null,null,null,null,null,"VAL D ORONAYE"]
[null,null,null,null,null,"VAL DU LAYON"]
[null,null,null,null,null,"VALAURIE"]
[null,null,null,null,null,"VALDURENQUE"]
[null,null,null,null,null,"VALENCE EN BRIE"]
[null,null,null,null,null,"VALHUON"]
[null,null,null,null,null,"VALLABREGUES"]
[null,null,null,null,null,"VALLEROY"]
[null,null,null,null,null,"VALLETOT"]
[null,null,null,null,null,"VALLON SUR GEE"]
[null,null,null,null,null,"VALRAVILLON"]
[null,null,null,null,null,"VALUEJOLS"]
[null,null,null,null,null,"VANDRE"]
[null,null,null,null,null,"VANTOUX ET LONGEVELLE"]
[null,null,null,null,null,"VARANGEVILLE"]
[null,null,null,null,null,"VARENNES ST SAUVEUR"]
[null,null,null,null,null,"VARIZE"]
[null,null,null,null,null,"VASPERVILLER"]
[null,null,null,null,null,"VATIMONT"]
[null,null,null,null,null,"VAUCHELLES LES DOMART"]
[null,null,null,null,null,"VAUDEBARRIER"]
[null,null,null,null,null,"VAUDONCOURT"]
[null,null,null,null,null,"VAULNAVEYS LE BAS"]
[null,null,null,null,null,"VAUNAVEYS LA ROCHETTE"]
[null,null,null,null,null,"VAUX EN BEAUJOLAIS"]
[null,null,null,null,null,"VAUX LES PALAMEIX"]
[null,null,null,null,null,"VAUX ROUILLAC"]
[null,null,null,null,null,"VAY"]
[null,null,null,null,null,"VAZERAC"]
[null,null,null,null,null,"VELAINE EN HAYE"]
[null,null,null,null,null,"VELESMES ESSARTS"]
[null,null,null,null,null,"VELLUIRE"]
[null,null,null,null,null,"VELZIC"]
[null,null,null,null,null,"VENDEUIL"]
[null,null,null,null,null,"VENDOEUVRES"]
[null,null,null,null,null,"VENEY"]
[null,null,null,null,null,"VENOUSE"]
[null,null,null,null,null,"VENTALON EN CEVENNES"]
[null,null,null,null,null,"VERCHENY"]
[null,null,null,null,null,"VERCLAUSE"]
[null,null,null,null,null,"VERGEAL"]
[null,null,null,null,null,"VERGETOT"]
[null,null,null,null,null,"VERGT"]
[null,null,null,null,null,"VERMELLES"]
[null,null,null,null,null,"VERNEIL LE CHETIF"]
[null,null,null,null,null,"VERNEUIL SUR IGNERAIE"]
[null,null,null,null,null,"VERNOLS"]
[null,null,null,null,null,"VERON"]
[null,null,null,null,null,"VERRICOURT"]
[null,null,null,null,null,"VERSAUGUES"]
[null,null,null,null,null,"VERTAIN"]
[null,null,null,null,null,"VERZENAY"]
[null,null,null,null,null,"VESIGNEUL SUR MARNE"]
[null,null,null,null,null,"VEVY"]
[null,null,null,null,null,"VEYRINES DE DOMME"]
[null,null,null,null,null,"VEZOT"]
[null,null,null,null,null,"VIANNE"]
[null,null,null,null,null,"VIBRAYE"]
[null,null,null,null,null,"VICQ SUR MER"]
[null,null,null,null,null,"VIDEIX"]
[null,null,null,null,null,"VIELLE LOURON"]
[null,null,null,null,null,"VIELS MAISONS"]
[null,null,null,null,null,"VIEUSSAN"]
[null,null,null,null,null,"VIEUX FERRETTE"]
[null,null,null,null,null,"VIEVIGNE"]
[null,null,null,null,null,"VIGNACOURT"]
[null,null,null,null,null,"VIGNOLES"]
[null,null,null,null,null,"VIJON"]
[null,null,null,null,null,"VILLAINES SOUS BOIS"]
[null,null,null,null,null,"VILLAR EN VAL"]
[null,null,null,null,null,"VILLARDEBELLE"]
[null,null,null,null,null,"VILLARS FONTAINE"]
[null,null,null,null,null,"VILLAUDRIC"]
[null,null,null,null,null,"VILLAVARD"]
[null,null,null,null,null,"VILLE SUR JARNIOUX"]
[null,null,null,null,null,"VILLE SUR SAULX"]
[null,null,null,null,null,"VILLEBOIS"]
[null,null,null,null,null,"VILLECIEN"]
[null,null,null,null,null,"VILLEDIEU LES POELES ROUFFIGNY"]
[null,null,null,null,null,"VILLEFRANCHE DE PANAT"]
[null,null,null,null,null,"VILLEGOUGE"]
[null,null,null,null,null,"VILLELONGUE D AUDE"]
[null,null,null,null,null,"VILLEMOISSON SUR ORGE"]
[null,null,null,null,null,"VILLEMOUTIERS"]
[null,null,null,null,null,"VILLENEUVE DE DURAS"]
[null,null,null,null,null,"VILLENEUVE EN PERSEIGNE"]
[null,null,null,null,null,"VILLENEUVE LES SABLONS"]
[null,null,null,null,null,"VILLENEUVE ST DENIS"]
[null,null,null,null,null,"VILLEPERDUE"]
[null,null,null,null,null,"VILLEQUIER AUMONT"]
[null,null,null,null,null,"VILLEROMAIN"]
[null,null,null,null,null,"VILLERS CANIVET"]
[null,null,null,null,null,"VILLERS EN ARTHIES"]
[null,null,null,null,null,"VILLERS LE SEC"]
[null,null,null,null,null,"VILLERS PATER"]
[null,null,null,null,null,"VILLERS ST CHRISTOPHE"]
[null,null,null,null,null,"VILLERS SUR MER"]
[null,null,null,null,null,"VILLESELVE"]
[null,null,null,null,null,"VILLETTE D ANTHON"]
[null,null,null,null,null,"VILLEVOQUES"]
[null,null,null,null,null,"VILLIERS EN DESOEUVRE"]
[null,null,null,null,null,"VILLIERS LE SEC"]
[null,null,null,null,null,"VILLIERS SUR THOLON"]
[null,null,null,null,null,"VILLOTTE"]
[null,null,null,null,null,"VILSBERG"]
[null,null,null,null,null,"VINAX"]
[null,null,null,null,null,"VINCENNES"]
[null,null,null,null,null,"VIOLAY"]
[null,null,null,null,null,"VION"]
[null,null,null,null,null,"VIRIEU LE PETIT"]
[null,null,null,null,null,"VIROLLET"]
[null,null,null,null,null,"VITRAC ST VINCENT"]
[null,null,null,null,null,"VITRIMONT"]
[null,null,null,null,null,"VITTARVILLE"]
[null,null,null,null,null,"VIUZ EN SALLAZ"]
[null,null,null,null,null,"VIUZ LA CHIESAZ"]
[null,null,null,null,null,"VIVAISE"]
[null,null,null,null,null,"VIVANS"]
[null,null,null,null,null,"VIVARIO"]
[null,null,null,null,null,"VIVEN"]
[null,null,null,null,null,"VIVEROLS"]
[null,null,null,null,null,"VIVES"]
[null,null,null,null,null,"VIVEY"]
[null,null,null,null,null,"VIVIER AU COURT"]
[null,null,null,null,null,"VIVIERES"]
[null,null,null,null,null,"VIVIERS"]
[null,null,null,null,null,"VIVIERS DU LAC"]
[null,null,null,null,null,"VIVIERS LE GRAS"]
[null,null,null,null,null,"VIVIERS LES LAVAUR"]
[null,null,null,null,null,"VIVIERS LES MONTAGNES"]
[null,null,null,null,null,"VIVIERS LES OFFROICOURT"]
[null,null,null,null,null,"VIVIERS SUR ARTAUT"]
[null,null,null,null,null,"VIVIERS SUR CHIERS"]
[null,null,null,null,null,"VIVIES"]
[null,null,null,null,null,"VIVIEZ"]
[null,null,null,null,null,"VIVILLE"]
[null,null,null,null,null,"VIVOIN"]
[null,null,null,null,null,"VIVONNE"]
[null,null,null,null,null,"VIVY"]
[null,null,null,null,null,"VIX"]
[null,null,null,null,null,"VIZILLE"]
[null,null,null,null,null,"VIZOS"]
[null,null,null,null,null,"VOCANCE"]
[null,null,null,null,null,"VODABLE"]
[null,null,null,null,null,"VOEGTLINSHOFFEN"]
[null,null,null,null,null,"VOELFLING LES BOUZONVILLE"]
[null,null,null,null,null,"VOELLERDINGEN"]
[null,null,null,null,null,"VOEUIL ET GIGET"]
[null,null,null,null,null,"VOGELGRUN"]
[null,null,null,null,null,"VOGLANS"]
[null,null,null,null,null,"VOGUE"]
[null,null,null,null,null,"VOH"]
[null,null,null,null,null,"VOHARIES"]
[null,null,null,null,null,"VOID VACON"]
[null,null,null,null,null,"VOIGNY"]
[null,null,null,null,null,"VOILEMONT"]
[null,null,null,null,null,"VOILLANS"]
[null,null,null,null,null,"VOILLECOMTE"]
[null,null,null,null,null,"VOIMHAUT"]
[null,null,null,null,null,"VOINEMONT"]
[null,null,null,null,null,"VOINGT"]
[null,null,null,null,null,"VOINSLES"]
[null,null,null,null,null,"VOIPREUX"]
[null,null,null,null,null,"VOIRES"]
[null,null,null,null,null,"VOIRON"]
[null,null,null,null,null,"VOISCREVILLE"]
[null,null,null,null,null,"VOISE"]
[null,null,null,null,null,"VOISENON"]
[null,null,null,null,null,"VOISEY"]
[null,null,null,null,null,"VOISINES"]
[null,null,null,null,null,"VOISINS LE BRETONNEUX"]
[null,null,null,null,null,"VOISSANT"]
[null,null,null,null,null,"VOISSAY"]
[null,null,null,null,null,"VOITEUR"]
[null,null,null,null,null,"VOIVRES LES LE MANS"]
[null,null,null,null,null,"VOLCKERINCKHOVE"]
[null,null,null,null,null,"VOLESVRES"]
[null,null,null,null,null,"VOLGELSHEIM"]
[null,null,null,null,null,"VOLGRE"]
[null,null,null,null,null,"VOLKSBERG"]
[null,null,null,null,null,"VOLLORE MONTAGNE"]
[null,null,null,null,null,"VOLLORE VILLE"]
[null,null,null,null,null,"VOLMERANGE LES BOULAY"]
[null,null,null,null,null,"VOLMERANGE LES MINES"]
[null,null,null,null,null,"VOLMUNSTER"]
[null,null,null,null,null,"VOLNAY"]
[null,null,null,null,null,"VOLON"]
[null,null,null,null,null,"VOLONNE"]
[null,null,null,null,null,"VOLPAJOLA"]
[null,null,null,null,null,"VOLSTROFF"]
[null,null,null,null,null,"VOLVENT"]
[null,null,null,null,null,"VOLVIC"]
[null,null,null,null,null,"VOLX"]
[null,null,null,null,null,"VOMECOURT"]
[null,null,null,null,null,"VOMECOURT SUR MADON"]
[null,null,null,null,null,"VONCOURT"]
[null,null,null,null,null,"VONCQ"]
[null,null,null,null,null,"VONGES"]
[null,null,null,null,null,"VONGNES"]
[null,null,null,null,null,"VONNAS"]
[null,null,null,null,null,"VORAY SUR L OGNON"]
[null,null,null,null,null,"VOREPPE"]
[null,null,null,null,null,"VOREY"]
[null,null,null,null,null,"VORGES"]
[null,null,null,null,null,"VORGES LES PINS"]
[null,null,null,null,null,"VORLY"]
[null,null,null,null,null,"VORNAY"]
[null,null,null,null,null,"VOSBLES"]
[null,null,null,null,null,"VOSNE ROMANEE"]
[null,null,null,null,null,"VOSNON"]
[null,null,null,null,null,"VOU"]
[null,null,null,null,null,"VOUARCES"]
[null,null,null,null,null,"VOUDENAY"]
[null,null,null,null,null,"VOUE"]
[null,null,null,null,null,"VOUECOURT"]
[null,null,null,null,null,"VOUGECOURT"]
[null,null,null,null,null,"VOUGEOT"]
[null,null,null,null,null,"VOUGREY"]
[null,null,null,null,null,"VOUGY"]
[null,null,null,null,null,"VOUHARTE"]
[null,null,null,null,null,"VOUHE"]
[null,null,null,null,null,"VOUHENANS"]
[null,null,null,null,null,"VOUILLE"]
[null,null,null,null,null,"VOUILLE LES MARAIS"]
[null,null,null,null,null,"VOUILLERS"]
[null,null,null,null,null,"VOUILLON"]
[null,null,null,null,null,"VOUILLY"]
[null,null,null,null,null,"VOUJEAUCOURT"]
[null,null,null,null,null,"VOULAINES LES TEMPLIERS"]
[null,null,null,null,null,"VOULANGIS"]
[null,null,null,null,null,"VOULEME"]
[null,null,null,null,null,"VOULGEZAC"]
[null,null,null,null,null,"VOULMENTIN"]
[null,null,null,null,null,"VOULON"]
[null,null,null,null,null,"VOULPAIX"]
[null,null,null,null,null,"VOULTON"]
[null,null,null,null,null,"VOULX"]
[null,null,null,null,null,"VOUNEUIL SOUS BIARD"]
[null,null,null,null,null,"VOUNEUIL SUR VIENNE"]
[null,null,null,null,null,"VOUREY"]
[null,null,null,null,null,"VOURLES"]
[null,null,null,null,null,"VOUSSAC"]
[null,null,null,null,null,"VOUTENAY SUR CURE"]
[null,null,null,null,null,"VOUTEZAC"]
[null,null,null,null,null,"VOUTHON"]
[null,null,null,null,null,"VOUTHON BAS"]
[null,null,null,null,null,"VOUTHON HAUT"]
[null,null,null,null,null,"VOUTRE"]
[null,null,null,null,null,"VOUVANT"]
[null,null,null,null,null,"VOUVRAY"]
[null,null,null,null,null,"VOUVRAY SUR HUISNE"]
[null,null,null,null,null,"VOUVRAY SUR LOIR"]
[null,null,null,null,null,"VOUXEY"]
[null,null,null,null,null,"VOUZAILLES"]
[null,null,null,null,null,"VOUZAN"]
[null,null,null,null,null,"VOUZERON"]
[null,null,null,null,null,"VOUZIERS"]
[null,null,null,null,null,"VOUZON"]
[null,null,null,null,null,"VOUZY"]
[null,null,null,null,null,"VOVRAY EN BORNES"]
[null,null,null,null,null,"VOYENNE"]
[null,null,null,null,null,"VOYENNES"]
[null,null,null,null,null,"VOYER"]
[null,null,null,null,null,"VRAIGNES EN VERMANDOIS"]
[null,null,null,null,null,"VRAIGNES LES HORNOY"]
[null,null,null,null,null,"VRAINCOURT"]
[null,null,null,null,null,"VRAIVILLE"]
[null,null,null,null,null,"VRAUX"]
[null,null,null,null,null,"VRECOURT"]
[null,null,null,null,null,"VRED"]
[null,null,null,null,null,"VREGILLE"]
[null,null,null,null,null,"VREGNY"]
[null,null,null,null,null,"VRELY"]
[null,null,null,null,null,"VRIANGE"]
[null,null,null,null,null,"VRIGNE AUX BOIS"]
[null,null,null,null,null,"VRIGNE MEUSE"]
[null,null,null,null,null,"VRIGNY"]
[null,null,null,null,null,"VRITZ"]
[null,null,null,null,null,"VRIZY"]
[null,null,null,null,null,"VROCOURT"]
[null,null,null,null,null,"VROIL"]
[null,null,null,null,null,"VRON"]
[null,null,null,null,null,"VRONCOURT"]
[null,null,null,null,null,"VRONCOURT LA COTE"]
[null,null,null,null,null,"VROVILLE"]
[null,null,null,null,null,"VRY"]
[null,null,null,null,null,"VUE"]
[null,null,null,null,null,"VUILLAFANS"]
[null,null,null,null,null,"VUILLECIN"]
[null,null,null,null,null,"VUILLERY"]
[null,null,null,null,null,"VULAINES"]
[null,null,null,null,null,"VULAINES LES PROVINS"]
[null,null,null,null,null,"VULAINES SUR SEINE"]
[null,null,null,null,null,"VULBENS"]
[null,null,null,null,null,"VULMONT"]
[null,null,null,null,null,"VULVOZ"]
[null,null,null,null,null,"VY LE FERROUX"]
[null,null,null,null,null,"VY LES FILAIN"]
[null,null,null,null,null,"VY LES LURE"]
[null,null,null,null,null,"VY LES RUPT"]
[null,null,null,null,null,"VYANS LE VAL"]
[null,null,null,null,null,"VYT LES BELVOIR"]
[null,null,null,null,null,"WABEN"]
[null,null,null,null,null,"WACQUEMOULIN"]
[null,null,null,null,null,"WACQUINGHEN"]
[null,null,null,null,null,"WADELINCOURT"]
[null,null,null,null,null,"WAGNON"]
[null,null,null,null,null,"WAHAGNIES"]
[null,null,null,null,null,"WAHLBACH"]
[null,null,null,null,null,"WAHLENHEIM"]
[null,null,null,null,null,"WAIL"]
[null,null,null,null,null,"WAILLY"]
[null,null,null,null,null,"WAILLY BEAUCAMP"]
[null,null,null,null,null,"WALBACH"]
[null,null,null,null,null,"WALBOURG"]
[null,null,null,null,null,"WALDERSBACH"]
[null,null,null,null,null,"WALDHAMBACH"]
[null,null,null,null,null,"WALDHOUSE"]
[null,null,null,null,null,"WALDIGHOFEN"]
[null,null,null,null,null,"WALDOLWISHEIM"]
[null,null,null,null,null,"WALDWEISTROFF"]
[null,null,null,null,null,"WALDWISSE"]
[null,null,null,null,null,"WALHEIM"]
[null,null,null,null,null,"WALINCOURT SELVIGNY"]
[null,null,null,null,null,"WALLERS"]
[null,null,null,null,null,"WALLERS EN FAGNE"]
[null,null,null,null,null,"WALLON CAPPEL"]
[null,null,null,null,null,"WALSCHBRONN"]
[null,null,null,null,null,"WALSCHEID"]
[null,null,null,null,null,"WALTEMBOURG"]
[null,null,null,null,null,"WALTENHEIM"]
[null,null,null,null,null,"WALTENHEIM SUR ZORN"]
[null,null,null,null,null,"WALY"]
[null,null,null,null,null,"WAMBAIX"]
[null,null,null,null,null,"WAMBERCOURT"]
[null,null,null,null,null,"WAMBEZ"]
[null,null,null,null,null,"WAMBRECHIES"]
[null,null,null,null,null,"WAMIN"]
[null,null,null,null,null,"WANCHY CAPVAL"]
[null,null,null,null,null,"WANCOURT"]
[null,null,null,null,null,"WANDIGNIES HAMAGE"]
[null,null,null,null,null,"WANGEN"]
[null,null,null,null,null,"WANGENBOURG ENGENTHAL"]
[null,null,null,null,null,"WANNEHAIN"]
[null,null,null,null,null,"WANQUETIN"]
[null,null,null,null,null,"WARCQ"]
[null,null,null,null,null,"WARDRECQUES"]
[null,null,null,null,null,"WARGEMOULIN HURLUS"]
[null,null,null,null,null,"WARGNIES"]
[null,null,null,null,null,"WARGNIES LE GRAND"]
[null,null,null,null,null,"WARGNIES LE PETIT"]
[null,null,null,null,null,"WARHEM"]
[null,null,null,null,null,"WARLAING"]
[null,null,null,null,null,"WARLENCOURT EAUCOURT"]
[null,null,null,null,null,"WARLINCOURT LES PAS"]
[null,null,null,null,null,"WARLOY BAILLON"]
[null,null,null,null,null,"WARLUIS"]
[null,null,null,null,null,"WARLUS"]
[null,null,null,null,null,"WARLUZEL"]
[null,null,null,null,null,"WARMERIVILLE"]
[null,null,null,null,null,"WARNECOURT"]
[null,null,null,null,null,"WARNETON"]
[null,null,null,null,null,"WARSY"]
[null,null,null,null,null,"WARVILLERS"]
[null,null,null,null,null,"WASIGNY"]
[null,null,null,null,null,"WASNES AU BAC"]
[null,null,null,null,null,"WASQUEHAL"]
[null,null,null,null,null,"WASSELONNE"]
[null,null,null,null,null,"WASSERBOURG"]
[null,null,null,null,null,"WASSIGNY"]
[null,null,null,null,null,"WASSY"]
[null,null,null,null,null,"WATIGNY"]
[null,null,null,null,null,"WATRONVILLE"]
[null,null,null,null,null,"WATTEN"]
[null,null,null,null,null,"WATTIGNIES"]
[null,null,null,null,null,"WATTIGNIES LA VICTOIRE"]
[null,null,null,null,null,"WATTRELOS"]
[null,null,null,null,null,"WATTWILLER"]
[null,null,null,null,null,"WAVIGNIES"]
[null,null,null,null,null,"WAVILLE"]
[null,null,null,null,null,"WAVRANS SUR L AA"]
[null,null,null,null,null,"WAVRANS SUR TERNOISE"]
[null,null,null,null,null,"WAVRECHAIN SOUS DENAIN"]
[null,null,null,null,null,"WAVRECHAIN SOUS FAULX"]
[null,null,null,null,null,"WAVRILLE"]
[null,null,null,null,null,"WAVRIN"]
[null,null,null,null,null,"WAZIERS"]
[null,null,null,null,null,"WECKOLSHEIM"]
[null,null,null,null,null,"WEGSCHEID"]
[null,null,null,null,null,"WEINBOURG"]
[null,null,null,null,null,"WEISLINGEN"]
[null,null,null,null,null,"WEITBRUCH"]
[null,null,null,null,null,"WEITERSWILLER"]
[null,null,null,null,null,"WELLES PERENNES"]
[null,null,null,null,null,"WEMAERS CAPPEL"]
[null,null,null,null,null,"WENTZWILLER"]
[null,null,null,null,null,"WERENTZHOUSE"]
[null,null,null,null,null,"WERVICQ SUD"]
[null,null,null,null,null,"WEST CAPPEL"]
[null,null,null,null,null,"WESTHALTEN"]
[null,null,null,null,null,"WESTHOFFEN"]
[null,null,null,null,null,"WESTHOUSE"]
[null,null,null,null,null,"WESTHOUSE MARMOUTIER"]
[null,null,null,null,null,"WESTREHEM"]
[null,null,null,null,null,"WETTOLSHEIM"]
[null,null,null,null,null,"WEYER"]
[null,null,null,null,null,"WEYERSHEIM"]
[null,null,null,null,null,"WICKERSCHWIHR"]
[null,null,null,null,null,"WICKERSHEIM WILSHAUSEN"]
[null,null,null,null,null,"WICQUINGHEM"]
[null,null,null,null,null,"WICRES"]
[null,null,null,null,null,"WIDEHEM"]
[null,null,null,null,null,"WIDENSOLEN"]
[null,null,null,null,null,"WIEGE FATY"]
[null,null,null,null,null,"WIENCOURT L EQUIPEE"]
[null,null,null,null,null,"WIERRE AU BOIS"]
[null,null,null,null,null,"WIERRE EFFROY"]
[null,null,null,null,null,"WIESVILLER"]
[null,null,null,null,null,"WIGNEHIES"]
[null,null,null,null,null,"WIGNICOURT"]
[null,null,null,null,null,"WIHR AU VAL"]
[null,null,null,null,null,"WILDENSTEIN"]
[null,null,null,null,null,"WILDERSBACH"]
[null,null,null,null,null,"WILLEMAN"]
[null,null,null,null,null,"WILLEMS"]
[null,null,null,null,null,"WILLENCOURT"]
[null,null,null,null,null,"WILLER"]
[null,null,null,null,null,"WILLER SUR THUR"]
[null,null,null,null,null,"WILLERONCOURT"]
[null,null,null,null,null,"WILLERVAL"]
[null,null,null,null,null,"WILLERWALD"]
[null,null,null,null,null,"WILLGOTTHEIM"]
[null,null,null,null,null,"WILLIERS"]
[null,null,null,null,null,"WILLIES"]
[null,null,null,null,null,"WILWISHEIM"]
[null,null,null,null,null,"WIMEREUX"]
[null,null,null,null,null,"WIMILLE"]
[null,null,null,null,null,"WIMMENAU"]
[null,null,null,null,null,"WIMY"]
[null,null,null,null,null,"WINDSTEIN"]
[null,null,null,null,null,"WINGEN"]
[null,null,null,null,null,"WINGEN SUR MODER"]
[null,null,null,null,null,"WINGERSHEIM LES QUATRE BANS"]
[null,null,null,null,null,"WINGLES"]
[null,null,null,null,null,"WINKEL"]
[null,null,null,null,null,"WINNEZEELE"]
[null,null,null,null,null,"WINTERSBOURG"]
[null,null,null,null,null,"WINTERSHOUSE"]
[null,null,null,null,null,"WINTZENBACH"]
[null,null,null,null,null,"WINTZENHEIM"]
[null,null,null,null,null,"WINTZENHEIM KOCHERSBERG"]
[null,null,null,null,null,"WIRWIGNES"]
[null,null,null,null,null,"WIRY AU MONT"]
[null,null,null,null,null,"WISCHES"]
[null,null,null,null,null,"WISEMBACH"]
[null,null,null,null,null,"WISEPPE"]
[null,null,null,null,null,"WISMES"]
[null,null,null,null,null,"WISQUES"]
[null,null,null,null,null,"WISSANT"]
[null,null,null,null,null,"WISSEMBOURG"]
[null,null,null,null,null,"WISSIGNICOURT"]
[null,null,null,null,null,"WISSOUS"]
[null,null,null,null,null,"WITRY LES REIMS"]
[null,null,null,null,null,"WITTELSHEIM"]
[null,null,null,null,null,"WITTENHEIM"]
[null,null,null,null,null,"WITTERNESSE"]
[null,null,null,null,null,"WITTERNHEIM"]
[null,null,null,null,null,"WITTERSDORF"]
[null,null,null,null,null,"WITTERSHEIM"]
[null,null,null,null,null,"WITTES"]
[null,null,null,null,null,"WITTISHEIM"]
[null,null,null,null,null,"WITTRING"]
[null,null,null,null,null,"WIWERSHEIM"]
[null,null,null,null,null,"WIZERNES"]
[null,null,null,null,null,"WOEL"]
[null,null,null,null,null,"WOELFLING LES SARREGUEMINES"]
[null,null,null,null,null,"WOERTH"]
[null,null,null,null,null,"WOIGNARUE"]
[null,null,null,null,null,"WOIMBEY"]
[null,null,null,null,null,"WOINCOURT"]
[null,null,null,null,null,"WOIPPY"]
[null,null,null,null,null,"WOIREL"]
[null,null,null,null,null,"WOLFERSDORF"]
[null,null,null,null,null,"WOLFGANTZEN"]
[null,null,null,null,null,"WOLFISHEIM"]
[null,null,null,null,null,"WOLFSKIRCHEN"]
[null,null,null,null,null,"WOLSCHHEIM"]
[null,null,null,null,null,"WOLSCHWILLER"]
[null,null,null,null,null,"WOLXHEIM"]
[null,null,null,null,null,"WORMHOUT"]
[null,null,null,null,null,"WOUSTVILLER"]
[null,null,null,null,null,"WUENHEIM"]
[null,null,null,null,null,"WUISSE"]
[null,null,null,null,null,"WULVERDINGHE"]
[null,null,null,null,null,"WY DIT JOLI VILLAGE"]
[null,null,null,null,null,"WYLDER"]
[null,null,null,null,null,"XAFFEVILLERS"]
[null,null,null,null,null,"XAINTRAILLES"]
[null,null,null,null,null,"XAINTRAY"]
[null,null,null,null,null,"XAMBES"]
[null,null,null,null,null,"XAMMES"]
[null,null,null,null,null,"XAMONTARUPT"]
[null,null,null,null,null,"XANREY"]
[null,null,null,null,null,"XANTON CHASSENON"]
[null,null,null,null,null,"XARONVAL"]
[null,null,null,null,null,"XERMAMENIL"]
[null,null,null,null,null,"XERTIGNY"]
[null,null,null,null,null,"XEUILLEY"]
[null,null,null,null,null,"XIROCOURT"]
[null,null,null,null,null,"XIVRAY ET MARVOISIN"]
[null,null,null,null,null,"XIVRY CIRCOURT"]
[null,null,null,null,null,"XOCOURT"]
[null,null,null,null,null,"XONRUPT LONGEMER"]
[null,null,null,null,null,"XONVILLE"]
[null,null,null,null,null,"XOUAXANGE"]
[null,null,null,null,null,"XOUSSE"]
[null,null,null,null,null,"XURES"]
[null,null,null,null,null,"Y"]
[null,null,null,null,null,"YAINVILLE"]
[null,null,null,null,null,"YATE"]
[null,null,null,null,null,"YAUCOURT BUSSUS"]
[null,null,null,null,null,"YCHOUX"]
[null,null,null,null,null,"YDES"]
[null,null,null,null,null,"YEBLERON"]
[null,null,null,null,null,"YEBLES"]
[null,null,null,null,null,"YENNE"]
[null,null,null,null,null,"YERMENONVILLE"]
[null,null,null,null,null,"YERRES"]
[null,null,null,null,null,"YERVILLE"]
[null,null,null,null,null,"YEVRE LA VILLE"]
[null,null,null,null,null,"YEVRES"]
[null,null,null,null,null,"YEVRES LE PETIT"]
[null,null,null,null,null,"YFFINIAC"]
[null,null,null,null,null,"YGOS ST SATURNIN"]
[null,null,null,null,null,"YGRANDE"]
[null,null,null,null,null,"YMARE"]
[null,null,null,null,null,"YMERAY"]
[null,null,null,null,null,"YMONVILLE"]
[null,null,null,null,null,"YOLET"]
[null,null,null,null,null,"YONCQ"]
[null,null,null,null,null,"YONVAL"]
[null,null,null,null,null,"YOUX"]
[null,null,null,null,null,"YPORT"]
[null,null,null,null,null,"YPREVILLE BIVILLE"]
[null,null,null,null,null,"YQUEBEUF"]
[null,null,null,null,null,"YQUELON"]
[null,null,null,null,null,"YRONDE ET BURON"]
[null,null,null,null,null,"YROUERRE"]
[null,null,null,null,null,"YSSAC LA TOURETTE"]
[null,null,null,null,null,"YSSANDON"]
[null,null,null,null,null,"YSSINGEAUX"]
[null,null,null,null,null,"YTRAC"]
[null,null,null,null,null,"YTRES"]
[null,null,null,null,null,"YUTZ"]
[null,null,null,null,null,"YVECRIQUE"]
[null,null,null,null,null,"YVERNAUMONT"]
[null,null,null,null,null,"YVERSAY"]
[null,null,null,null,null,"YVES"]
[null,null,null,null,null,"YVETOT"]
[null,null,null,null,null,"YVETOT BOCAGE"]
[null,null,null,null,null,"YVIAS"]
[null,null,null,null,null,"YVIERS"]
[null,null,null,null,null,"YVIGNAC LA TOUR"]
[null,null,null,null,null,"YVILLE SUR SEINE"]
[null,null,null,null,null,"YVOIRE"]
[null,null,null,null,null,"YVOY LE MARRON"]
[null,null,null,null,null,"YVRAC"]
[null,null,null,null,null,"YVRAC ET MALLEYRAND"]
[null,null,null,null,null,"YVRE L EVEQUE"]
[null,null,null,null,null,"YVRE LE POLIN"]
[null,null,null,null,null,"YVRENCH"]
[null,null,null,null,null,"YVRENCHEUX"]
[null,null,null,null,null,"YZENGREMER"]
[null,null,null,null,null,"YZERNAY"]
[null,null,null,null,null,"YZERON"]
[null,null,null,null,null,"YZEURE"]
[null,null,null,null,null,"YZEURES SUR CREUSE"]
[null,null,null,null,null,"YZEUX"]
[null,null,null,null,null,"YZOSSE"]
[null,null,null,null,null,"ZAESSINGUE"]
[null,null,null,null,null,"ZALANA"]
[null,null,null,null,null,"ZARBELING"]
[null,null,null,null,null,"ZEGERSCAPPEL"]
[null,null,null,null,null,"ZEHNACKER"]
[null,null,null,null,null,"ZEINHEIM"]
[null,null,null,null,null,"ZELLENBERG"]
[null,null,null,null,null,"ZELLWILLER"]
[null,null,null,null,null,"ZERMEZEELE"]
[null,null,null,null,null,"ZERUBIA"]
[null,null,null,null,null,"ZETTING"]
[null,null,null,null,null,"ZEVACO"]
[null,null,null,null,null,"ZICAVO"]
[null,null,null,null,null,"ZIGLIARA"]
[null,null,null,null,null,"ZILIA"]
[null,null,null,null,null,"ZILLING"]
[null,null,null,null,null,"ZILLISHEIM"]
[null,null,null,null,null,"ZIMMERBACH"]
[null,null,null,null,null,"ZIMMERSHEIM"]
[null,null,null,null,null,"ZIMMING"]
[null,null,null,null,null,"ZINCOURT"]
[null,null,null,null,null,"ZINSWILLER"]
[null,null,null,null,null,"ZITTERSHEIM"]
[null,null,null,null,null,"ZOEBERSDORF"]
[null,null,null,null,null,"ZOMMANGE"]
[null,null,null,null,null,"ZONZA"]
[null,null,null,null,null,"ZOTEUX"]
[null,null,null,null,null,"ZOUAFQUES"]
[null,null,null,null,null,"ZOUFFTGEN"]
[null,null,null,null,null,"ZOZA"]
[null,null,null,null,null,"ZUANI"]
[null,null,null,null,null,"ZUDAUSQUES"]
[null,null,null,null,null,"ZUTKERQUE"]
[null,null,null,null,null,"ZUYDCOOTE"]
[null,null,null,null,null,"ZUYTPEENE"]

{"sheet":"LV5","index":1,"n_rows":739,"n_cols":70,"rows_kept":739,"cut":false,"hidden":true,"merged":[[0,0,0,69]]}
["RESERVATION LV 5"]
["Retour Menu"]
[null,"06:29:59.712","06:45:00","07:00:00.288","07:14:59.712","07:30:00","07:45:00.288","07:59:59.712","08:15:00","08:30:00.288","08:44:59.712","09:00:00","09:15:00.288","09:29:59.712","09:45:00","10:00:00.288","10:14:59.712","10:30:00","10:45:00.288","10:59:59.712","11:15:00","11:30:00.288","11:44:59.712","12:00:00","12:15:00.288","12:29:59.712","12:45:00","13:00:00.288","13:14:59.712","13:30:00","13:45:00.288","13:59:59.712","14:15:00","14:30:00.288","14:44:59.712","15:00:00","15:15:00.288","15:29:59.712","15:45:00","16:00:00.288","16:14:59.712","16:30:00","16:45:00.288","16:59:59.712","17:15:00","17:30:00.288","17:44:59.712","18:00:00","18:15:00.288","18:29:59.712","18:45:00","19:00:00.288","19:14:59.712","19:30:00","19:45:00.288","19:59:59.712","20:15:00","20:30:00.288","20:44:59.712","21:00:00","21:15:00.288","21:29:59.712","21:45:00","22:00:00.288","22:14:59.712","22:30:00","22:45:00.288","22:59:59.712","23:15:00","23:30:00.288"]
["2018-03-01"]
[{"$f":"A4+1","v":"2018-03-02"}]
["2018-03-03"]
["2018-03-04"]
["2018-03-05"]
["2018-03-06"]
["2018-03-07"]
["2018-03-08"]
["2018-03-09"]
["2018-03-10"]
["2018-03-11"]
["2018-03-12"]
["2018-03-13"]
["2018-03-14"]
["2018-03-15"]
["2018-03-16"]
["2018-03-17"]
["2018-03-18"]
["2018-03-19"]
["2018-03-20"]
["2018-03-21"]
["2018-03-22"]
["2018-03-23"]
["2018-03-24"]
["2018-03-25"]
["2018-03-26"]
["2018-03-27"]
["2018-03-28"]
["2018-03-29"]
["2018-03-30"]
["2018-03-31"]
["2018-04-01"]
["2018-04-02"]
["2018-04-03"]
["2018-04-04"]
["2018-04-05"]
["2018-04-06"]
["2018-04-07"]
["2018-04-08"]
["2018-04-09"]
["2018-04-10"]
["2018-04-11"]
["2018-04-12"]
["2018-04-13"]
["2018-04-14"]
["2018-04-15"]
["2018-04-16"]
["2018-04-17"]
["2018-04-18"]
["2018-04-19"]
["2018-04-20"]
["2018-04-21"]
["2018-04-22"]
["2018-04-23"]
["2018-04-24"]
["2018-04-25"]
["2018-04-26",null,null,null,null,null,"Redge"]
["2018-04-27"]
["2018-04-28"]
["2018-04-29"]
["2018-04-30"]
["2018-05-01"]
["2018-05-02"]
["2018-05-03"]
["2018-05-04",null,null,null,null,null,"Redge"]
[{"$f":"A68+1","v":"2018-05-05"},"Redge"]
["2018-05-06"]
["2018-05-07",null,null,null,null,null,"anne"]
["2018-05-08","anne"]
["2018-05-09","anne"]
["2018-05-10"]
["2018-05-11"]
["2018-05-12"]
["2018-05-13"]
["2018-05-14"]
["2018-05-15"]
["2018-05-16"]
["2018-05-17"]
["2018-05-18"]
["2018-05-19"]
["2018-05-20"]
["2018-05-21"]
["2018-05-22"]
["2018-05-23"]
["2018-05-24"]
["2018-05-25"]
["2018-05-26"]
["2018-05-27"]
["2018-05-28"]
["2018-05-29"]
["2018-05-30"]
["2018-05-31"]
["2018-06-01"]
["2018-06-02"]
["2018-06-03"]
["2018-06-04"]
["2018-06-05"]
["2018-06-06"]
["2018-06-07"]
["2018-06-08"]
["2018-06-09"]
["2018-06-10"]
["2018-06-11"]
["2018-06-12"]
["2018-06-13"]
["2018-06-14"]
["2018-06-15"]
["2018-06-16"]
["2018-06-17"]
["2018-06-18"]
["2018-06-19"]
["2018-06-20"]
["2018-06-21"]
["2018-06-22"]
["2018-06-23"]
["2018-06-24"]
["2018-06-25"]
["2018-06-26"]
["2018-06-27"]
["2018-06-28"]
["2018-06-29"]
["2018-06-30"]
["2018-07-01"]
["2018-07-02"]
["2018-07-03"]
["2018-07-04"]
["2018-07-05"]
["2018-07-06"]
["2018-07-07"]
[{"$f":"A132+1","v":"2018-07-08"}]
["2018-07-09"]
["2018-07-10"]
["2018-07-11"]
["2018-07-12"]
["2018-07-13"]
["2018-07-14"]
["2018-07-15"]
["2018-07-16"]
["2018-07-17"]
["2018-07-18"]
["2018-07-19"]
["2018-07-20"]
["2018-07-21"]
["2018-07-22"]
["2018-07-23"]
["2018-07-24"]
["2018-07-25"]
["2018-07-26"]
["2018-07-27"]
["2018-07-28"]
["2018-07-29"]
["2018-07-30"]
["2018-07-31"]
["2018-08-01"]
["2018-08-02"]
["2018-08-03"]
["2018-08-04"]
["2018-08-05"]
["2018-08-06"]
["2018-08-07"]
["2018-08-08"]
["2018-08-09"]
["2018-08-10"]
["2018-08-11"]
["2018-08-12"]
["2018-08-13"]
["2018-08-14"]
["2018-08-15"]
["2018-08-16"]
["2018-08-17"]
["2018-08-18"]
["2018-08-19"]
["2018-08-20"]
["2018-08-21"]
["2018-08-22"]
["2018-08-23"]
["2018-08-24"]
["2018-08-25"]
["2018-08-26"]
["2018-08-27"]
["2018-08-28"]
["2018-08-29"]
["2018-08-30"]
["2018-08-31"]
["2018-09-01"]
["2018-09-02"]
["2018-09-03"]
["2018-09-04"]
["2018-09-05"]
["2018-09-06"]
["2018-09-07"]
["2018-09-08"]
["2018-09-09"]
[{"$f":"A196+1","v":"2018-09-10"}]
["2018-09-11"]
["2018-09-12"]
["2018-09-13"]
["2018-09-14"]
["2018-09-15"]
["2018-09-16"]
["2018-09-17"]
["2018-09-18"]
["2018-09-19"]
["2018-09-20"]
["2018-09-21"]
["2018-09-22"]
["2018-09-23"]
["2018-09-24"]
["2018-09-25"]
["2018-09-26"]
["2018-09-27"]
["2018-09-28"]
["2018-09-29"]
["2018-09-30"]
["2018-10-01"]
["2018-10-02"]
["2018-10-03"]
["2018-10-04"]
["2018-10-05"]
["2018-10-06"]
["2018-10-07"]
["2018-10-08"]
["2018-10-09"]
["2018-10-10"]
["2018-10-11"]
["2018-10-12"]
["2018-10-13"]
["2018-10-14"]
["2018-10-15"]
["2018-10-16"]
["2018-10-17"]
["2018-10-18"]
["2018-10-19"]
["2018-10-20"]
["2018-10-21"]
["2018-10-22"]
["2018-10-23"]
["2018-10-24"]
["2018-10-25"]
["2018-10-26"]
["2018-10-27"]
["2018-10-28"]
["2018-10-29"]
["2018-10-30"]
["2018-10-31"]
["2018-11-01"]
["2018-11-02"]
["2018-11-03"]
["2018-11-04"]
["2018-11-05"]
["2018-11-06"]
["2018-11-07"]
["2018-11-08"]
["2018-11-09"]
["2018-11-10"]
["2018-11-11"]
["2018-11-12"]
[{"$f":"A260+1","v":"2018-11-13"}]
["2018-11-14"]
["2018-11-15"]
["2018-11-16"]
["2018-11-17"]
["2018-11-18"]
["2018-11-19"]
["2018-11-20"]
["2018-11-21"]
["2018-11-22"]
["2018-11-23"]
["2018-11-24"]
["2018-11-25"]
["2018-11-26"]
["2018-11-27"]
["2018-11-28"]
["2018-11-29"]
["2018-11-30"]
["2018-12-01"]
["2018-12-02"]
["2018-12-03"]
["2018-12-04"]
["2018-12-05"]
["2018-12-06"]
["2018-12-07"]
["2018-12-08"]
["2018-12-09"]
["2018-12-10"]
["2018-12-11"]
["2018-12-12"]
["2018-12-13"]
["2018-12-14"]
["2018-12-15"]
["2018-12-16"]
["2018-12-17"]
["2018-12-18"]
["2018-12-19"]
["2018-12-20"]
["2018-12-21"]
["2018-12-22"]
["2018-12-23"]
["2018-12-24"]
["2018-12-25"]
["2018-12-26"]
["2018-12-27"]
["2018-12-28"]
["2018-12-29"]
["2018-12-30"]
["2018-12-31"]
["2019-01-01"]
["2019-01-02"]
["2019-01-03"]
["2019-01-04"]
["2019-01-05"]
["2019-01-06"]
["2019-01-07"]
["2019-01-08"]
["2019-01-09"]
["2019-01-10"]
["2019-01-11"]
["2019-01-12"]
["2019-01-13"]
["2019-01-14"]
["2019-01-15"]
[{"$f":"A324+1","v":"2019-01-16"}]
["2019-01-17"]
["2019-01-18"]
["2019-01-19"]
["2019-01-20"]
["2019-01-21"]
["2019-01-22"]
["2019-01-23"]
["2019-01-24"]
["2019-01-25"]
["2019-01-26"]
["2019-01-27"]
["2019-01-28"]
["2019-01-29"]
["2019-01-30"]
["2019-01-31"]
["2019-02-01"]
["2019-02-02"]
["2019-02-03"]
["2019-02-04"]
["2019-02-05"]
["2019-02-06"]
["2019-02-07"]
["2019-02-08"]
["2019-02-09"]
["2019-02-10"]
["2019-02-11"]
["2019-02-12"]
["2019-02-13"]
["2019-02-14"]
["2019-02-15"]
["2019-02-16"]
["2019-02-17"]
["2019-02-18"]
["2019-02-19"]
["2019-02-20"]
["2019-02-21"]
["2019-02-22"]
["2019-02-23"]
["2019-02-24"]
["2019-02-25"]
["2019-02-26"]
["2019-02-27"]
["2019-02-28"]
["2019-03-01"]
["2019-03-02"]
["2019-03-03"]
["2019-03-04"]
["2019-03-05"]
["2019-03-06"]
["2019-03-07"]
["2019-03-08"]
["2019-03-09"]
["2019-03-10"]
["2019-03-11"]
["2019-03-12"]
["2019-03-13"]
["2019-03-14"]
["2019-03-15"]
["2019-03-16"]
["2019-03-17"]
["2019-03-18"]
["2019-03-19"]
["2019-03-20"]
[{"$f":"A388+1","v":"2019-03-21"}]
["2019-03-22"]
["2019-03-23"]
["2019-03-24"]
["2019-03-25"]
["2019-03-26"]
["2019-03-27"]
["2019-03-28"]
["2019-03-29"]
["2019-03-30"]
["2019-03-31"]
["2019-04-01"]
["2019-04-02"]
["2019-04-03"]
["2019-04-04"]
["2019-04-05"]
["2019-04-06"]
["2019-04-07"]
["2019-04-08"]
["2019-04-09"]
["2019-04-10"]
["2019-04-11"]
["2019-04-12"]
["2019-04-13"]
["2019-04-14"]
["2019-04-15"]
["2019-04-16"]
["2019-04-17"]
["2019-04-18"]
["2019-04-19"]
["2019-04-20"]
["2019-04-21"]
["2019-04-22"]
["2019-04-23"]
["2019-04-24"]
["2019-04-25"]
["2019-04-26"]
["2019-04-27"]
["2019-04-28"]
["2019-04-29"]
["2019-04-30"]
["2019-05-01"]
["2019-05-02"]
["2019-05-03"]
["2019-05-04"]
["2019-05-05"]
["2019-05-06"]
["2019-05-07"]
["2019-05-08"]
["2019-05-09"]
["2019-05-10"]
["2019-05-11"]
["2019-05-12"]
["2019-05-13"]
["2019-05-14"]
["2019-05-15"]
["2019-05-16"]
["2019-05-17"]
["2019-05-18"]
["2019-05-19"]
["2019-05-20"]
["2019-05-21"]
["2019-05-22"]
["2019-05-23"]
[{"$f":"A452+1","v":"2019-05-24"}]
["2019-05-25"]
["2019-05-26"]
["2019-05-27"]
["2019-05-28"]
["2019-05-29"]
["2019-05-30"]
["2019-05-31"]
["2019-06-01"]
["2019-06-02"]
["2019-06-03"]
["2019-06-04"]
["2019-06-05"]
["2019-06-06"]
["2019-06-07"]
["2019-06-08"]
["2019-06-09"]
["2019-06-10"]
["2019-06-11"]
["2019-06-12"]
["2019-06-13"]
["2019-06-14"]
["2019-06-15"]
["2019-06-16"]
["2019-06-17"]
["2019-06-18"]
["2019-06-19"]
["2019-06-20"]
["2019-06-21"]
["2019-06-22"]
["2019-06-23"]
["2019-06-24"]
["2019-06-25"]
["2019-06-26"]
["2019-06-27"]
["2019-06-28"]
["2019-06-29"]
["2019-06-30"]
["2019-07-01"]
["2019-07-02"]
["2019-07-03"]
["2019-07-04"]
["2019-07-05"]
["2019-07-06"]
["2019-07-07"]
["2019-07-08"]
["2019-07-09"]
["2019-07-10"]
["2019-07-11"]
["2019-07-12"]
["2019-07-13"]
["2019-07-14"]
["2019-07-15"]
["2019-07-16"]
["2019-07-17"]
["2019-07-18"]
["2019-07-19"]
["2019-07-20"]
["2019-07-21"]
["2019-07-22"]
["2019-07-23"]
["2019-07-24"]
["2019-07-25"]
["2019-07-26"]
[{"$f":"A516+1","v":"2019-07-27"}]
["2019-07-28"]
["2019-07-29"]
["2019-07-30"]
["2019-07-31"]
["2019-08-01"]
["2019-08-02"]
["2019-08-03"]
["2019-08-04"]
["2019-08-05"]
["2019-08-06"]
["2019-08-07"]
["2019-08-08"]
["2019-08-09"]
["2019-08-10"]
["2019-08-11"]
["2019-08-12"]
["2019-08-13"]
["2019-08-14"]
["2019-08-15"]
["2019-08-16"]
["2019-08-17"]
["2019-08-18"]
["2019-08-19"]
["2019-08-20"]
["2019-08-21"]
["2019-08-22"]
["2019-08-23"]
["2019-08-24"]
["2019-08-25"]
["2019-08-26"]
["2019-08-27"]
["2019-08-28"]
["2019-08-29"]
["2019-08-30"]
["2019-08-31"]
["2019-09-01"]
["2019-09-02"]
["2019-09-03"]
["2019-09-04"]
["2019-09-05"]
["2019-09-06"]
["2019-09-07"]
["2019-09-08"]
["2019-09-09"]
["2019-09-10"]
["2019-09-11"]
["2019-09-12"]
["2019-09-13"]
["2019-09-14"]
["2019-09-15"]
["2019-09-16"]
["2019-09-17"]
["2019-09-18"]
["2019-09-19"]
["2019-09-20"]
["2019-09-21"]
["2019-09-22"]
["2019-09-23"]
["2019-09-24"]
["2019-09-25"]
["2019-09-26"]
["2019-09-27"]
["2019-09-28"]
[{"$f":"A580+1","v":"2019-09-29"}]
["2019-09-30"]
["2019-10-01"]
["2019-10-02"]
["2019-10-03"]
["2019-10-04"]
["2019-10-05"]
["2019-10-06"]
["2019-10-07"]
["2019-10-08"]
["2019-10-09"]
["2019-10-10"]
["2019-10-11"]
["2019-10-12"]
["2019-10-13"]
["2019-10-14"]
["2019-10-15"]
["2019-10-16"]
["2019-10-17"]
["2019-10-18"]
["2019-10-19"]
["2019-10-20"]
["2019-10-21"]
["2019-10-22"]
["2019-10-23"]
["2019-10-24"]
["2019-10-25"]
["2019-10-26"]
["2019-10-27"]
["2019-10-28"]
["2019-10-29"]
["2019-10-30"]
["2019-10-31"]
["2019-11-01"]
["2019-11-02"]
["2019-11-03"]
["2019-11-04"]
["2019-11-05"]
["2019-11-06"]
["2019-11-07"]
["2019-11-08"]
["2019-11-09"]
["2019-11-10"]
["2019-11-11"]
["2019-11-12"]
["2019-11-13"]
["2019-11-14"]
["2019-11-15"]
["2019-11-16"]
["2019-11-17"]
["2019-11-18"]
["2019-11-19"]
["2019-11-20"]
["2019-11-21"]
["2019-11-22"]
["2019-11-23"]
["2019-11-24"]
["2019-11-25"]
["2019-11-26"]
["2019-11-27"]
["2019-11-28"]
["2019-11-29"]
["2019-11-30"]
["2019-12-01"]
[{"$f":"A644+1","v":"2019-12-02"}]
["2019-12-03"]
["2019-12-04"]
["2019-12-05"]
["2019-12-06"]
["2019-12-07"]
["2019-12-08"]
["2019-12-09"]
["2019-12-10"]
["2019-12-11"]
["2019-12-12"]
["2019-12-13"]
["2019-12-14"]
["2019-12-15"]
["2019-12-16"]
["2019-12-17"]
["2019-12-18"]
["2019-12-19"]
["2019-12-20"]
["2019-12-21"]
["2019-12-22"]
["2019-12-23"]
["2019-12-24"]
["2019-12-25"]
["2019-12-26"]
["2019-12-27"]
["2019-12-28"]
["2019-12-29"]
["2019-12-30"]
["2019-12-31"]
["2020-01-01"]
["2020-01-02"]
["2020-01-03"]
["2020-01-04"]
["2020-01-05"]
["2020-01-06"]
["2020-01-07"]
["2020-01-08"]
["2020-01-09"]
["2020-01-10"]
["2020-01-11"]
["2020-01-12"]
["2020-01-13"]
["2020-01-14"]
["2020-01-15"]
["2020-01-16"]
["2020-01-17"]
["2020-01-18"]
["2020-01-19"]
["2020-01-20"]
["2020-01-21"]
["2020-01-22"]
["2020-01-23"]
["2020-01-24"]
["2020-01-25"]
["2020-01-26"]
["2020-01-27"]
["2020-01-28"]
["2020-01-29"]
["2020-01-30"]
["2020-01-31"]
["2020-02-01"]
["2020-02-02"]
["2020-02-03"]
[{"$f":"A708+1","v":"2020-02-04"}]
["2020-02-05"]
["2020-02-06"]
["2020-02-07"]
["2020-02-08"]
["2020-02-09"]
["2020-02-10"]
["2020-02-11"]
["2020-02-12"]
["2020-02-13"]
["2020-02-14"]
["2020-02-15"]
["2020-02-16"]
["2020-02-17"]
["2020-02-18"]
["2020-02-19"]
["2020-02-20"]
["2020-02-21"]
["2020-02-22"]
["2020-02-23"]
["2020-02-24"]
["2020-02-25"]
["2020-02-26"]
["2020-02-27"]
["2020-02-28"]
["2020-02-29"]
["2020-03-01"]
["2020-03-02"]
["2020-03-03"]
["2020-03-04"]
["2020-03-05"]

{"sheet":"Synthèse réservation","index":2,"n_rows":5,"n_cols":46,"rows_kept":5,"cut":false,"hidden":true,"merged":[]}
["N° ID","N° de facture","Date d'enregistrement de la réservation","Heure d'enregistrement de la réservation","Nom Locataire","Prix de la Location","Nombre Pension Complète","Nombre 1/2 Pension","Nombre de Nuitée","Nombre de Repas Seul","Sans Sel","Sans Sucre","Sans Porc","Végétarien","Végétalien","Texture Normale","Texture Hachée","Texture Mixée","Observation(s) Restauration ","Date arrivée","Heure arrivée","Date départ","Heure départ","Date début mois arrivée","Mois arrivé","Mois départ","NB jour location sur mois d'arrivé","NB jour location sur mois de départ","Durée réservation","Nombre d'accompagnants","Nombre d'usagers","Nombre Total de personnes","Adresse","Code postal","Ville","Téléphone 1","Téléphone 2","Adresse mail Etablissement","Adresse Mail Personnel","Total à payer","Avance Paiement","Reste à payer","Payé","Validation","Commentaires","Liens documents attachés"]
[1,null,"","",null,120,"","","","","","","","","","","","","","2018-03-30","14:00:00","2018-04-04","17:00:00",{"$f":"BD[[#This Row],[Date arrivée]]-DAY(BD[[#This Row],[Date arrivée]])+1","v":"2018-03-01"},{"$f":"MONTH(T2)","v":3},{"$f":"MONTH(V2)","v":4},{"$f":"IF(Y2=Z2,V2-T2+1,EOMONTH(T2,0)-T2+1)","v":2},{"$f":"IF(Z2=Y2,0,V2-EOMONTH(T2,0))","v":4},{"$f":"BD[[#This Row],[Date départ]]+BD[[#This Row],[Heure départ]]-(BD[[#This Row],[Date arrivée]]+BD[[#This Row],[Heure arrivée]])","v":5.125},"","",{"$f":"SUM(BD[[#This Row],[Nombre d''accompagnants]],BD[[#This Row],[Nombre d''usagers]])","v":0},"","","","","","","",null,null,{"$f":"BD[[#This Row],[Total à payer]]-BD[[#This Row],[Avance Paiement]]","v":0},{"$f":"IF(BD[[#This Row],[Reste à payer]]>0,0,1)","v":1},0,"",""]
[2,null,"26/04/2018","16:22","Redge",null,5,5,0,"","","","","","","","","","","2018-04-26","08:00:00","2018-04-26","09:00:00",{"$f":"BD[[#This Row],[Date arrivée]]-DAY(BD[[#This Row],[Date arrivée]])+1","v":"2018-04-01"},{"$f":"MONTH(T3)","v":4},{"$f":"MONTH(V3)","v":4},{"$f":"IF(Y3=Z3,V3-T3+1,EOMONTH(T3,0)-T3+1)","v":1},{"$f":"IF(Z3=Y3,0,V3-EOMONTH(T3,0))","v":0},{"$f":"BD[[#This Row],[Date départ]]+BD[[#This Row],[Heure départ]]-(BD[[#This Row],[Date arrivée]]+BD[[#This Row],[Heure arrivée]])","v":4.1666666664241347E-2},5,5,{"$f":"SUM(BD[[#This Row],[Nombre d''accompagnants]],BD[[#This Row],[Nombre d''usagers]])","v":10},null,null,null,"","","","",120,0,{"$f":"BD[[#This Row],[Total à payer]]-BD[[#This Row],[Avance Paiement]]","v":120},{"$f":"IF(BD[[#This Row],[Reste à payer]]>0,0,1)","v":0},0,"","documents_2"]
[3,null,"04/05/2018","10:52","Redge",null,"","","","","","","","","","","","","","2018-05-04","08:00:00","2018-05-05","08:00:00",{"$f":"BD[[#This Row],[Date arrivée]]-DAY(BD[[#This Row],[Date arrivée]])+1","v":"2018-05-01"},{"$f":"MONTH(T4)","v":5},{"$f":"MONTH(V4)","v":5},{"$f":"IF(Y4=Z4,V4-T4+1,EOMONTH(T4,0)-T4+1)","v":2},{"$f":"IF(Z4=Y4,0,V4-EOMONTH(T4,0))","v":0},{"$f":"BD[[#This Row],[Date départ]]+BD[[#This Row],[Heure départ]]-(BD[[#This Row],[Date arrivée]]+BD[[#This Row],[Heure arrivée]])","v":1},3,3,{"$f":"SUM(BD[[#This Row],[Nombre d''accompagnants]],BD[[#This Row],[Nombre d''usagers]])","v":6},null,null,null,"","","","",null,null,{"$f":"BD[[#This Row],[Total à payer]]-BD[[#This Row],[Avance Paiement]]","v":0},{"$f":"IF(BD[[#This Row],[Reste à payer]]>0,0,1)","v":1},0,""]
[4,4,"07/05/2018","12:51","anne",null,2,0,0,0,"","","","","","","","","","2018-05-07","08:00:00","2018-05-09","09:00:00",{"$f":"BD[[#This Row],[Date arrivée]]-DAY(BD[[#This Row],[Date arrivée]])+1","v":"2018-05-01"},{"$f":"MONTH(T5)","v":5},{"$f":"MONTH(V5)","v":5},{"$f":"IF(Y5=Z5,V5-T5+1,EOMONTH(T5,0)-T5+1)","v":3},{"$f":"IF(Z5=Y5,0,V5-EOMONTH(T5,0))","v":0},{"$f":"BD[[#This Row],[Date départ]]+BD[[#This Row],[Heure départ]]-(BD[[#This Row],[Date arrivée]]+BD[[#This Row],[Heure arrivée]])","v":2.0416666666642413},0,2,{"$f":"SUM(BD[[#This Row],[Nombre d''accompagnants]],BD[[#This Row],[Nombre d''usagers]])","v":2},"","","","","","","",170,0,{"$f":"BD[[#This Row],[Total à payer]]-BD[[#This Row],[Avance Paiement]]","v":170},{"$f":"IF(BD[[#This Row],[Reste à payer]]>0,0,1)","v":0},0,""]

{"sheet":"Menu","index":3,"n_rows":15,"n_cols":16,"rows_kept":15,"cut":false,"hidden":false,"merged":[[5,5,5,9]]}
[]
[]
[]
[]
[]
[null,null,null,null,null,"Nombre de Séjours en cours de paiement",null,null,null,null,{"$f":"COUNTIF(BD[Payé],0)","v":2},"Pourcentage de réservation sur le mois en cours",null,null,null,{"$f":"(GETPIVOTDATA(\"NB jour location sur mois d'arrivé\",'TO par mois'!$A$3,\"Mois arrivé\",MONTH(TODAY()))+GETPIVOTDATA(\"NB jour location sur mois de départ\",'TO par mois'!$D$3,\"Mois départ\",MONTH(TODAY())))/DAY(DATE(YEAR(TODAY()),MONTH(TODAY())+1,0))","v":0.16129032258064516}]
[]
[]
[]
[]
[]
[]
[]
[]
["                                             "]

{"sheet":"TO par mois","index":4,"n_rows":22,"n_cols":5,"rows_kept":22,"cut":false,"hidden":true,"merged":[]}
[]
[]
["Étiquettes de lignes","Somme de NB jour location sur mois d'arrivé",null,"Étiquettes de lignes","Somme de NB jour location sur mois de départ"]
[4,1,null,4,4]
[3,2,null,5,0]
[5,5,null,"Total général",4]
["Total général",8]
[]
[]
[]
[]
["Mois","Mois","Nb de jours disponibles","Nb jours de location","TO"]
["2018-01-01",{"$f":"MONTH(A13)","v":1},{"$f":"DAY(DATE(YEAR(A13),MONTH(A13)+1,0))","v":31},{"$f":"IF(ISERROR(VLOOKUP(B13,$A$4:$B$9,2)+VLOOKUP(B13,$D$4:$E$9,2,FALSE))=TRUE,0,VLOOKUP(B13,$A$4:$B$9,2,FALSE)+VLOOKUP(B13,$D$4:$E$9,2,FALSE))","v":0},{"$f":"+D13/C13","v":0}]
["2018-02-01",{"$f":"MONTH(A14)","v":2},28,{"$f":"IF(ISERROR(VLOOKUP(B14,$A$4:$B$9,2)+VLOOKUP(B14,$D$4:$E$9,2,FALSE))=TRUE,0,VLOOKUP(B14,$A$4:$B$9,2,FALSE)+VLOOKUP(B14,$D$4:$E$9,2,FALSE))","v":0},{"$f":"+D14/C14","v":0}]
["2018-03-01",3,31,0,0]
["2018-04-01",4,30,5,0.16666666666666666]
["2018-05-01",5,31,5,0.16129032258064516]
["2018-06-01",6,30,0,0]
["2018-07-01",7,31,0,0]
["2018-08-01",8,31,0,0]
["2018-09-01",9,30,0,0]
["2018-10-01",10,31,0,0]

{"sheet":"Couleurs","index":5,"n_rows":57,"n_cols":2,"rows_kept":57,"cut":false,"hidden":true,"merged":[]}
["Colorindex"]
[null,{"$f":"indice_couleur(A2)","v":{"$error":"#NAME?"}}]
[null,{"$f":"indice_couleur(A3)","v":{"$error":"#NAME?"}}]
[null,{"$error":"#NAME?"}]
[null,{"$error":"#NAME?"}]
[null,{"$error":"#NAME?"}]
[null,{"$error":"#NAME?"}]
[null,{"$error":"#NAME?"}]
[null,{"$error":"#NAME?"}]
[null,{"$error":"#NAME?"}]
[null,{"$error":"#NAME?"}]
[null,{"$error":"#NAME?"}]
[null,{"$error":"#NAME?"}]
[null,{"$error":"#NAME?"}]
[null,{"$error":"#NAME?"}]
[null,{"$error":"#NAME?"}]
[null,{"$error":"#NAME?"}]
[null,{"$error":"#NAME?"}]
[null,{"$error":"#NAME?"}]
[null,{"$error":"#NAME?"}]
[null,{"$error":"#NAME?"}]
[null,{"$error":"#NAME?"}]
[null,{"$error":"#NAME?"}]
[null,{"$error":"#NAME?"}]
[null,{"$error":"#NAME?"}]
[null,{"$error":"#NAME?"}]
[null,{"$error":"#NAME?"}]
[null,{"$error":"#NAME?"}]
[null,{"$error":"#NAME?"}]
[null,{"$error":"#NAME?"}]
[null,{"$error":"#NAME?"}]
[null,{"$error":"#NAME?"}]
[null,{"$error":"#NAME?"}]
[null,{"$error":"#NAME?"}]
[null,{"$error":"#NAME?"}]
[null,{"$error":"#NAME?"}]
[null,{"$error":"#NAME?"}]
[null,{"$error":"#NAME?"}]
[null,{"$error":"#NAME?"}]
[null,{"$error":"#NAME?"}]
[null,{"$error":"#NAME?"}]
[null,{"$error":"#NAME?"}]
[null,{"$error":"#NAME?"}]
[null,{"$error":"#NAME?"}]
[null,{"$error":"#NAME?"}]
[null,{"$error":"#NAME?"}]
[null,{"$error":"#NAME?"}]
[null,{"$error":"#NAME?"}]
[null,{"$error":"#NAME?"}]
[null,{"$error":"#NAME?"}]
[null,{"$error":"#NAME?"}]
[null,{"$error":"#NAME?"}]
[null,{"$error":"#NAME?"}]
[null,{"$error":"#NAME?"}]
[null,{"$error":"#NAME?"}]
[null,{"$error":"#NAME?"}]
[null,{"$error":"#NAME?"}]